Workbook

Sheet Main
B10: 2018-07-17
B12: Sheet No. | C12: Template Name | D12: Summary
B13: 1 | C13: Future Intra | D13: For Intraday trading in F&O segment
B14: 2 | C14: Cash Intra | D14: For Intraday trading in cash market segment
B15: 3 | C15: Mid-cap Intra | D15: For Intraday trading in Mid-cap stocks
B16: 4 | C16: Bulk Deals | D16: Reveals Bulk Deals carried on NSE & BSE
B17: 5 | C17: Call Tracker

Sheet Future Intra
M5: Back to Main Page
A6: FOR INTRA DAY TRADING | L6: =Main!B10 -> 2018-07-17
A9: Sr.no | B9: Sector | C9: Scrip | D9: CLOSE RATE | E9: Pivot Point | F9: Supports | I9: Resistances
B10: Sector | D10: Point | E10: Point | F10: S1 | G10: S2 | H10: S3 | I10: R1 | J10: R2 | K10: R3 | L10: HIGH | M10: LOW | N10: OI | O10: % Change in OI
A11: 1 | B11: Index | C11: BANKNIFTY | D11: 26740.65 | E11: 26798.53 | F11: 26647.12 | G11: 26553.58 | H11: 26402.17 | I11: 26892.07 | J11: 27043.48 | K11: 27137.02 | L11: 26949.95 | M11: 26705 | N11: 2275400 | O11: -5.68%
A12: 2 | B12: Index | C12: NIFTY | D12: 10944.25 | E12: 10965.43 | F12: 10910.77 | G12: 10877.28 | H12: 10822.62 | I12: 10998.92 | J12: 11053.58 | K12: 11087.07 | L12: 11020.1 | M12: 10931.95 | N12: 26127450 | O12: -2.49%
A13: 3 | B13: Index | C13: NIFTYCPSE | D13: 2439.95 | E13: 813.32 | F13: 1626.63 | G13: 813.32 | H13: 1626.63 | I13: 1626.63 | J13: 813.32 | K13: 1626.63 | L13: 0 | M13: 0 | N13: 0 | O13: 0.00%
A14: 4 | B14: Index | C14: NIFTYINFRA | D14: 3500.75 | E14: 1166.92 | F14: 2333.83 | G14: 1166.92 | H14: 2333.83 | I14: 2333.83 | J14: 1166.92 | K14: 2333.83 | L14: 0 | M14: 0 | N14: 0 | O14: 0.00%
A15: 5 | B15: Index | C15: NIFTYIT | D15: 14601.00 | E15: 14526.00 | F15: 14327.00 | G15: 14053.00 | H15: 13854.00 | I15: 14800.00 | J15: 14999.00 | K15: 15273.00 | L15: 14725 | M15: 14252 | N15: 44050 | O15: 4.51%
A16: 6 | B16: Index | C16: NIFTYMID50 | D16: 4765.30 | E16: 4805.20 | F16: 4725.40 | G16: 4685.50 | H16: 4605.70 | I16: 4845.10 | J16: 4924.90 | K16: 4964.80 | L16: 4885 | M16: 4765.3 | N16: 591800 | O16: 0.00%
A17: 7 | B17: Index | C17: NIFTYPSE | D17: 3893.55 | E17: 1297.85 | F17: 2595.70 | G17: 1297.85 | H17: 2595.70 | I17: 2595.70 | J17: 1297.85 | K17: 2595.70 | L17: 0 | M17: 0 | N17: 0 | O17: 0.00%
A18: 8 | B18: Cement | C18: ACC | D18: 1270.85 | E18: 1292.00 | F18: 1243.75 | G18: 1216.65 | H18: 1168.40 | I18: 1319.10 | J18: 1367.35 | K18: 1394.45 | L18: 1340.25 | M18: 1264.9 | N18: 2078400 | O18: 8.11%
A19: 9 | B19: Others | C19: ADANIENT | D19: 133.85 | E19: 132.90 | F19: 130.40 | G19: 126.95 | H19: 124.45 | I19: 136.35 | J19: 138.85 | K19: 142.30 | L19: 135.4 | M19: 129.45 | N19: 33816000 | O19: 15.49%
A20: 10 | B20: Others | C20: ADANIPORTS | D20: 358.90 | E20: 361.82 | F20: 354.13 | G20: 349.37 | H20: 341.68 | I20: 366.58 | J20: 374.27 | K20: 379.03 | L20: 369.5 | M20: 357.05 | N20: 11117500 | O20: 0.91%
A21: 11 | B21: Power | C21: ADANIPOWER | D21: 19.65 | E21: 19.57 | F21: 18.98 | G21: 18.32 | H21: 17.73 | I21: 20.23 | J21: 20.82 | K21: 21.48 | L21: 20.15 | M21: 18.9 | N21: 134040000 | O21: 1.41%
A22: 12 | B22: Pharma | C22: AJANTPHARM | D22: 951.15 | E22: 974.42 | F22: 923.08 | G22: 895.02 | H22: 843.68 | I22: 1002.48 | J22: 1053.82 | K22: 1081.88 | L22: 1025.75 | M22: 946.35 | N22: 935000 | O22: 5.83%
A23: 13 | B23: Banking | C23: ALBK | D23: 39.55 | E23: 39.55 | F23: 38.75 | G23: 37.95 | H23: 37.15 | I23: 40.35 | J23: 41.15 | K23: 41.95 | L23: 40.35 | M23: 38.75 | N23: 13431000 | O23: 0.41%
A24: 14 | B24: Automobile | C24: AMARAJABAT | D24: 779.85 | E24: 785.68 | F24: 769.72 | G24: 759.58 | H24: 743.62 | I24: 795.82 | J24: 811.78 | K24: 821.92 | L24: 801.65 | M24: 775.55 | N24: 1495900 | O24: -4.77%
A25: 15 | B25: Cement | C25: AMBUJACEM | D25: 190.95 | E25: 193.08 | F25: 187.87 | G25: 184.78 | H25: 179.57 | I25: 196.17 | J25: 201.38 | K25: 204.47 | L25: 198.3 | M25: 190 | N25: 17527500 | O25: 0.03%
A26: 16 | B26: Banking | C26: ANDHRABANK | D26: 29.60 | E26: 29.82 | F26: 29.13 | G26: 28.67 | H26: 27.98 | I26: 30.28 | J26: 30.97 | K26: 31.43 | L26: 30.5 | M26: 29.35 | N26: 26559000 | O26: 0.49%
A27: 17 | B27: Others | C27: APOLLOHOSP | D27: 943.65 | E27: 957.15 | F27: 925.50 | G27: 907.35 | H27: 875.70 | I27: 975.30 | J27: 1006.95 | K27: 1025.10 | L27: 988.8 | M27: 939 | N27: 1020500 | O27: 9.61%
A28: 18 | B28: Automobile | C28: APOLLOTYRE | D28: 262.85 | E28: 262.32 | F28: 259.98 | G28: 257.12 | H28: 254.78 | I28: 265.18 | J28: 267.52 | K28: 270.38 | L28: 264.65 | M28: 259.45 | N28: 7941000 | O28: 3.08%
A29: 19 | B29: Textile | C29: ARVIND | D29: 388.15 | E29: 396.02 | F29: 376.23 | G29: 364.32 | H29: 344.53 | I29: 407.93 | J29: 427.72 | K29: 439.63 | L29: 415.8 | M29: 384.1 | N29: 5082000 | O29: -5.54%
A30: 20 | B30: Automobile | C30: ASHOKLEY | D30: 126.15 | E30: 127.08 | F30: 119.67 | G30: 113.18 | H30: 105.77 | I30: 133.57 | J30: 140.98 | K30: 147.47 | L30: 134.5 | M30: 120.6 | N30: 72012000 | O30: 3.52%
A31: 21 | B31: FMCG | C31: ASIANPAINT | D31: 1361.50 | E31: 1370.62 | F31: 1347.28 | G31: 1333.07 | H31: 1309.73 | I31: 1384.83 | J31: 1408.17 | K31: 1422.38 | L31: 1393.95 | M31: 1356.4 | N31: 5824200 | O31: 1.67%
A32: 22 | B32: Pharma | C32: AUROPHARMA | D32: 572.80 | E32: 584.65 | F32: 557.30 | G32: 541.80 | H32: 514.45 | I32: 600.15 | J32: 627.50 | K32: 643.00 | L32: 612 | M32: 569.15 | N32: 20587000 | O32: 0.38%
A33: 23 | B33: Banking | C33: AXISBANK | D33: 523.10 | E33: 524.65 | F33: 517.80 | G33: 512.50 | H33: 505.65 | I33: 529.95 | J33: 536.80 | K33: 542.10 | L33: 531.5 | M33: 519.35 | N33: 40724400 | O33: -0.09%
A34: 24 | B34: Automobile | C34: BAJAJ-AUTO | D34: 3111.45 | E34: 3127.88 | F34: 3083.57 | G34: 3055.68 | H34: 3011.37 | I34: 3155.77 | J34: 3200.08 | K34: 3227.97 | L34: 3172.2 | M34: 3100 | N34: 2865000 | O34: -1.38%
A35: 25 | B35: Others | C35: BAJAJFINSV | D35: 6267.60 | E35: 6306.00 | F35: 6197.40 | G35: 6127.20 | H35: 6018.60 | I35: 6376.20 | J35: 6484.80 | K35: 6555.00 | L35: 6414.6 | M35: 6235.8 | N35: 728500 | O35: 0.57%
A36: 26 | B36: Finance | C36: BAJFINANCE | D36: 2472.95 | E36: 2478.27 | F36: 2457.53 | G36: 2442.12 | H36: 2421.38 | I36: 2493.68 | J36: 2514.42 | K36: 2529.83 | L36: 2499 | M36: 2462.85 | N36: 5211000 | O36: -2.02%
A37: 27 | B37: Others | C37: BALKRISIND | D37: 1139.25 | E37: 1148.97 | F37: 1120.28 | G37: 1101.32 | H37: 1072.63 | I37: 1167.93 | J37: 1196.62 | K37: 1215.58 | L37: 1177.65 | M37: 1130 | N37: 1031200 | O37: -7.20%
A38: 28 | B38: Others | C38: BALRAMCHIN | D38: 66.85 | E38: 66.97 | F38: 65.78 | G38: 64.72 | H38: 63.53 | I38: 68.03 | J38: 69.22 | K38: 70.28 | L38: 68.15 | M38: 65.9 | N38: 14210000 | O38: -2.92%
A39: 29 | B39: Banking | C39: BANKBARODA | D39: 113.15 | E39: 114.25 | F39: 111.00 | G39: 108.85 | H39: 105.60 | I39: 116.40 | J39: 119.65 | K39: 121.80 | L39: 117.5 | M39: 112.1 | N39: 69472000 | O39: -1.56%
A40: 30 | B40: Banking | C40: BANKINDIA | D40: 77.40 | E40: 78.78 | F40: 75.52 | G40: 73.63 | H40: 70.37 | I40: 80.67 | J40: 83.93 | K40: 85.82 | L40: 82.05 | M40: 76.9 | N40: 28836000 | O40: 0.78%
A41: 31 | B41: FMCG | C41: BATAINDIA | D41: 821.45 | E41: 823.77 | F41: 813.38 | G41: 805.32 | H41: 794.93 | I41: 831.83 | J41: 842.22 | K41: 850.28 | L41: 834.15 | M41: 815.7 | N41: 3964400 | O41: 3.50%
A42: 32 | B42: Capital_Goods | C42: BEL | D42: 101.30 | E42: 102.42 | F42: 99.43 | G42: 97.57 | H42: 94.58 | I42: 104.28 | J42: 107.27 | K42: 109.13 | L42: 105.4 | M42: 100.55 | N42: 34887600 | O42: -0.56%
A43: 33 | B43: Infrastructure | C43: BEML | D43: 771.05 | E43: 776.12 | F43: 756.18 | G43: 741.32 | H43: 721.38 | I43: 790.98 | J43: 810.92 | K43: 825.78 | L43: 796.05 | M43: 761.25 | N43: 1917000 | O43: 2.05%
A44: 34 | B44: Others | C44: BERGEPAINT | D44: 298.85 | E44: 300.43 | F44: 294.42 | G44: 289.98 | H44: 283.97 | I44: 304.87 | J44: 310.88 | K44: 315.32 | L44: 306.45 | M44: 296 | N44: 1940400 | O44: 1.97%
A45: 35 | B45: Finance | C45: BHARATFIN | D45: 1162.60 | E45: 1169.10 | F45: 1152.70 | G45: 1142.80 | H45: 1126.40 | I45: 1179.00 | J45: 1195.40 | K45: 1205.30 | L45: 1185.5 | M45: 1159.2 | N45: 5151000 | O45: 1.64%
A46: 36 | B46: Automobile | C46: BHARATFORG | D46: 590.70 | E46: 596.58 | F46: 582.32 | G46: 573.93 | H46: 559.67 | I46: 604.97 | J46: 619.23 | K46: 627.62 | L46: 610.85 | M46: 588.2 | N46: 8385600 | O46: 2.00%
A47: 37 | B47: Telecom | C47: BHARTIARTL | D47: 346.95 | E47: 350.62 | F47: 340.83 | G47: 334.72 | H47: 324.93 | I47: 356.73 | J47: 366.52 | K47: 372.63 | L47: 360.4 | M47: 344.5 | N47: 46161800 | O47: -0.22%
A48: 38 | B48: Capital_Goods | C48: BHEL | D48: 65.10 | E48: 65.65 | F48: 64.30 | G48: 63.50 | H48: 62.15 | I48: 66.45 | J48: 67.80 | K48: 68.60 | L48: 67 | M48: 64.85 | N48: 51907500 | O48: 1.66%
A49: 39 | B49: Pharma | C49: BIOCON | D49: 582.85 | E49: 588.10 | F49: 573.90 | G49: 564.95 | H49: 550.75 | I49: 597.05 | J49: 611.25 | K49: 620.20 | L49: 602.3 | M49: 579.15 | N49: 10114200 | O49: -0.53%
A50: 40 | B50: Automobile | C50: BOSCHLTD | D50: 17377.75 | E50: 17474.72 | F50: 17223.33 | G50: 17068.92 | H50: 16817.53 | I50: 17629.13 | J50: 17880.52 | K50: 18034.93 | L50: 17726.1 | M50: 17320.3 | N50: 139860 | O50: 0.04%
A51: 41 | B51: Oil_Gas | C51: BPCL | D51: 382.50 | E51: 384.92 | F51: 378.03 | G51: 373.57 | H51: 366.68 | I51: 389.38 | J51: 396.27 | K51: 400.73 | L51: 391.8 | M51: 380.45 | N51: 11084400 | O51: -0.81%
A52: 42 | B52: FMCG | C52: BRITANNIA | D52: 6552.50 | E52: 6547.17 | F52: 6517.33 | G52: 6482.17 | H52: 6452.33 | I52: 6582.33 | J52: 6612.17 | K52: 6647.33 | L52: 6577 | M52: 6512 | N52: 807600 | O52: 0.02%
A53: 43 | B53: Pharma | C53: CADILAHC | D53: 350.05 | E53: 354.88 | F53: 343.77 | G53: 337.48 | H53: 326.37 | I53: 361.17 | J53: 372.28 | K53: 378.57 | L53: 366 | M53: 348.6 | N53: 9032000 | O53: -3.39%
A54: 44 | B54: Banking | C54: CANBK | D54: 222.80 | E54: 224.93 | F54: 218.42 | G54: 214.03 | H54: 207.52 | I54: 229.32 | J54: 235.83 | K54: 240.22 | L54: 231.45 | M54: 220.55 | N54: 14222000 | O54: 1.07%
A55: 45 | B55: Others | C55: CANFINHOME | D55: 324.15 | E55: 327.18 | F55: 317.47 | G55: 310.78 | H55: 301.07 | I55: 333.87 | J55: 343.58 | K55: 350.27 | L55: 336.9 | M55: 320.5 | N55: 3976250 | O55: -3.14%
A56: 46 | B56: Finance | C56: CAPF | D56: 480.75 | E56: 487.90 | F56: 471.95 | G56: 463.15 | H56: 447.20 | I56: 496.70 | J56: 512.65 | K56: 521.45 | L56: 503.85 | M56: 479.1 | N56: 7661600 | O56: -1.95%
A57: 47 | B57: Oil_Gas | C57: CASTROLIND | D57: 156.00 | E57: 156.35 | F57: 153.85 | G57: 151.70 | H57: 149.20 | I57: 158.50 | J57: 161.00 | K57: 163.15 | L57: 158.85 | M57: 154.2 | N57: 11071200 | O57: 1.33%
A58: 48 | B58: Automobile | C58: CEATLTD | D58: 1241.70 | E58: 1251.33 | F58: 1225.67 | G58: 1209.63 | H58: 1183.97 | I58: 1267.37 | J58: 1293.03 | K58: 1309.07 | L58: 1277 | M58: 1235.3 | N58: 1636950 | O58: -0.76%
A59: 49 | B59: Textile | C59: CENTURYTEX | D59: 841.05 | E59: 854.03 | F59: 823.02 | G59: 804.98 | H59: 773.97 | I59: 872.07 | J59: 903.08 | K59: 921.12 | L59: 885.05 | M59: 836 | N59: 5587450 | O59: -0.86%
A60: 50 | B60: Power | C60: CESC | D60: 885.65 | E60: 895.10 | F60: 872.55 | G60: 859.45 | H60: 836.90 | I60: 908.20 | J60: 930.75 | K60: 943.85 | L60: 917.65 | M60: 882 | N60: 5823950 | O60: -1.44%
A61: 51 | B61: Power | C61: CGPOWER | D61: 54.90 | E61: 55.48 | F61: 53.67 | G61: 52.43 | H61: 50.62 | I61: 56.72 | J61: 58.53 | K61: 59.77 | L61: 57.3 | M61: 54.25 | N61: 33720000 | O61: -2.60%
A62: 52 | B62: Others | C62: CHENNPETRO | D62: 267.60 | E62: 272.68 | F62: 258.42 | G62: 249.23 | H62: 234.97 | I62: 281.87 | J62: 296.13 | K62: 305.32 | L62: 286.95 | M62: 263.5 | N62: 2215500 | O62: -2.89%
A63: 53 | B63: Others | C63: CHOLAFIN | D63: 1540.35 | E63: 1541.67 | F63: 1508.88 | G63: 1477.42 | H63: 1444.63 | I63: 1573.13 | J63: 1605.92 | K63: 1637.38 | L63: 1574.45 | M63: 1510.2 | N63: 694000 | O63: -9.99%
A64: 54 | B64: Pharma | C64: CIPLA | D64: 619.75 | E64: 622.27 | F64: 609.73 | G64: 599.72 | H64: 587.18 | I64: 632.28 | J64: 644.82 | K64: 654.83 | L64: 634.8 | M64: 612.25 | N64: 8675000 | O64: -0.41%
A65: 55 | B65: Others | C65: COALINDIA | D65: 261.30 | E65: 263.20 | F65: 258.50 | G65: 255.70 | H65: 251.00 | I65: 266.00 | J65: 270.70 | K65: 273.50 | L65: 267.9 | M65: 260.4 | N65: 20361000 | O65: -0.83%
A66: 56 | B66: FMCG | C66: COLPAL | D66: 1143.10 | E66: 1149.55 | F66: 1126.95 | G66: 1110.80 | H66: 1088.20 | I66: 1165.70 | J66: 1188.30 | K66: 1204.45 | L66: 1172.15 | M66: 1133.4 | N66: 2433900 | O66: -1.11%
A67: 57 | B67: Others | C67: CONCOR | D67: 625.90 | E67: 626.65 | F67: 614.30 | G67: 602.70 | H67: 590.35 | I67: 638.25 | J67: 650.60 | K67: 662.20 | L67: 639 | M67: 615.05 | N67: 3128750 | O67: 2.54%
A68: 58 | B68: Capital_Goods | C68: CUMMINSIND | D68: 623.70 | E68: 628.98 | F68: 614.92 | G68: 606.13 | H68: 592.07 | I68: 637.77 | J68: 651.83 | K68: 660.62 | L68: 643.05 | M68: 620.2 | N68: 814100 | O68: -0.60%
A69: 59 | B69: FMCG | C69: DABUR | D69: 368.70 | E69: 371.13 | F69: 364.62 | G69: 360.53 | H69: 354.02 | I69: 375.22 | J69: 381.73 | K69: 385.82 | L69: 377.65 | M69: 367.05 | N69: 19627500 | O69: 0.63%
A70: 60 | B70: Cement | C70: DALMIABHA | D70: 2329.55 | E70: 2323.18 | F70: 2291.37 | G70: 2253.18 | H70: 2221.37 | I70: 2361.37 | J70: 2393.18 | K70: 2431.37 | L70: 2355 | M70: 2285 | N70: 611700 | O70: -7.57%
A71: 61 | B71: Banking | C71: DCBBANK | D71: 161.30 | E71: 165.17 | F71: 155.33 | G71: 149.37 | H71: 139.53 | I71: 171.13 | J71: 180.97 | K71: 186.93 | L71: 175 | M71: 159.2 | N71: 7101000 | O71: -16.73%
A72: 62 | B72: Finance | C72: DHFL | D72: 587.35 | E72: 590.83 | F72: 576.62 | G72: 565.88 | H72: 551.67 | I72: 601.57 | J72: 615.78 | K72: 626.52 | L72: 605.05 | M72: 580.1 | N72: 25432500 | O72: 0.13%
A73: 63 | B73: Media | C73: DISHTV | D73: 68.95 | E73: 70.67 | F73: 66.63 | G73: 64.32 | H73: 60.28 | I73: 72.98 | J73: 77.02 | K73: 79.33 | L73: 74.7 | M73: 68.35 | N73: 49576000 | O73: -2.88%
A74: 64 | B74: Pharma | C74: DIVISLAB | D74: 1068.70 | E74: 1081.72 | F74: 1049.48 | G74: 1030.27 | H74: 998.03 | I74: 1100.93 | J74: 1133.17 | K74: 1152.38 | L74: 1113.95 | M74: 1062.5 | N74: 2312800 | O74: -1.67%
A75: 65 | B75: Realty | C75: DLF | D75: 178.60 | E75: 181.77 | F75: 174.03 | G75: 169.47 | H75: 161.73 | I75: 186.33 | J75: 194.07 | K75: 198.63 | L75: 189.5 | M75: 177.2 | N75: 33067500 | O75: 2.00%
A76: 66 | B76: Pharma | C76: DRREDDY | D76: 2092.85 | E76: 2127.10 | F76: 2039.45 | G76: 1986.05 | H76: 1898.40 | I76: 2180.50 | J76: 2268.15 | K76: 2321.55 | L76: 2214.75 | M76: 2073.7 | N76: 4812250 | O76: 5.83%
A77: 67 | B77: Automobile | C77: EICHERMOT | D77: 27468.55 | E77: 27460.05 | F77: 27098.55 | G77: 26728.55 | H77: 26367.05 | I77: 27830.05 | J77: 28191.55 | K77: 28561.55 | L77: 27821.55 | M77: 27090.05 | N77: 257350 | O77: -0.75%
A78: 68 | B78: Infrastructure | C78: ENGINERSIN | D78: 121.45 | E78: 121.63 | F78: 119.52 | G78: 117.58 | H78: 115.47 | I78: 123.57 | J78: 125.68 | K78: 127.62 | L78: 123.75 | M78: 119.7 | N78: 8711500 | O78: -2.96%
A79: 69 | B79: Finance | C79: EQUITAS | D79: 134.55 | E79: 135.60 | F79: 132.95 | G79: 131.35 | H79: 128.70 | I79: 137.20 | J79: 139.85 | K79: 141.45 | L79: 138.25 | M79: 134 | N79: 19916000 | O79: -0.40%
A80: 70 | B80: Automobile | C80: ESCORTS | D80: 875.05 | E80: 884.70 | F80: 848.90 | G80: 822.75 | H80: 786.95 | I80: 910.85 | J80: 946.65 | K80: 972.80 | L80: 920.5 | M80: 858.55 | N80: 3931400 | O80: -2.85%
A81: 71 | B81: Automobile | C81: EXIDEIND | D81: 262.50 | E81: 262.48 | F81: 258.12 | G81: 253.73 | H81: 249.37 | I81: 266.87 | J81: 271.23 | K81: 275.62 | L81: 266.85 | M81: 258.1 | N81: 10936000 | O81: -0.73%
A82: 72 | B82: Banking | C82: FEDERALBNK | D82: 74.15 | E82: 75.55 | F82: 72.35 | G82: 70.55 | H82: 67.35 | I82: 77.35 | J82: 80.55 | K82: 82.35 | L82: 78.75 | M82: 73.75 | N82: 70917000 | O82: -2.21%
A83: 73 | B83: Oil_Gas | C83: GAIL | D83: 356.90 | E83: 356.33 | F83: 352.17 | G83: 347.43 | H83: 343.27 | I83: 361.07 | J83: 365.23 | K83: 369.97 | L83: 360.5 | M83: 351.6 | N83: 13246989 | O83: -0.98%
A84: 74 | B84: Pharma | C84: GLENMARK | D84: 551.90 | E84: 554.92 | F84: 546.38 | G84: 540.87 | H84: 532.33 | I84: 560.43 | J84: 568.97 | K84: 574.48 | L84: 563.45 | M84: 549.4 | N84: 4751000 | O84: -1.68%
A85: 75 | B85: Infrastructure | C85: GMRINFRA | D85: 17.55 | E85: 17.67 | F85: 17.28 | G85: 17.02 | H85: 16.63 | I85: 17.93 | J85: 18.32 | K85: 18.58 | L85: 18.05 | M85: 17.4 | N85: 220275000 | O85: 0.91%
A86: 76 | B86: Others | C86: GODFRYPHLP | D86: 703.40 | E86: 712.17 | F86: 692.28 | G86: 681.17 | H86: 661.28 | I86: 723.28 | J86: 743.17 | K86: 754.28 | L86: 732.05 | M86: 701.05 | N86: 455000 | O86: 1.09%
A87: 77 | B87: FMCG | C87: GODREJCP | D87: 1305.75 | E87: 1319.32 | F87: 1287.73 | G87: 1269.72 | H87: 1238.13 | I87: 1337.33 | J87: 1368.92 | K87: 1386.93 | L87: 1350.9 | M87: 1301.3 | N87: 1988800 | O87: -0.32%
A88: 78 | B88: FMCG | C88: GODREJIND | D88: 575.20 | E88: 577.87 | F88: 569.33 | G88: 563.47 | H88: 554.93 | I88: 583.73 | J88: 592.27 | K88: 598.13 | L88: 586.4 | M88: 572 | N88: 2152500 | O88: -3.04%
A89: 79 | B89: Pharma | C89: GRANULES | D89: 88.05 | E89: 89.22 | F89: 86.13 | G89: 84.22 | H89: 81.13 | I89: 91.13 | J89: 94.22 | K89: 96.13 | L89: 92.3 | M89: 87.3 | N89: 14140000 | O89: 0.96%
A90: 80 | B90: Cement | C90: GRASIM | D90: 928.30 | E90: 927.38 | F90: 918.67 | G90: 909.03 | H90: 900.32 | I90: 937.02 | J90: 945.73 | K90: 955.37 | L90: 936.1 | M90: 917.75 | N90: 6669750 | O90: 0.86%
A91: 81 | B91: Others | C91: GSFC | D91: 103.05 | E91: 104.35 | F91: 101.05 | G91: 99.05 | H91: 95.75 | I91: 106.35 | J91: 109.65 | K91: 111.65 | L91: 107.65 | M91: 102.35 | N91: 15813000 | O91: 2.48%
A92: 82 | B92: Others | C92: HAVELLS | D92: 560.80 | E92: 562.18 | F92: 553.37 | G92: 545.93 | H92: 537.12 | I92: 569.62 | J92: 578.43 | K92: 585.87 | L92: 571 | M92: 554.75 | N92: 4176000 | O92: -0.19%
A93: 83 | B93: Others | C93: HCC | D93: 10.60 | E93: 10.85 | F93: 10.25 | G93: 9.90 | H93: 9.30 | I93: 11.20 | J93: 11.80 | K93: 12.15 | L93: 11.45 | M93: 10.5 | N93: 41886000 | O93: 3.98%
A94: 84 | B94: Technology | C94: HCLTECH | D94: 975.40 | E94: 980.60 | F94: 967.50 | G94: 959.60 | H94: 946.50 | I94: 988.50 | J94: 1001.60 | K94: 1009.50 | L94: 993.7 | M94: 972.7 | N94: 9918300 | O94: 0.14%
A95: 85 | B95: Finance | C95: HDFC | D95: 1973.30 | E95: 1969.58 | F95: 1959.12 | G95: 1944.93 | H95: 1934.47 | I95: 1983.77 | J95: 1994.23 | K95: 2008.42 | L95: 1980.05 | M95: 1955.4 | N95: 24907000 | O95: -1.29%
A96: 86 | B96: Banking | C96: HDFCBANK | D96: 2174.45 | E96: 2178.80 | F96: 2164.75 | G96: 2155.05 | H96: 2141.00 | I96: 2188.50 | J96: 2202.55 | K96: 2212.25 | L96: 2192.85 | M96: 2169.1 | N96: 20938000 | O96: -4.85%
A97: 88 | B97: Automobile | C97: HEROMOTOCO | D97: 3434.25 | E97: 3446.13 | F97: 3413.37 | G97: 3392.48 | H97: 3359.72 | I97: 3467.02 | J97: 3499.78 | K97: 3520.67 | L97: 3478.9 | M97: 3425.25 | N97: 1838400 | O97: -0.94%
A98: 89 | B98: Technology | C98: HEXAWARE | D98: 497.45 | E98: 498.18 | F98: 492.37 | G98: 487.28 | H98: 481.47 | I98: 503.27 | J98: 509.08 | K98: 514.17 | L98: 504 | M98: 493.1 | N98: 4987500 | O98: -5.27%
A99: 90 | B99: Metals | C99: HINDALCO | D99: 212.95 | E99: 215.32 | F99: 209.93 | G99: 206.92 | H99: 201.53 | I99: 218.33 | J99: 223.72 | K99: 226.73 | L99: 220.7 | M99: 212.3 | N99: 36445500 | O99: 1.04%
A100: 91 | B100: Oil_Gas | C100: HINDPETRO | D100: 264.45 | E100: 266.70 | F100: 261.25 | G100: 258.05 | H100: 252.60 | I100: 269.90 | J100: 275.35 | K100: 278.55 | L100: 272.15 | M100: 263.5 | N100: 26619075 | O100: -2.78%
A101: 92 | B101: FMCG | C101: HINDUNILVR | D101: 1756.00 | E101: 1761.08 | F101: 1742.72 | G101: 1729.43 | H101: 1711.07 | I101: 1774.37 | J101: 1792.73 | K101: 1806.02 | L101: 1779.45 | M101: 1747.8 | N101: 9555000 | O101: 1.61%
A102: 93 | B102: Metals | C102: HINDZINC | D102: 263.90 | E102: 266.13 | F102: 260.57 | G102: 257.23 | H102: 251.67 | I102: 269.47 | J102: 275.03 | K102: 278.37 | L102: 271.7 | M102: 262.8 | N102: 14352000 | O102: 2.84%
A103: 94 | B103: Finance | C103: IBULHSGFIN | D103: 1138.50 | E103: 1133.37 | F103: 1121.73 | G103: 1104.97 | H103: 1093.33 | I103: 1150.13 | J103: 1161.77 | K103: 1178.53 | L103: 1145 | M103: 1116.6 | N103: 16212000 | O103: -0.95%
A104: 95 | B104: Banking | C104: ICICIBANK | D104: 260.20 | E104: 261.42 | F104: 255.98 | G104: 251.77 | H104: 246.33 | I104: 265.63 | J104: 271.07 | K104: 275.28 | L104: 266.85 | M104: 257.2 | N104: 142939500 | O104: 0.46%
A105: 96 | B105: Others | C105: ICICIPRULI | D105: 352.75 | E105: 355.57 | F105: 348.08 | G105: 343.42 | H105: 335.93 | I105: 360.23 | J105: 367.72 | K105: 372.38 | L105: 363.05 | M105: 350.9 | N105: 8414900 | O105: -1.95%
A106: 97 | B106: Banking | C106: IDBI | D106: 56.65 | E106: 56.45 | F106: 53.55 | G106: 50.45 | H106: 47.55 | I106: 59.55 | J106: 62.45 | K106: 65.55 | L106: 59.35 | M106: 53.35 | N106: 62220000 | O106: 3.17%
A107: 98 | B107: Telecom | C107: IDEA | D107: 52.35 | E107: 53.02 | F107: 51.43 | G107: 50.52 | H107: 48.93 | I107: 53.93 | J107: 55.52 | K107: 56.43 | L107: 54.6 | M107: 52.1 | N107: 132328000 | O107: -1.22%
A108: 99 | B108: Finance | C108: IDFC | D108: 42.45 | E108: 43.00 | F108: 41.55 | G108: 40.65 | H108: 39.20 | I108: 43.90 | J108: 45.35 | K108: 46.25 | L108: 44.45 | M108: 42.1 | N108: 143286000 | O108: -2.07%
A109: 100 | B109: Banking | C109: IDFCBANK | D109: 35.35 | E109: 35.93 | F109: 34.47 | G109: 33.58 | H109: 32.12 | I109: 36.82 | J109: 38.28 | K109: 39.17 | L109: 37.4 | M109: 35.05 | N109: 189629000 | O109: -0.47%
A110: 101 | B110: Finance | C110: IFCI | D110: 14.65 | E110: 14.75 | F110: 14.45 | G110: 14.25 | H110: 13.95 | I110: 14.95 | J110: 15.25 | K110: 15.45 | L110: 15.05 | M110: 14.55 | N110: 65775000 | O110: 1.27%
A111: 102 | B111: Oil_Gas | C111: IGL | D111: 263.30 | E111: 259.90 | F111: 255.60 | G111: 247.90 | H111: 243.60 | I111: 267.60 | J111: 271.90 | K111: 279.60 | L111: 264.2 | M111: 252.2 | N111: 4782250 | O111: -16.15%
A112: 103 | B112: Cement | C112: INDIACEM | D112: 99.75 | E112: 102.10 | F112: 96.80 | G112: 93.85 | H112: 88.55 | I112: 105.05 | J112: 110.35 | K112: 113.30 | L112: 107.4 | M112: 99.15 | N112: 22470000 | O112: -0.59%
A113: 104 | B113: Banking | C113: INDIANB | D113: 322.90 | E113: 326.15 | F113: 317.30 | G113: 311.70 | H113: 302.85 | I113: 331.75 | J113: 340.60 | K113: 346.20 | L113: 335 | M113: 320.55 | N113: 2516000 | O113: -1.41%
A114: 105 | B114: Others | C114: INDIGO | D114: 1090.00 | E114: 1087.17 | F114: 1074.88 | G114: 1059.77 | H114: 1047.48 | I114: 1102.28 | J114: 1114.57 | K114: 1129.68 | L114: 1099.45 | M114: 1072.05 | N114: 4723200 | O114: 0.28%
A115: 106 | B115: Banking | C115: INDUSINDBK | D115: 1922.55 | E115: 1929.75 | F115: 1909.80 | G115: 1897.05 | H115: 1877.10 | I115: 1942.50 | J115: 1962.45 | K115: 1975.20 | L115: 1949.7 | M115: 1917 | N115: 7009200 | O115: -3.01%
A116: 107 | B116: Technology | C116: INFIBEAM | D116: 155.60 | E116: 156.20 | F116: 153.45 | G116: 151.30 | H116: 148.55 | I116: 158.35 | J116: 161.10 | K116: 163.25 | L116: 158.95 | M116: 154.05 | N116: 46700000 | O116: 0.68%
A117: 108 | B117: Telecom | C117: INFRATEL | D117: 287.20 | E117: 287.55 | F117: 284.70 | G117: 282.20 | H117: 279.35 | I117: 290.05 | J117: 292.90 | K117: 295.40 | L117: 290.4 | M117: 285.05 | N117: 6512700 | O117: 0.71%
A118: 109 | B118: Technology | C118: INFY | D118: 1337.80 | E118: 1338.83 | F118: 1289.97 | G118: 1242.13 | H118: 1193.27 | I118: 1386.67 | J118: 1435.53 | K118: 1483.37 | L118: 1387.7 | M118: 1291 | N118: 28309200 | O118: -1.52%
A119: 110 | B119: Oil_Gas | C119: IOC | D119: 157.95 | E119: 158.65 | F119: 156.75 | G119: 155.55 | H119: 153.65 | I119: 159.85 | J119: 161.75 | K119: 162.95 | L119: 160.55 | M119: 157.45 | N119: 30348000 | O119: -2.34%
A120: 111 | B120: Infrastructure | C120: IRB | D120: 189.45 | E120: 193.38 | F120: 182.07 | G120: 174.68 | H120: 163.37 | I120: 200.77 | J120: 212.08 | K120: 219.47 | L120: 204.7 | M120: 186 | N120: 17662500 | O120: -1.13%
A121: 112 | B121: FMCG | C121: ITC | D121: 272.30 | E121: 272.25 | F121: 270.60 | G121: 268.90 | H121: 267.25 | I121: 273.95 | J121: 275.60 | K121: 277.30 | L121: 273.9 | M121: 270.55 | N121: 76917600 | O121: -1.07%
A122: 113 | B122: Others | C122: JETAIRWAYS | D122: 306.50 | E122: 313.37 | F122: 296.13 | G122: 285.77 | H122: 268.53 | I122: 323.73 | J122: 340.97 | K122: 351.33 | L122: 330.6 | M122: 303 | N122: 6294000 | O122: -7.46%
A123: 114 | B123: Metals | C123: JINDALSTEL | D123: 196.00 | E123: 198.87 | F123: 190.38 | G123: 184.77 | H123: 176.28 | I123: 204.48 | J123: 212.97 | K123: 218.58 | L123: 207.35 | M123: 193.25 | N123: 32094000 | O123: -4.09%
A124: 115 | B124: Others | C124: JISLJALEQS | D124: 78.00 | E124: 79.77 | F124: 75.78 | G124: 73.57 | H124: 69.58 | I124: 81.98 | J124: 85.97 | K124: 88.18 | L124: 83.75 | M124: 77.55 | N124: 42957000 | O124: -0.71%
A125: 116 | B125: Realty | C125: JPASSOCIAT | D125: 14.10 | E125: 14.38 | F125: 13.42 | G125: 12.73 | H125: 11.77 | I125: 15.07 | J125: 16.03 | K125: 16.72 | L125: 15.35 | M125: 13.7 | N125: 195330000 | O125: -1.25%
A126: 117 | B126: Metals | C126: JSWSTEEL | D126: 308.65 | E126: 311.57 | F126: 304.13 | G126: 299.62 | H126: 292.18 | I126: 316.08 | J126: 323.52 | K126: 328.03 | L126: 319 | M126: 307.05 | N126: 65778000 | O126: 0.44%
A127: 118 | B127: Others | C127: JUBLFOOD | D127: 1424.50 | E127: 1426.93 | F127: 1404.57 | G127: 1384.63 | H127: 1362.27 | I127: 1446.87 | J127: 1469.23 | K127: 1489.17 | L127: 1449.3 | M127: 1407 | N127: 4110000 | O127: 5.70%
A128: 119 | B128: Others | C128: JUSTDIAL | D128: 571.05 | E128: 569.02 | F128: 554.23 | G128: 537.42 | H128: 522.63 | I128: 585.83 | J128: 600.62 | K128: 617.43 | L128: 583.8 | M128: 552.2 | N128: 4352600 | O128: -0.61%
A129: 120 | B129: Others | C129: KAJARIACER | D129: 440.60 | E129: 445.40 | F129: 432.85 | G129: 425.10 | H129: 412.55 | I129: 453.15 | J129: 465.70 | K129: 473.45 | L129: 457.95 | M129: 437.65 | N129: 1887000 | O129: -3.23%
A130: 121 | B130: Banking | C130: KOTAKBANK | D130: 1412.85 | E130: 1410.18 | F130: 1402.92 | G130: 1392.98 | H130: 1385.72 | I130: 1420.12 | J130: 1427.38 | K130: 1437.32 | L130: 1417.45 | M130: 1400.25 | N130: 12470400 | O130: -4.68%
A131: 122 | B131: Technology | C131: KPIT | D131: 294.85 | E131: 295.67 | F131: 292.68 | G131: 290.52 | H131: 287.53 | I131: 297.83 | J131: 300.82 | K131: 302.98 | L131: 298.65 | M131: 293.5 | N131: 5670000 | O131: -7.83%
A132: 123 | B132: Others | C132: KSCL | D132: 533.65 | E132: 539.23 | F132: 526.42 | G132: 519.18 | H132: 506.37 | I132: 546.47 | J132: 559.28 | K132: 566.52 | L132: 552.05 | M132: 532 | N132: 1755000 | O132: -10.34%
A133: 124 | B133: Banking | C133: KTKBANK | D133: 110.65 | E133: 111.65 | F133: 108.75 | G133: 106.85 | H133: 103.95 | I133: 113.55 | J133: 116.45 | K133: 118.35 | L133: 114.55 | M133: 109.75 | N133: 17820000 | O133: -1.47%
A134: 125 | B134: Finance | C134: L&TFH | D134: 141.60 | E134: 143.20 | F134: 138.90 | G134: 136.20 | H134: 131.90 | I134: 145.90 | J134: 150.20 | K134: 152.90 | L134: 147.5 | M134: 140.5 | N134: 33876000 | O134: -2.64%
A135: 126 | B135: Finance | C135: LICHSGFIN | D135: 489.25 | E135: 492.27 | F135: 483.38 | G135: 477.52 | H135: 468.63 | I135: 498.13 | J135: 507.02 | K135: 512.88 | L135: 501.15 | M135: 486.4 | N135: 10730500 | O135: -2.63%
A136: 127 | B136: Capital_Goods | C136: LT | D136: 1282.50 | E136: 1286.95 | F136: 1274.05 | G136: 1265.60 | H136: 1252.70 | I136: 1295.40 | J136: 1308.30 | K136: 1316.75 | L136: 1299.85 | M136: 1278.5 | N136: 14119500 | O136: -1.01%
A137: 128 | B137: Pharma | C137: LUPIN | D137: 818.30 | E137: 834.03 | F137: 800.07 | G137: 781.83 | H137: 747.87 | I137: 852.27 | J137: 886.23 | K137: 904.47 | L137: 868 | M137: 815.8 | N137: 12028800 | O137: 3.24%
A138: 129 | B138: Automobile | C138: M&M | D138: 903.30 | E138: 906.22 | F138: 894.63 | G138: 885.97 | H138: 874.38 | I138: 914.88 | J138: 926.47 | K138: 935.13 | L138: 917.8 | M138: 897.55 | N138: 15874000 | O138: -1.22%
A139: 130 | B139: Finance | C139: M&MFIN | D139: 467.10 | E139: 466.35 | F139: 460.65 | G139: 454.20 | H139: 448.50 | I139: 472.80 | J139: 478.50 | K139: 484.95 | L139: 472.05 | M139: 459.9 | N139: 9323750 | O139: 3.83%
A140: 131 | B140: Others | C140: MANAPPURAM | D140: 99.50 | E140: 100.33 | F140: 97.72 | G140: 95.93 | H140: 93.32 | I140: 102.12 | J140: 104.73 | K140: 106.52 | L140: 102.95 | M140: 98.55 | N140: 16998000 | O140: 0.75%
A141: 132 | B141: FMCG | C141: MARICO | D141: 353.00 | E141: 354.93 | F141: 349.12 | G141: 345.23 | H141: 339.42 | I141: 358.82 | J141: 364.63 | K141: 368.52 | L141: 360.75 | M141: 351.05 | N141: 5688800 | O141: 6.06%
A142: 133 | B142: Automobile | C142: MARUTI | D142: 9407.75 | E142: 9434.70 | F142: 9343.85 | G142: 9279.95 | H142: 9189.10 | I142: 9498.60 | J142: 9589.45 | K142: 9653.35 | L142: 9525.55 | M142: 9370.8 | N142: 2019975 | O142: -1.20%
A143: 134 | B143: FMCG | C143: MCDOWELL-N | D143: 576.05 | E143: 587.65 | F143: 562.40 | G143: 548.75 | H143: 523.50 | I143: 601.30 | J143: 626.55 | K143: 640.20 | L143: 612.9 | M143: 574 | N143: 11928750 | O143: 0.80%
A144: 135 | B144: Others | C144: MCX | D144: 779.65 | E144: 788.07 | F144: 763.83 | G144: 748.02 | H144: 723.78 | I144: 803.88 | J144: 828.12 | K144: 843.93 | L144: 812.3 | M144: 772.25 | N144: 3391500 | O144: 0.23%
A145: 136 | B145: Finance | C145: MFSL | D145: 428.20 | E145: 431.93 | F145: 419.77 | G145: 411.33 | H145: 399.17 | I145: 440.37 | J145: 452.53 | K145: 460.97 | L145: 444.1 | M145: 423.5 | N145: 2647200 | O145: -3.16%
A146: 137 | B146: Others | C146: MGL | D146: 808.55 | E146: 807.78 | F146: 796.07 | G146: 783.58 | H146: 771.87 | I146: 820.27 | J146: 831.98 | K146: 844.47 | L146: 819.5 | M146: 795.3 | N146: 1630200 | O146: -4.36%
A147: 138 | B147: Technology | C147: MINDTREE | D147: 1086.00 | E147: 1077.40 | F147: 1063.70 | G147: 1041.40 | H147: 1027.70 | I147: 1099.70 | J147: 1113.40 | K147: 1135.70 | L147: 1091.1 | M147: 1055.1 | N147: 4639200 | O147: 15.89%
A148: 139 | B148: Automobile | C148: MOTHERSUMI | D148: 284.20 | E148: 285.35 | F148: 280.50 | G148: 276.80 | H148: 271.95 | I148: 289.05 | J148: 293.90 | K148: 297.60 | L148: 290.2 | M148: 281.65 | N148: 12065600 | O148: -2.96%
A149: 140 | B149: Automobile | C149: MRF | D149: 74483.30 | E149: 75384.40 | F149: 73438.90 | G149: 72394.50 | H149: 70449.00 | I149: 76428.80 | J149: 78374.30 | K149: 79418.70 | L149: 77329.9 | M149: 74340 | N149: 25560 | O149: -3.22%
A150: 141 | B150: Others | C150: MRPL | D150: 73.90 | E150: 75.03 | F150: 72.17 | G150: 70.43 | H150: 67.57 | I150: 76.77 | J150: 79.63 | K150: 81.37 | L150: 77.9 | M150: 73.3 | N150: 6889500 | O150: 0.00%
A151: 142 | B151: Finance | C151: MUTHOOTFIN | D151: 388.70 | E151: 387.13 | F151: 381.12 | G151: 373.53 | H151: 367.52 | I151: 394.72 | J151: 400.73 | K151: 408.32 | L151: 393.15 | M151: 379.55 | N151: 1317000 | O151: 1.86%
A152: 143 | B152: Others | C152: NATIONALUM | D152: 57.20 | E152: 57.62 | F152: 56.23 | G152: 55.27 | H152: 53.88 | I152: 58.58 | J152: 59.97 | K152: 60.93 | L152: 59 | M152: 56.65 | N152: 54496000 | O152: -1.79%
A153: 144 | B153: Others | C153: NBCC | D153: 61.65 | E153: 62.87 | F153: 60.18 | G153: 58.72 | H153: 56.03 | I153: 64.33 | J153: 67.02 | K153: 68.48 | L153: 65.55 | M153: 61.4 | N153: 27378000 | O153: 0.68%
A154: 145 | B154: Infrastructure | C154: NCC | D154: 80.15 | E154: 82.45 | F154: 76.95 | G154: 73.75 | H154: 68.25 | I154: 85.65 | J154: 91.15 | K154: 94.35 | L154: 87.95 | M154: 79.25 | N154: 50360000 | O154: -0.08%
A155: 146 | B155: Others | C155: NESTLEIND | D155: 10202.90 | E155: 10205.03 | F155: 10155.07 | G155: 10107.23 | H155: 10057.27 | I155: 10252.87 | J155: 10302.83 | K155: 10350.67 | L155: 10255 | M155: 10157.2 | N155: 245200 | O155: -1.17%
A156: 147 | B156: Power | C156: NHPC | D156: 23.80 | E156: 23.52 | F156: 23.13 | G156: 22.47 | H156: 22.08 | I156: 24.18 | J156: 24.57 | K156: 25.23 | L156: 23.9 | M156: 22.85 | N156: 25002000 | O156: -7.49%
A157: 148 | B157: Technology | C157: NIITTECH | D157: 1137.85 | E157: 1140.35 | F157: 1126.30 | G157: 1114.75 | H157: 1100.70 | I157: 1151.90 | J157: 1165.95 | K157: 1177.50 | L157: 1154.4 | M157: 1128.8 | N157: 1454250 | O157: -5.23%
A158: 149 | B158: Metals | C158: NMDC | D158: 96.40 | E158: 97.12 | F158: 94.93 | G158: 93.47 | H158: 91.28 | I158: 98.58 | J158: 100.77 | K158: 102.23 | L158: 99.3 | M158: 95.65 | N158: 26844000 | O158: 0.13%
A159: 150 | B159: Power | C159: NTPC | D159: 155.55 | E159: 155.15 | F159: 153.45 | G159: 151.35 | H159: 149.65 | I159: 157.25 | J159: 158.95 | K159: 161.05 | L159: 156.85 | M159: 153.05 | N159: 42856000 | O159: -0.71%
A160: 151 | B160: Technology | C160: OFSS | D160: 3913.95 | E160: 3918.42 | F160: 3886.28 | G160: 3858.62 | H160: 3826.48 | I160: 3946.08 | J160: 3978.22 | K160: 4005.88 | L160: 3950.55 | M160: 3890.75 | N160: 72300 | O160: -3.60%
A161: 152 | B161: Oil_Gas | C161: OIL | D161: 205.90 | E161: 205.72 | F161: 203.48 | G161: 201.07 | H161: 198.83 | I161: 208.13 | J161: 210.37 | K161: 212.78 | L161: 207.95 | M161: 203.3 | N161: 3028509 | O161: -2.41%
A162: 153 | B162: Oil_Gas | C162: ONGC | D162: 154.25 | E162: 154.75 | F162: 152.95 | G162: 151.65 | H162: 149.85 | I162: 156.05 | J162: 157.85 | K162: 159.15 | L162: 156.55 | M162: 153.45 | N162: 38370000 | O162: -0.60%
A163: 154 | B163: Banking | C163: ORIENTBANK | D163: 67.30 | E163: 68.33 | F163: 65.72 | G163: 64.13 | H163: 61.52 | I163: 69.92 | J163: 72.53 | K163: 74.12 | L163: 70.95 | M163: 66.75 | N163: 14004000 | O163: 3.18%
A164: 155 | B164: Textile | C164: PAGEIND | D164: 28234.50 | E164: 28245.15 | F164: 27890.45 | G164: 27546.40 | H164: 27191.70 | I164: 28589.20 | J164: 28943.90 | K164: 29287.95 | L164: 28599.85 | M164: 27901.1 | N164: 55900 | O164: -0.89%
A165: 156 | B165: Others | C165: PCJEWELLER | D165: 89.00 | E165: 92.13 | F165: 82.17 | G165: 75.33 | H165: 65.37 | I165: 98.97 | J165: 108.93 | K165: 115.77 | L165: 102.1 | M165: 85.3 | N165: 10266000 | O165: 9.96%
A166: 157 | B166: Pharma | C166: PEL | D166: 2493.70 | E166: 2500.90 | F166: 2477.80 | G166: 2461.90 | H166: 2438.80 | I166: 2516.80 | J166: 2539.90 | K166: 2555.80 | L166: 2524 | M166: 2485 | N166: 1994710 | O166: -2.68%
A167: 158 | B167: Oil_Gas | C167: PETRONET | D167: 207.95 | E167: 209.70 | F167: 205.75 | G167: 203.55 | H167: 199.60 | I167: 211.90 | J167: 215.85 | K167: 218.05 | L167: 213.65 | M167: 207.5 | N167: 16122000 | O167: 1.88%
A168: 159 | B168: Finance | C168: PFC | D168: 68.25 | E168: 69.00 | F168: 67.10 | G168: 65.95 | H168: 64.05 | I168: 70.15 | J168: 72.05 | K168: 73.20 | L168: 70.9 | M168: 67.85 | N168: 87438000 | O168: -0.80%
A169: 160 | B169: FMCG | C169: PIDILITIND | D169: 1052.20 | E169: 1053.77 | F169: 1036.58 | G169: 1020.97 | H169: 1003.78 | I169: 1069.38 | J169: 1086.57 | K169: 1102.18 | L169: 1070.95 | M169: 1038.15 | N169: 3573000 | O169: -0.94%
A170: 161 | B170: Banking | C170: PNB | D170: 73.80 | E170: 74.23 | F170: 73.07 | G170: 72.33 | H170: 71.17 | I170: 74.97 | J170: 76.13 | K170: 76.87 | L170: 75.4 | M170: 73.5 | N170: 86537000 | O170: -0.34%
A171: 162 | B171: Power | C171: POWERGRID | D171: 181.55 | E171: 181.82 | F171: 180.73 | G171: 179.92 | H171: 178.83 | I171: 182.63 | J171: 183.72 | K171: 184.53 | L171: 182.9 | M171: 181 | N171: 54388000 | O171: 0.00%
A172: 163 | B172: Power | C172: PTC | D172: 70.35 | E172: 71.33 | F172: 68.97 | G172: 67.58 | H172: 65.22 | I172: 72.72 | J172: 75.08 | K172: 76.47 | L172: 73.7 | M172: 69.95 | N172: 17984000 | O172: -2.39%
A173: 164 | B173: Others | C173: PVR | D173: 1158.00 | E173: 1181.22 | F173: 1127.33 | G173: 1096.67 | H173: 1042.78 | I173: 1211.88 | J173: 1265.77 | K173: 1296.43 | L173: 1235.1 | M173: 1150.55 | N173: 1190000 | O173: -10.20%
A174: 165 | B174: Cement | C174: RAMCOCEM | D174: 634.05 | E174: 639.22 | F174: 618.33 | G174: 602.62 | H174: 581.73 | I174: 654.93 | J174: 675.82 | K174: 691.53 | L174: 660.1 | M174: 623.5 | N174: 903200 | O174: -4.40%
A175: 166 | B175: Others | C175: RAYMOND | D175: 828.90 | E175: 845.25 | F175: 805.65 | G175: 782.40 | H175: 742.80 | I175: 868.50 | J175: 908.10 | K175: 931.35 | L175: 884.85 | M175: 822 | N175: 4884800 | O175: 0.66%
A176: 167 | B176: Banking | C176: RBLBANK | D176: 550.10 | E176: 558.85 | F176: 539.70 | G176: 529.30 | H176: 510.15 | I176: 569.25 | J176: 588.40 | K176: 598.80 | L176: 578 | M176: 548.45 | N176: 5301600 | O176: 3.59%
A177: 168 | B177: Telecom | C177: RCOM | D177: 12.05 | E177: 12.30 | F177: 11.55 | G177: 11.05 | H177: 10.30 | I177: 12.80 | J177: 13.55 | K177: 14.05 | L177: 13.05 | M177: 11.8 | N177: 89348000 | O177: 0.41%
A178: 169 | B178: Power | C178: RECLTD | D178: 93.80 | E178: 94.47 | F178: 92.58 | G178: 91.37 | H178: 89.48 | I178: 95.68 | J178: 97.57 | K178: 98.78 | L178: 96.35 | M178: 93.25 | N178: 46260000 | O178: -0.08%
A179: 170 | B179: Finance | C179: RELCAPITAL | D179: 336.15 | E179: 346.88 | F179: 323.27 | G179: 310.38 | H179: 286.77 | I179: 359.77 | J179: 383.38 | K179: 396.27 | L179: 370.5 | M179: 334 | N179: 10683000 | O179: 2.05%
A180: 171 | B180: Oil_Gas | C180: RELIANCE | D180: 1079.25 | E180: 1085.93 | F180: 1066.87 | G180: 1054.48 | H180: 1035.42 | I180: 1098.32 | J180: 1117.38 | K180: 1129.77 | L180: 1105 | M180: 1073.55 | N180: 48545000 | O180: -3.38%
A181: 172 | B181: Power | C181: RELINFRA | D181: 368.50 | E181: 373.70 | F181: 359.40 | G181: 350.30 | H181: 336.00 | I181: 382.80 | J181: 397.10 | K181: 406.20 | L181: 388 | M181: 364.6 | N181: 8843900 | O181: 2.32%
A182: 173 | B182: Others | C182: REPCOHOME | D182: 564.35 | E182: 569.78 | F182: 553.07 | G182: 541.78 | H182: 525.07 | I182: 581.07 | J182: 597.78 | K182: 609.07 | L182: 586.5 | M182: 558.5 | N182: 519300 | O182: 0.00%
A183: 174 | B183: Power | C183: RPOWER | D183: 29.15 | E183: 29.78 | F183: 28.32 | G183: 27.48 | H183: 26.02 | I183: 30.62 | J183: 32.08 | K183: 32.92 | L183: 31.25 | M183: 28.95 | N183: 53768000 | O183: 2.91%
A184: 175 | B184: Metals | C184: SAIL | D184: 71.10 | E184: 72.32 | F184: 69.53 | G184: 67.97 | H184: 65.18 | I184: 73.88 | J184: 76.67 | K184: 78.23 | L184: 75.1 | M184: 70.75 | N184: 90060000 | O184: -2.66%
A185: 176 | B185: Banking | C185: SBIN | D185: 251.85 | E185: 253.62 | F185: 249.13 | G185: 246.42 | H185: 241.93 | I185: 256.33 | J185: 260.82 | K185: 263.53 | L185: 258.1 | M185: 250.9 | N185: 73548000 | O185: -2.28%
A186: 177 | B186: Cement | C186: SHREECEM | D186: 16274.70 | E186: 16527.88 | F186: 15965.77 | G186: 15656.83 | H186: 15094.72 | I186: 16836.82 | J186: 17398.93 | K186: 17707.87 | L186: 17090 | M186: 16218.95 | N186: 92050 | O186: 1.21%
A187: 178 | B187: Capital_Goods | C187: SIEMENS | D187: 953.55 | E187: 955.52 | F187: 937.48 | G187: 921.42 | H187: 903.38 | I187: 971.58 | J187: 989.62 | K187: 1005.68 | L187: 973.55 | M187: 939.45 | N187: 1179000 | O187: 2.57%
A188: 179 | B188: Banking | C188: SOUTHBANK | D188: 21.00 | E188: 21.15 | F188: 20.75 | G188: 20.50 | H188: 20.10 | I188: 21.40 | J188: 21.80 | K188: 22.05 | L188: 21.55 | M188: 20.9 | N188: 144627324 | O188: -0.46%
A189: 180 | B189: Others | C189: SREINFRA | D189: 58.10 | E189: 59.23 | F189: 56.32 | G189: 54.53 | H189: 51.62 | I189: 61.02 | J189: 63.93 | K189: 65.72 | L189: 62.15 | M189: 57.45 | N189: 19670000 | O189: 1.30%
A190: 181 | B190: Textile | C190: SRF | D190: 1586.20 | E190: 1609.85 | F190: 1552.40 | G190: 1518.60 | H190: 1461.15 | I190: 1643.65 | J190: 1701.10 | K190: 1734.90 | L190: 1667.3 | M190: 1576.05 | N190: 830500 | O190: -6.00%
A191: 182 | B191: Finance | C191: SRTRANSFIN | D191: 1206.30 | E191: 1212.08 | F191: 1150.27 | G191: 1094.23 | H191: 1032.42 | I191: 1268.12 | J191: 1329.93 | K191: 1385.97 | L191: 1273.9 | M191: 1156.05 | N191: 4963800 | O191: -16.61%
A192: 183 | B192: Pharma | C192: STAR | D192: 353.05 | E192: 358.90 | F192: 345.10 | G192: 337.15 | H192: 323.35 | I192: 366.85 | J192: 380.65 | K192: 388.60 | L192: 372.7 | M192: 350.95 | N192: 5057600 | O192: 1.10%
A193: 184 | B193: Pharma | C193: SUNPHARMA | D193: 534.15 | E193: 542.32 | F193: 523.03 | G193: 511.92 | H193: 492.63 | I193: 553.43 | J193: 572.72 | K193: 583.83 | L193: 561.6 | M193: 531.2 | N193: 43011100 | O193: -0.94%
A194: 185 | B194: Media | C194: SUNTV | D194: 743.05 | E194: 756.25 | F194: 724.10 | G194: 705.15 | H194: 673.00 | I194: 775.20 | J194: 807.35 | K194: 826.30 | L194: 788.4 | M194: 737.3 | N194: 6489000 | O194: 0.96%
A195: 186 | B195: Power | C195: SUZLON | D195: 7.10 | E195: 7.17 | F195: 6.88 | G195: 6.67 | H195: 6.38 | I195: 7.38 | J195: 7.67 | K195: 7.88 | L195: 7.45 | M195: 6.95 | N195: 306090000 | O195: 0.74%
A196: 187 | B196: Banking | C196: SYNDIBANK | D196: 37.75 | E196: 38.30 | F196: 37.00 | G196: 36.25 | H196: 34.95 | I196: 39.05 | J196: 40.35 | K196: 41.10 | L196: 39.6 | M196: 37.55 | N196: 29250000 | O196: 0.12%
A197: 188 | B197: Fertilisers | C197: TATACHEM | D197: 670.35 | E197: 674.87 | F197: 664.48 | G197: 658.62 | H197: 648.23 | I197: 680.73 | J197: 691.12 | K197: 696.98 | L197: 685.25 | M197: 669 | N197: 3266250 | O197: 1.49%
A198: 189 | B198: Telecom | C198: TATACOMM | D198: 562.75 | E198: 574.52 | F198: 546.43 | G198: 530.12 | H198: 502.03 | I198: 590.83 | J198: 618.92 | K198: 635.23 | L198: 602.6 | M198: 558.2 | N198: 3283200 | O198: -4.40%
A199: 190 | B199: Technology | C199: TATAELXSI | D199: 1423.00 | E199: 1423.90 | F199: 1405.70 | G199: 1388.40 | H199: 1370.20 | I199: 1441.20 | J199: 1459.40 | K199: 1476.70 | L199: 1442.1 | M199: 1406.6 | N199: 1623200 | O199: -2.22%
A200: 191 | B200: FMCG | C200: TATAGLOBAL | D200: 242.90 | E200: 247.23 | F200: 237.47 | G200: 232.03 | H200: 222.27 | I200: 252.67 | J200: 262.43 | K200: 267.87 | L200: 257 | M200: 241.8 | N200: 15572250 | O200: 7.62%
A201: 192 | B201: Automobile | C201: TATAMOTORS | D201: 252.60 | E201: 255.00 | F201: 248.35 | G201: 244.10 | H201: 237.45 | I201: 259.25 | J201: 265.90 | K201: 270.15 | L201: 261.65 | M201: 250.75 | N201: 87886500 | O201: 0.24%
A202: 193 | B202: Automobile | C202: TATAMTRDVR | D202: 143.20 | E202: 144.95 | F202: 140.40 | G202: 137.60 | H202: 133.05 | I202: 147.75 | J202: 152.30 | K202: 155.10 | L202: 149.5 | M202: 142.15 | N202: 29598800 | O202: -0.06%
A203: 194 | B203: Power | C203: TATAPOWER | D203: 68.85 | E203: 69.25 | F203: 68.20 | G203: 67.55 | H203: 66.50 | I203: 69.90 | J203: 70.95 | K203: 71.60 | L203: 70.3 | M203: 68.6 | N203: 46773000 | O203: -0.65%
A204: 195 | B204: Metals | C204: TATASTEEL | D204: 520.10 | E204: 532.72 | F204: 504.63 | G204: 489.17 | H204: 461.08 | I204: 548.18 | J204: 576.27 | K204: 591.73 | L204: 560.8 | M204: 517.25 | N204: 46183208 | O204: -0.36%
A205: 196 | B205: Technology | C205: TCS | D205: 1991.25 | E205: 1990.40 | F205: 1981.85 | G205: 1972.45 | H205: 1963.90 | I205: 1999.80 | J205: 2008.35 | K205: 2017.75 | L205: 1998.95 | M205: 1981 | N205: 13126500 | O205: -0.55%
A206: 197 | B206: Technology | C206: TECHM | D206: 643.05 | E206: 638.53 | F206: 630.17 | G206: 617.28 | H206: 608.92 | I206: 651.42 | J206: 659.78 | K206: 672.67 | L206: 646.9 | M206: 625.65 | N206: 17570400 | O206: -0.48%
... 35 more rows

Sheet Cash Intra
M5: Back to Main Page
A6: FOR INTRA DAY TRADING | K6: =Main!B10 -> 2018-07-17
A8: Sr.no | B8: Scrip | C8: CLOSE RATE | D8: Pivot Point | E8: Supports | H8: Resistances
C9: Point | E9: S1 | F9: S2 | G9: S3 | H9: R1 | I9: R2 | J9: R3 | K9: HIGH | L9: LOW | M9: Total Trade Quanity in Lakhs
A10: 1 | B10: Nifty 50 | C10: 10936.85 | D10: 10960.87 | E10: 10902.23 | F10: 10867.62 | G10: 10808.98 | H10: 10995.48 | I10: 11054.12 | J10: 11088.73 | K10: 11019.5 | L10: 10926.25
A11: 2 | B11: Nifty Bank | C11: 26679.8 | D11: 26754.27 | E11: 26569.48 | F11: 26459.17 | G11: 26274.38 | H11: 26864.58 | I11: 27049.37 | J11: 27159.68 | K11: 26939.05 | L11: 26643.95
A12: 3 | B12: Nifty CPSE | C12: 2185.7 | D12: 2195.08 | E12: 2171.07 | F12: 2156.43 | G12: 2132.42 | H12: 2209.72 | I12: 2233.73 | J12: 2248.37 | K12: 2219.1 | L12: 2180.45
A13: 4 | B13: Nifty Infra | C13: 3044.95 | D13: 3057.62 | E13: 3026.38 | F13: 3007.82 | G13: 2976.58 | H13: 3076.18 | I13: 3107.42 | J13: 3125.98 | K13: 3088.85 | L13: 3039.05
A14: 5 | B14: Nifty IT | C14: 14617.05 | D14: 14612.02 | E14: 14448.03 | F14: 14279.02 | G14: 14115.03 | H14: 14781.03 | I14: 14945.02 | J14: 15114.03 | K14: 14776 | L14: 14443
A15: 6 | B15: Nifty PSE | C15: 3444.05 | D15: 3454.82 | E15: 3427.88 | F15: 3411.72 | G15: 3384.78 | H15: 3470.98 | I15: 3497.92 | J15: 3514.08 | K15: 3481.75 | L15: 3438.65
A16: 7 | B16: Nifty Midcap 50 | C16: 4729.35 | D16: 4770.67 | E16: 4683.73 | F16: 4638.12 | G16: 4551.18 | H16: 4816.28 | I16: 4903.22 | J16: 4948.83 | K16: 4857.6 | L16: 4725.05
A17: 8 | B17: ABB | C17: 1194.6 | D17: 1207.07 | E17: 1179.18 | F17: 1163.77 | G17: 1135.88 | H17: 1222.48 | I17: 1250.37 | J17: 1265.78 | K17: 1234.95 | L17: 1191.65 | M17: 0.35525
A18: 9 | B18: ACC | C18: 1266.85 | D18: 1289.67 | E18: 1237.53 | F18: 1208.22 | G18: 1156.08 | H18: 1318.98 | I18: 1371.12 | J18: 1400.43 | K18: 1341.8 | L18: 1260.35 | M18: 4.74561
A19: 10 | B19: AIAENG | C19: 1541.35 | D19: 1565.42 | E19: 1505.03 | F19: 1468.72 | G19: 1408.33 | H19: 1601.73 | I19: 1662.12 | J19: 1698.43 | K19: 1625.8 | L19: 1529.1 | M19: 0.23682
A20: 11 | B20: AUBANK | C20: 634.95 | D20: 637.02 | E20: 629.13 | F20: 623.32 | G20: 615.43 | H20: 642.83 | I20: 650.72 | J20: 656.53 | K20: 644.9 | L20: 631.2 | M20: 4.48146
A21: 12 | B21: ADANIENT | C21: 133.6 | D21: 132.55 | E21: 130.25 | F21: 126.90 | G21: 124.60 | H21: 135.90 | I21: 138.20 | J21: 141.55 | K21: 134.85 | L21: 129.2 | M21: 182.21825
A22: 13 | B22: ADANIPORTS | C22: 360.05 | D22: 363.62 | E22: 354.93 | F22: 349.82 | G22: 341.13 | H22: 368.73 | I22: 377.42 | J22: 382.53 | K22: 372.3 | L22: 358.5 | M22: 13.40324
A23: 14 | B23: ADANIPOWER | C23: 19.55 | D23: 19.50 | E23: 18.90 | F23: 18.25 | G23: 17.65 | H23: 20.15 | I23: 20.75 | J23: 21.40 | K23: 20.1 | L23: 18.85 | M23: 225.62838
A24: 15 | B24: ABFRL | C24: 136.7 | D24: 136.30 | E24: 134.60 | F24: 132.50 | G24: 130.80 | H24: 138.40 | I24: 140.10 | J24: 142.20 | K24: 138 | L24: 134.2 | M24: 1.43569
A25: 16 | B25: AJANTPHARM | C25: 969.25 | D25: 985.42 | E25: 940.83 | F25: 912.42 | G25: 867.83 | H25: 1013.83 | I25: 1058.42 | J25: 1086.83 | K25: 1030 | L25: 957 | M25: 4.03103
A26: 17 | B26: ALKEM | C26: 1884.9 | D26: 1886.63 | E26: 1853.27 | F26: 1821.63 | G26: 1788.27 | H26: 1918.27 | I26: 1951.63 | J26: 1983.27 | K26: 1920 | L26: 1855 | M26: 0.11093
A27: 18 | B27: AMARAJABAT | C27: 778.6 | D27: 785.95 | E27: 767.10 | F27: 755.60 | G27: 736.75 | H27: 797.45 | I27: 816.30 | J27: 827.80 | K27: 804.8 | L27: 774.45 | M27: 3.61342
A28: 19 | B28: AMBUJACEM | C28: 190.55 | D28: 192.68 | E28: 187.42 | F28: 184.28 | G28: 179.02 | H28: 195.82 | I28: 201.08 | J28: 204.22 | K28: 197.95 | L28: 189.55 | M28: 19.94603
A29: 20 | B29: APOLLOHOSP | C29: 940.7 | D29: 951.15 | E29: 924.55 | F29: 908.40 | G29: 881.80 | H29: 967.30 | I29: 993.90 | J29: 1010.05 | K29: 977.75 | L29: 935 | M29: 6.42308
A30: 21 | B30: APOLLOTYRE | C30: 268.25 | D30: 267.25 | E30: 264.50 | F30: 260.75 | G30: 258.00 | H30: 271.00 | I30: 273.75 | J30: 277.50 | K30: 270 | L30: 263.5 | M30: 16.88534
A31: 22 | B31: ARVIND | C31: 388.7 | D31: 395.95 | E31: 376.90 | F31: 365.10 | G31: 346.05 | H31: 407.75 | I31: 426.80 | J31: 438.60 | K31: 415 | L31: 384.15 | M31: 10.6287
A32: 23 | B32: ASHOKLEY | C32: 125.7 | D32: 126.52 | E32: 119.58 | F32: 113.47 | G32: 106.53 | H32: 132.63 | I32: 139.57 | J32: 145.68 | K32: 133.45 | L32: 120.4 | M32: 308.7439
A33: 24 | B33: ASIANPAINT | C33: 1359.55 | D33: 1368.52 | E33: 1342.13 | F33: 1324.72 | G33: 1298.33 | H33: 1385.93 | I33: 1412.32 | J33: 1429.73 | K33: 1394.9 | L33: 1351.1 | M33: 12.34066
A34: 25 | B34: AUROPHARMA | C34: 571.65 | D34: 583.68 | E34: 555.42 | F34: 539.18 | G34: 510.92 | H34: 599.92 | I34: 628.18 | J34: 644.42 | K34: 611.95 | L34: 567.45 | M34: 34.21686
A35: 26 | B35: DMART | C35: 1548.05 | D35: 1555.35 | E35: 1534.70 | F35: 1521.35 | G35: 1500.70 | H35: 1568.70 | I35: 1589.35 | J35: 1602.70 | K35: 1576 | L35: 1542 | M35: 2.02405
A36: 27 | B36: AXISBANK | C36: 522.1 | D36: 523.45 | E36: 517.00 | F36: 511.90 | G36: 505.45 | H36: 528.55 | I36: 535.00 | J36: 540.10 | K36: 529.9 | L36: 518.35 | M36: 50.32325
A37: 28 | B37: BAJAJ-AUTO | C37: 3101.85 | D37: 3119.27 | E37: 3073.53 | F37: 3045.22 | G37: 2999.48 | H37: 3147.58 | I37: 3193.32 | J37: 3221.63 | K37: 3165 | L37: 3090.95 | M37: 3.74574
A38: 29 | B38: BAJFINANCE | C38: 2472.3 | D38: 2477.23 | E38: 2455.07 | F38: 2437.83 | G38: 2415.67 | H38: 2494.47 | I38: 2516.63 | J38: 2533.87 | K38: 2499.4 | L38: 2460 | M38: 11.72644
A39: 30 | B39: BAJAJFINSV | C39: 6247.85 | D39: 6271.48 | E39: 6192.37 | F39: 6136.88 | G39: 6057.77 | H39: 6326.97 | I39: 6406.08 | J39: 6461.57 | K39: 6350.6 | L39: 6216 | M39: 1.31475
A40: 31 | B40: BALKRISIND | C40: 1137.25 | D40: 1149.28 | E40: 1118.67 | F40: 1100.08 | G40: 1069.47 | H40: 1167.87 | I40: 1198.48 | J40: 1217.07 | K40: 1179.9 | L40: 1130.7 | M40: 5.14224
A41: 32 | B41: BANKBARODA | C41: 113.05 | D41: 114.12 | E41: 110.93 | F41: 108.82 | G41: 105.63 | H41: 116.23 | I41: 119.42 | J41: 121.53 | K41: 117.3 | L41: 112 | M41: 86.1059
A42: 33 | B42: BANKINDIA | C42: 77.5 | D42: 78.77 | E42: 75.53 | F42: 73.57 | G42: 70.33 | H42: 80.73 | I42: 83.97 | J42: 85.93 | K42: 82 | L42: 76.8 | M42: 52.72685
A43: 34 | B43: BATAINDIA | C43: 818.7 | D43: 821.22 | E43: 810.58 | F43: 802.47 | G43: 791.83 | H43: 829.33 | I43: 839.97 | J43: 848.08 | K43: 831.85 | L43: 813.1 | M43: 7.88585
A44: 35 | B44: BERGEPAINT | C44: 299.55 | D44: 301.20 | E44: 295.15 | F44: 290.75 | G44: 284.70 | H44: 305.60 | I44: 311.65 | J44: 316.05 | K44: 307.25 | L44: 296.8 | M44: 7.57383
A45: 36 | B45: BEL | C45: 101 | D45: 102.20 | E45: 99.30 | F45: 97.60 | G45: 94.70 | H45: 103.90 | I45: 106.80 | J45: 108.50 | K45: 105.1 | L45: 100.5 | M45: 52.98386
A46: 37 | B46: BHARATFIN | C46: 1163.15 | D46: 1169.05 | E46: 1154.10 | F46: 1145.05 | G46: 1130.10 | H46: 1178.10 | I46: 1193.05 | J46: 1202.10 | K46: 1184 | L46: 1160 | M46: 4.06224
A47: 38 | B47: BHARATFORG | C47: 590.9 | D47: 596.20 | E47: 582.70 | F47: 574.50 | G47: 561.00 | H47: 604.40 | I47: 617.90 | J47: 626.10 | K47: 609.7 | L47: 588 | M47: 8.33272
A48: 39 | B48: BHEL | C48: 65 | D48: 65.62 | E48: 63.98 | F48: 62.97 | G48: 61.33 | H48: 66.63 | I48: 68.27 | J48: 69.28 | K48: 67.25 | L48: 64.6 | M48: 54.98218
A49: 40 | B49: BPCL | C49: 382.2 | D49: 384.70 | E49: 377.40 | F49: 372.60 | G49: 365.30 | H49: 389.50 | I49: 396.80 | J49: 401.60 | K49: 392 | L49: 379.9 | M49: 35.35136
A50: 41 | B50: BHARTIARTL | C50: 347.4 | D50: 350.65 | E50: 341.55 | F50: 335.70 | G50: 326.60 | H50: 356.50 | I50: 365.60 | J50: 371.45 | K50: 359.75 | L50: 344.8 | M50: 32.61119
A51: 42 | B51: INFRATEL | C51: 301.15 | D51: 301.72 | E51: 297.73 | F51: 294.32 | G51: 290.33 | H51: 305.13 | I51: 309.12 | J51: 312.53 | K51: 305.7 | L51: 298.3 | M51: 16.61955
A52: 43 | B52: BIOCON | C52: 582.55 | D52: 587.52 | E52: 573.03 | F52: 563.52 | G52: 549.03 | H52: 597.03 | I52: 611.52 | J52: 621.03 | K52: 602 | L52: 578 | M52: 17.17726
A53: 44 | B53: BOSCHLTD | C53: 17368.85 | D53: 17455.45 | E53: 17213.40 | F53: 17057.95 | G53: 16815.90 | H53: 17610.90 | I53: 17852.95 | J53: 18008.40 | K53: 17697.5 | L53: 17300 | M53: 0.1016
A54: 45 | B54: BRITANNIA | C54: 6532.7 | D54: 6533.22 | E54: 6499.43 | F54: 6466.17 | G54: 6432.38 | H54: 6566.48 | I54: 6600.27 | J54: 6633.53 | K54: 6567 | L54: 6499.95 | M54: 0.86137
A55: 46 | B55: CRISIL | C55: 1752.4 | D55: 1764.45 | E55: 1736.95 | F55: 1721.50 | G55: 1694.00 | H55: 1779.90 | I55: 1807.40 | J55: 1822.85 | K55: 1791.95 | L55: 1749 | M55: 0.17154
A56: 47 | B56: CADILAHC | C56: 349.75 | D56: 354.37 | E56: 343.38 | F56: 337.02 | G56: 326.03 | H56: 360.73 | I56: 371.72 | J56: 378.08 | K56: 365.35 | L56: 348 | M56: 11.77909
A57: 48 | B57: CANBK | C57: 222.35 | D57: 223.30 | E57: 215.60 | F57: 208.85 | G57: 201.15 | H57: 230.05 | I57: 237.75 | J57: 244.50 | K57: 231 | L57: 216.55 | M57: 54.29186
A58: 49 | B58: CASTROLIND | C58: 155.35 | D58: 156.60 | E58: 152.45 | F58: 149.55 | G58: 145.40 | H58: 159.50 | I58: 163.65 | J58: 166.55 | K58: 160.75 | L58: 153.7 | M58: 8.25117
A59: 50 | B59: CENTRALBK | C59: 67.85 | D59: 67.35 | E59: 66.70 | F59: 65.55 | G59: 64.90 | H59: 68.50 | I59: 69.15 | J59: 70.30 | K59: 68 | L59: 66.2 | M59: 1.88427
A60: 51 | B60: CENTURYTEX | C60: 846.85 | D60: 859.80 | E60: 829.60 | F60: 812.35 | G60: 782.15 | H60: 877.05 | I60: 907.25 | J60: 924.50 | K60: 890 | L60: 842.55 | M60: 6.08292
A61: 52 | B61: CHOLAFIN | C61: 1537.95 | D61: 1543.77 | E61: 1510.58 | F61: 1483.22 | G61: 1450.03 | H61: 1571.13 | I61: 1604.32 | J61: 1631.68 | K61: 1576.95 | L61: 1516.4 | M61: 4.8928
A62: 53 | B62: CIPLA | C62: 620.95 | D62: 622.70 | E62: 609.40 | F62: 597.85 | G62: 584.55 | H62: 634.25 | I62: 647.55 | J62: 659.10 | K62: 636 | L62: 611.15 | M62: 22.112
A63: 54 | B63: COALINDIA | C63: 261.15 | D63: 263.08 | E63: 258.17 | F63: 255.18 | G63: 250.27 | H63: 266.07 | I63: 270.98 | J63: 273.97 | K63: 268 | L63: 260.1 | M63: 15.65561
A64: 55 | B64: COLPAL | C64: 1142.6 | D64: 1148.93 | E64: 1125.92 | F64: 1109.23 | G64: 1086.22 | H64: 1165.62 | I64: 1188.63 | J64: 1205.32 | K64: 1171.95 | L64: 1132.25 | M64: 2.59811
A65: 56 | B65: CONCOR | C65: 627.6 | D65: 627.60 | E65: 613.25 | F65: 598.90 | G65: 584.55 | H65: 641.95 | I65: 656.30 | J65: 670.65 | K65: 641.95 | L65: 613.25 | M65: 5.59218
A66: 57 | B66: COROMANDEL | C66: 404 | D66: 405.58 | E66: 391.47 | F66: 378.93 | G66: 364.82 | H66: 418.12 | I66: 432.23 | J66: 444.77 | K66: 419.7 | L66: 393.05 | M66: 0.9294
A67: 58 | B67: CROMPTON | C67: 232.75 | D67: 232.07 | E67: 227.18 | F67: 221.62 | G67: 216.73 | H67: 237.63 | I67: 242.52 | J67: 248.08 | K67: 236.95 | L67: 226.5 | M67: 2.65994
A68: 59 | B68: CUMMINSIND | C68: 624.4 | D68: 631.10 | E68: 614.80 | F68: 605.20 | G68: 588.90 | H68: 640.70 | I68: 657.00 | J68: 666.60 | K68: 647.4 | L68: 621.5 | M68: 3.2183
A69: 60 | B69: DLF | C69: 178.05 | D69: 181.22 | E69: 173.83 | F69: 169.62 | G69: 162.23 | H69: 185.43 | I69: 192.82 | J69: 197.03 | K69: 188.6 | L69: 177 | M69: 42.66013
A70: 61 | B70: DABUR | C70: 367.3 | D70: 369.92 | E70: 362.93 | F70: 358.57 | G70: 351.58 | H70: 374.28 | I70: 381.27 | J70: 385.63 | K70: 376.9 | L70: 365.55 | M70: 9.06673
A71: 62 | B71: DALMIABHA | C71: 2330.2 | D71: 2322.35 | E71: 2290.70 | F71: 2251.20 | G71: 2219.55 | H71: 2361.85 | I71: 2393.50 | J71: 2433.00 | K71: 2354 | L71: 2282.85 | M71: 2.4831
A72: 63 | B72: DHFL | C72: 588.65 | D72: 591.70 | E72: 578.50 | F72: 568.35 | G72: 555.15 | H72: 601.85 | I72: 615.05 | J72: 625.20 | K72: 604.9 | L72: 581.55 | M72: 36.22078
A73: 64 | B73: DISHTV | C73: 68.7 | D73: 70.43 | E73: 66.22 | F73: 63.73 | G73: 59.52 | H73: 72.92 | I73: 77.13 | J73: 79.62 | K73: 74.65 | L73: 67.95 | M73: 43.17821
A74: 65 | B74: DIVISLAB | C74: 1070.05 | D74: 1080.72 | E74: 1053.38 | F74: 1036.72 | G74: 1009.38 | H74: 1097.38 | I74: 1124.72 | J74: 1141.38 | K74: 1108.05 | L74: 1064.05 | M74: 5.13097
A75: 66 | B75: LALPATHLAB | C75: 911.25 | D75: 910.42 | E75: 897.28 | F75: 883.32 | G75: 870.18 | H75: 924.38 | I75: 937.52 | J75: 951.48 | K75: 923.55 | L75: 896.45 | M75: 3.29658
A76: 67 | B76: DRREDDY | C76: 2093.95 | D76: 2129.00 | E76: 2034.90 | F76: 1975.85 | G76: 1881.75 | H76: 2188.05 | I76: 2282.15 | J76: 2341.20 | K76: 2223.1 | L76: 2069.95 | M76: 37.21516
A77: 68 | B77: EDELWEISS | C77: 284.05 | D77: 288.85 | E77: 275.20 | F77: 266.35 | G77: 252.70 | H77: 297.70 | I77: 311.35 | J77: 320.20 | K77: 302.5 | L77: 280 | M77: 25.05798
A78: 69 | B78: EICHERMOT | C78: 27424.3 | D78: 27406.43 | E78: 27067.87 | F78: 26711.43 | G78: 26372.87 | H78: 27762.87 | I78: 28101.43 | J78: 28457.87 | K78: 27745 | L78: 27050 | M78: 0.19328
A79: 70 | B79: EMAMILTD | C79: 526.65 | D79: 527.55 | E79: 522.10 | F79: 517.55 | G79: 512.10 | H79: 532.10 | I79: 537.55 | J79: 542.10 | K79: 533 | L79: 523 | M79: 1.72393
A80: 71 | B80: ENDURANCE | C80: 1212.3 | D80: 1223.12 | E80: 1193.23 | F80: 1174.17 | G80: 1144.28 | H80: 1242.18 | I80: 1272.07 | J80: 1291.13 | K80: 1253 | L80: 1204.05 | M80: 0.06215
A81: 72 | B81: ENGINERSIN | C81: 121.7 | D81: 122.07 | E81: 119.48 | F81: 117.27 | G81: 114.68 | H81: 124.28 | I81: 126.87 | J81: 129.08 | K81: 124.65 | L81: 119.85 | M81: 14.29295
A82: 73 | B82: EXIDEIND | C82: 262.45 | D82: 262.43 | E82: 257.82 | F82: 253.18 | G82: 248.57 | H82: 267.07 | I82: 271.68 | J82: 276.32 | K82: 267.05 | L82: 257.8 | M82: 19.13507
A83: 74 | B83: FEDERALBNK | C83: 74.15 | D83: 75.53 | E83: 72.42 | F83: 70.68 | G83: 67.57 | H83: 77.27 | I83: 80.38 | J83: 82.12 | K83: 78.65 | L83: 73.8 | M83: 110.37842
A84: 75 | B84: GAIL | C84: 355.8 | D84: 355.20 | E84: 350.90 | F84: 346.00 | G84: 341.70 | H84: 360.10 | I84: 364.40 | J84: 369.30 | K84: 359.5 | L84: 350.3 | M84: 26.85929
A85: 76 | B85: GMRINFRA | C85: 17.55 | D85: 17.68 | E85: 17.27 | F85: 16.98 | G85: 16.57 | H85: 17.97 | I85: 18.38 | J85: 18.67 | K85: 18.1 | L85: 17.4 | M85: 387.74298
A86: 77 | B86: GSKCONS | C86: 6280.05 | D86: 6268.02 | E86: 6222.03 | F86: 6164.02 | G86: 6118.03 | H86: 6326.03 | I86: 6372.02 | J86: 6430.03 | K86: 6314 | L86: 6210 | M86: 0.06186
A87: 78 | B87: GLAXO | C87: 2820.6 | D87: 2823.07 | E87: 2802.53 | F87: 2784.47 | G87: 2763.93 | H87: 2841.13 | I87: 2861.67 | J87: 2879.73 | K87: 2843.6 | L87: 2805 | M87: 0.08194
A88: 79 | B88: GLENMARK | C88: 551.95 | D88: 555.22 | E88: 545.13 | F88: 538.32 | G88: 528.23 | H88: 562.03 | I88: 572.12 | J88: 578.93 | K88: 565.3 | L88: 548.4 | M88: 5.95956
A89: 80 | B89: GODREJCP | C89: 1300.85 | D89: 1314.17 | E89: 1279.68 | F89: 1258.52 | G89: 1224.03 | H89: 1335.33 | I89: 1369.82 | J89: 1390.98 | K89: 1348.65 | L89: 1293 | M89: 7.46677
A90: 81 | B90: GODREJIND | C90: 574.85 | D90: 576.80 | E90: 569.10 | F90: 563.35 | G90: 555.65 | H90: 582.55 | I90: 590.25 | J90: 596.00 | K90: 584.5 | L90: 571.05 | M90: 2.07882
A91: 82 | B91: GRUH | C91: 311.45 | D91: 318.15 | E91: 302.40 | F91: 293.35 | G91: 277.60 | H91: 327.20 | I91: 342.95 | J91: 352.00 | K91: 333.9 | L91: 309.1 | M91: 5.98421
A92: 83 | B92: GPPL | C92: 117.9 | D92: 118.07 | E92: 116.33 | F92: 114.77 | G92: 113.03 | H92: 119.63 | I92: 121.37 | J92: 122.93 | K92: 119.8 | L92: 116.5 | M92: 1.01409
A93: 84 | B93: GSPL | C93: 180.1 | D93: 180.63 | E93: 178.47 | F93: 176.83 | G93: 174.67 | H93: 182.27 | I93: 184.43 | J93: 186.07 | K93: 182.8 | L93: 179 | M93: 1.92437
A94: 85 | B94: HCLTECH | C94: 972.1 | D94: 977.73 | E94: 964.57 | F94: 957.03 | G94: 943.87 | H94: 985.27 | I94: 998.43 | J94: 1005.97 | K94: 990.9 | L94: 970.2 | M94: 17.02222
A95: 86 | B95: HDFCBANK | C95: 2168.85 | D95: 2174.22 | E95: 2158.38 | F95: 2147.92 | G95: 2132.08 | H95: 2184.68 | I95: 2200.52 | J95: 2210.98 | K95: 2190.05 | L95: 2163.75 | M95: 22.54334
A96: 87 | B96: HAVELLS | C96: 560.05 | D96: 560.95 | E96: 552.10 | F96: 544.15 | G96: 535.30 | H96: 568.90 | I96: 577.75 | J96: 585.70 | K96: 569.8 | L96: 553 | M96: 17.00586
A97: 88 | B97: HEROMOTOCO | C97: 3426 | D97: 3436.12 | E97: 3406.23 | F97: 3386.47 | G97: 3356.58 | H97: 3455.88 | I97: 3485.77 | J97: 3505.53 | K97: 3466 | L97: 3416.35 | M97: 1.8306
A98: 89 | B98: HEXAWARE | C98: 500.25 | D98: 500.62 | E98: 494.63 | F98: 489.02 | G98: 483.03 | H98: 506.23 | I98: 512.22 | J98: 517.83 | K98: 506.6 | L98: 495 | M98: 19.1865
A99: 90 | B99: HINDALCO | C99: 213.05 | D99: 215.32 | E99: 210.13 | F99: 207.22 | G99: 202.03 | H99: 218.23 | I99: 223.42 | J99: 226.33 | K99: 220.5 | L99: 212.4 | M99: 64.40638
A100: 91 | B100: HINDPETRO | C100: 264.35 | D100: 266.53 | E100: 261.07 | F100: 257.78 | G100: 252.32 | H100: 269.82 | I100: 275.28 | J100: 278.57 | K100: 272 | L100: 263.25 | M100: 34.41653
A101: 92 | B101: HINDUNILVR | C101: 1751.25 | D101: 1758.03 | E101: 1737.07 | F101: 1722.88 | G101: 1701.92 | H101: 1772.22 | I101: 1793.18 | J101: 1807.37 | K101: 1779 | L101: 1743.85 | M101: 22.18046
A102: 93 | B102: HINDZINC | C102: 268.55 | D102: 269.97 | E102: 265.08 | F102: 261.62 | G102: 256.73 | H102: 273.43 | I102: 278.32 | J102: 281.78 | K102: 274.85 | L102: 266.5 | M102: 13.96585
A103: 94 | B103: HUDCO | C103: 52.9 | D103: 53.38 | E103: 52.27 | F103: 51.63 | G103: 50.52 | H103: 54.02 | I103: 55.13 | J103: 55.77 | K103: 54.5 | L103: 52.75 | M103: 6.75898
A104: 95 | B104: HDFC | C104: 1991.2 | D104: 1987.23 | E104: 1976.97 | F104: 1962.73 | G104: 1952.47 | H104: 2001.47 | I104: 2011.73 | J104: 2025.97 | K104: 1997.5 | L104: 1973 | M104: 36.93133
A105: 96 | B105: ITC | C105: 271.6 | D105: 271.53 | E105: 269.77 | F105: 267.93 | G105: 266.17 | H105: 273.37 | I105: 275.13 | J105: 276.97 | K105: 273.3 | L105: 269.7 | M105: 102.81018
A106: 97 | B106: ICICIBANK | C106: 259.25 | D106: 260.78 | E106: 254.97 | F106: 250.68 | G106: 244.87 | H106: 265.07 | I106: 270.88 | J106: 275.17 | K106: 266.6 | L106: 256.5 | M106: 297.94402
A107: 98 | B107: ICICIPRULI | C107: 352.7 | D107: 356.38 | E107: 346.77 | F107: 340.83 | G107: 331.22 | H107: 362.32 | I107: 371.93 | J107: 377.87 | K107: 366 | L107: 350.45 | M107: 11.71064
A108: 99 | B108: IDBI | C108: 56.45 | D108: 56.30 | E108: 53.40 | F108: 50.35 | G108: 47.45 | H108: 59.35 | I108: 62.25 | J108: 65.30 | K108: 59.2 | L108: 53.25 | M108: 663.35119
A109: 100 | B109: IDFCBANK | C109: 36.1 | D109: 36.72 | E109: 35.18 | F109: 34.27 | G109: 32.73 | H109: 37.63 | I109: 39.17 | J109: 40.08 | K109: 38.25 | L109: 35.8 | M109: 83.38794
A110: 101 | B110: IDFC | C110: 43.1 | D110: 43.77 | E110: 42.33 | F110: 41.57 | G110: 40.13 | H110: 44.53 | I110: 45.97 | J110: 46.73 | K110: 45.2 | L110: 43 | M110: 34.08202
A111: 102 | B111: IRB | C111: 189.55 | D111: 193.50 | E111: 182.20 | F111: 174.85 | G111: 163.55 | H111: 200.85 | I111: 212.15 | J111: 219.50 | K111: 204.8 | L111: 186.15 | M111: 35.90493
A112: 103 | B112: IDEA | C112: 52.45 | D112: 53.03 | E112: 51.57 | F112: 50.68 | G112: 49.22 | H112: 53.92 | I112: 55.38 | J112: 56.27 | K112: 54.5 | L112: 52.15 | M112: 208.4855
A113: 104 | B113: IBULHSGFIN | C113: 1137.55 | D113: 1129.40 | E113: 1114.40 | F113: 1091.25 | G113: 1076.25 | H113: 1152.55 | I113: 1167.55 | J113: 1190.70 | K113: 1144.4 | L113: 1106.25 | M113: 6.58816
A114: 105 | B114: INDIANB | C114: 322.85 | D114: 325.67 | E114: 315.08 | F114: 307.32 | G114: 296.73 | H114: 333.43 | I114: 344.02 | J114: 351.78 | K114: 336.25 | L114: 317.9 | M114: 6.02056
A115: 106 | B115: INDHOTEL | C115: 125.45 | D115: 125.28 | E115: 124.07 | F115: 122.68 | G115: 121.47 | H115: 126.67 | I115: 127.88 | J115: 129.27 | K115: 126.5 | L115: 123.9 | M115: 6.85127
A116: 107 | B116: IOC | C116: 157.5 | D116: 158.18 | E116: 156.37 | F116: 155.23 | G116: 153.42 | H116: 159.32 | I116: 161.13 | J116: 162.27 | K116: 160 | L116: 157.05 | M116: 58.99204
A117: 108 | B117: IGL | C117: 263.55 | D117: 260.13 | E117: 255.77 | F117: 247.98 | G117: 243.62 | H117: 267.92 | I117: 272.28 | J117: 280.07 | K117: 264.5 | L117: 252.35 | M117: 53.20621
A118: 109 | B118: INDUSINDBK | C118: 1922.75 | D118: 1930.58 | E118: 1910.67 | F118: 1898.58 | G118: 1878.67 | H118: 1942.67 | I118: 1962.58 | J118: 1974.67 | K118: 1950.5 | L118: 1918.5 | M118: 6.59528
A119: 110 | B119: NAUKRI | C119: 1246.35 | D119: 1264.12 | E119: 1212.23 | F119: 1178.12 | G119: 1126.23 | H119: 1298.23 | I119: 1350.12 | J119: 1384.23 | K119: 1316 | L119: 1230 | M119: 0.52174
A120: 111 | B120: INFY | C120: 1332.85 | D120: 1334.98 | E120: 1285.57 | F120: 1238.28 | G120: 1188.87 | H120: 1382.27 | I120: 1431.68 | J120: 1478.97 | K120: 1384.4 | L120: 1287.7 | M120: 176.7234
A121: 112 | B121: INDIGO | C121: 1100.85 | D121: 1096.82 | E121: 1083.63 | F121: 1066.42 | G121: 1053.23 | H121: 1114.03 | I121: 1127.22 | J121: 1144.43 | K121: 1110 | L121: 1079.6 | M121: 4.34502
A122: 113 | B122: IPCALAB | C122: 748.3 | D122: 749.78 | E122: 739.87 | F122: 731.43 | G122: 721.52 | H122: 758.22 | I122: 768.13 | J122: 776.57 | K122: 759.7 | L122: 741.35 | M122: 0.8099
A123: 114 | B123: JSWENERGY | C123: 63.6 | D123: 64.48 | E123: 62.52 | F123: 61.43 | G123: 59.47 | H123: 65.57 | I123: 67.53 | J123: 68.62 | K123: 66.45 | L123: 63.4 | M123: 8.55622
A124: 115 | B124: JSWSTEEL | C124: 307.65 | D124: 310.88 | E124: 303.27 | F124: 298.88 | G124: 291.27 | H124: 315.27 | I124: 322.88 | J124: 327.27 | K124: 318.5 | L124: 306.5 | M124: 23.16253
A125: 116 | B125: JINDALSTEL | C125: 196 | D125: 198.72 | E125: 190.53 | F125: 185.07 | G125: 176.88 | H125: 204.18 | I125: 212.37 | J125: 217.83 | K125: 206.9 | L125: 193.25 | M125: 138.66732
A126: 117 | B126: JUBLFOOD | C126: 1419.6 | D126: 1421.73 | E126: 1399.32 | F126: 1379.03 | G126: 1356.62 | H126: 1442.02 | I126: 1464.43 | J126: 1484.72 | K126: 1444.15 | L126: 1401.45 | M126: 15.05919
A127: 118 | B127: JUBILANT | C127: 743.3 | D127: 739.37 | E127: 728.93 | F127: 714.57 | G127: 704.13 | H127: 753.73 | I127: 764.17 | J127: 778.53 | K127: 749.8 | L127: 725 | M127: 1.79611
A128: 119 | B128: KARURVYSYA | C128: 99.25 | D128: 99.42 | E128: 98.38 | F128: 97.52 | G128: 96.48 | H128: 100.28 | I128: 101.32 | J128: 102.18 | K128: 100.45 | L128: 98.55 | M128: 6.5199
A129: 120 | B129: KOTAKBANK | C129: 1408.45 | D129: 1407.88 | E129: 1398.77 | F129: 1389.08 | G129: 1379.97 | H129: 1417.57 | I129: 1426.68 | J129: 1436.37 | K129: 1417 | L129: 1398.2 | M129: 15.05129
A130: 121 | B130: L&TFH | C130: 141.7 | D130: 143.17 | E130: 139.08 | F130: 136.47 | G130: 132.38 | H130: 145.78 | I130: 149.87 | J130: 152.48 | K130: 147.25 | L130: 140.55 | M130: 39.42727
A131: 122 | B131: LICHSGFIN | C131: 489.5 | D131: 492.18 | E131: 483.87 | F131: 478.23 | G131: 469.92 | H131: 497.82 | I131: 506.13 | J131: 511.77 | K131: 500.5 | L131: 486.55 | M131: 12.30696
A132: 123 | B132: LT | C132: 1283.1 | D132: 1287.38 | E132: 1273.62 | F132: 1264.13 | G132: 1250.37 | H132: 1296.87 | I132: 1310.63 | J132: 1320.12 | K132: 1301.15 | L132: 1277.9 | M132: 15.934
A133: 124 | B133: LUPIN | C133: 818.15 | D133: 833.15 | E133: 799.30 | F133: 780.45 | G133: 746.60 | H133: 852.00 | I133: 885.85 | J133: 904.70 | K133: 867 | L133: 814.3 | M133: 29.29578
A134: 125 | B134: MRF | C134: 74332 | D134: 75170.17 | E134: 73280.33 | F134: 72228.67 | G134: 70338.83 | H134: 76221.83 | I134: 78111.67 | J134: 79163.33 | K134: 77060 | L134: 74118.5 | M134: 0.07317
A135: 126 | B135: MGL | C135: 810.55 | D135: 808.07 | E135: 796.18 | F135: 781.82 | G135: 769.93 | H135: 822.43 | I135: 834.32 | J135: 848.68 | K135: 819.95 | L135: 793.7 | M135: 3.34541
A136: 127 | B136: M&MFIN | C136: 469.45 | D136: 470.00 | E136: 462.60 | F136: 455.75 | G136: 448.35 | H136: 476.85 | I136: 484.25 | J136: 491.10 | K136: 477.4 | L136: 463.15 | M136: 7.80112
A137: 128 | B137: M&M | C137: 900.35 | D137: 903.68 | E137: 891.67 | F137: 882.98 | G137: 870.97 | H137: 912.37 | I137: 924.38 | J137: 933.07 | K137: 915.7 | L137: 895 | M137: 19.0181
A138: 129 | B138: MANAPPURAM | C138: 98.9 | D138: 100.05 | E138: 97.10 | F138: 95.30 | G138: 92.35 | H138: 101.85 | I138: 104.80 | J138: 106.60 | K138: 103 | L138: 98.25 | M138: 17.94545
A139: 130 | B139: MRPL | C139: 73.75 | D139: 75.30 | E139: 71.80 | F139: 69.85 | G139: 66.35 | H139: 77.25 | I139: 80.75 | J139: 82.70 | K139: 78.8 | L139: 73.35 | M139: 9.94872
A140: 131 | B140: MARICO | C140: 351.75 | D140: 353.67 | E140: 347.68 | F140: 343.62 | G140: 337.63 | H140: 357.73 | I140: 363.72 | J140: 367.78 | K140: 359.65 | L140: 349.6 | M140: 19.04712
A141: 132 | B141: MARUTI | C141: 9385.3 | D141: 9413.07 | E141: 9327.23 | F141: 9269.17 | G141: 9183.33 | H141: 9471.13 | I141: 9556.97 | J141: 9615.03 | K141: 9498.9 | L141: 9355 | M141: 2.16426
A142: 133 | B142: MFSL | C142: 428.35 | D142: 432.27 | E142: 419.63 | F142: 410.92 | G142: 398.28 | H142: 440.98 | I142: 453.62 | J142: 462.33 | K142: 444.9 | L142: 423.55 | M142: 3.15326
A143: 134 | B143: MINDTREE | C143: 1080.65 | D143: 1073.25 | E143: 1059.50 | F143: 1038.35 | G143: 1024.60 | H143: 1094.40 | I143: 1108.15 | J143: 1129.30 | K143: 1087 | L143: 1052.1 | M143: 17.37976
A144: 135 | B144: MOTHERSUMI | C144: 283.75 | D144: 285.07 | E144: 279.68 | F144: 275.62 | G144: 270.23 | H144: 289.13 | I144: 294.52 | J144: 298.58 | K144: 290.45 | L144: 281 | M144: 16.91507
A145: 136 | B145: MPHASIS | C145: 1204.4 | D145: 1204.58 | E145: 1174.92 | F145: 1145.43 | G145: 1115.77 | H145: 1234.07 | I145: 1263.73 | J145: 1293.22 | K145: 1234.25 | L145: 1175.1 | M145: 3.15624
A146: 137 | B146: MUTHOOTFIN | C146: 388 | D146: 387.38 | E146: 379.77 | F146: 371.53 | G146: 363.92 | H146: 395.62 | I146: 403.23 | J146: 411.47 | K146: 395 | L146: 379.15 | M146: 17.43538
A147: 138 | B147: NATCOPHARM | C147: 789.15 | D147: 792.68 | E147: 780.57 | F147: 771.98 | G147: 759.87 | H147: 801.27 | I147: 813.38 | J147: 821.97 | K147: 804.8 | L147: 784.1 | M147: 1.92383
A148: 139 | B148: NBCC | C148: 61.5 | D148: 62.70 | E148: 60.00 | F148: 58.50 | G148: 55.80 | H148: 64.20 | I148: 66.90 | J148: 68.40 | K148: 65.4 | L148: 61.2 | M148: 52.68202
A149: 140 | B149: NHPC | C149: 23.9 | D149: 23.62 | E149: 23.18 | F149: 22.47 | G149: 22.03 | H149: 24.33 | I149: 24.77 | J149: 25.48 | K149: 24.05 | L149: 22.9 | M149: 87.1388
A150: 141 | B150: NMDC | C150: 96.15 | D150: 97.03 | E150: 94.37 | F150: 92.58 | G150: 89.92 | H150: 98.82 | I150: 101.48 | J150: 103.27 | K150: 99.7 | L150: 95.25 | M150: 16.80071
A151: 142 | B151: NTPC | C151: 155.6 | D151: 154.88 | E151: 152.77 | F151: 149.93 | G151: 147.82 | H151: 157.72 | I151: 159.83 | J151: 162.67 | K151: 157 | L151: 152.05 | M151: 34.3087
A152: 143 | B152: NATIONALUM | C152: 57.15 | D152: 57.57 | E152: 56.13 | F152: 55.12 | G152: 53.68 | H152: 58.58 | I152: 60.02 | J152: 61.03 | K152: 59 | L152: 56.55 | M152: 71.83771
A153: 144 | B153: OBEROIRLTY | C153: 461.45 | D153: 465.45 | E153: 452.10 | F153: 442.75 | G153: 429.40 | H153: 474.80 | I153: 488.15 | J153: 497.50 | K153: 478.8 | L153: 456.1 | M153: 2.21349
A154: 145 | B154: ONGC | C154: 153.8 | D154: 154.33 | E154: 152.52 | F154: 151.23 | G154: 149.42 | H154: 155.62 | I154: 157.43 | J154: 158.72 | K154: 156.15 | L154: 153.05 | M154: 36.8044
A155: 146 | B155: OIL | C155: 205.45 | D155: 205.50 | E155: 203.20 | F155: 200.95 | G155: 198.65 | H155: 207.75 | I155: 210.05 | J155: 212.30 | K155: 207.8 | L155: 203.25 | M155: 4.82721
A156: 147 | B156: OFSS | C156: 3917.35 | D156: 3934.85 | E156: 3865.80 | F156: 3814.25 | G156: 3745.20 | H156: 3986.40 | I156: 4055.45 | J156: 4107.00 | K156: 4003.9 | L156: 3883.3 | M156: 0.18402
A157: 148 | B157: PCJEWELLER | C157: 89.2 | D157: 93.70 | E157: 79.45 | F157: 69.70 | G157: 55.45 | H157: 103.45 | I157: 117.70 | J157: 127.45 | K157: 107.95 | L157: 83.95 | M157: 742.74287
A158: 149 | B158: PIIND | C158: 773.05 | D158: 775.63 | E158: 762.27 | F158: 751.48 | G158: 738.12 | H158: 786.42 | I158: 799.78 | J158: 810.57 | K158: 789 | L158: 764.85 | M158: 0.73519
A159: 150 | B159: PNBHOUSING | C159: 1218.65 | D159: 1218.48 | E159: 1196.17 | F159: 1173.68 | G159: 1151.37 | H159: 1240.97 | I159: 1263.28 | J159: 1285.77 | K159: 1240.8 | L159: 1196 | M159: 0.75878
A160: 151 | B160: PAGEIND | C160: 28160.1 | D160: 28218.38 | E160: 27844.37 | F160: 27528.63 | G160: 27154.62 | H160: 28534.12 | I160: 28908.13 | J160: 29223.87 | K160: 28592.4 | L160: 27902.65 | M160: 0.15634
A161: 152 | B161: PETRONET | C161: 207.2 | D161: 208.72 | E161: 205.23 | F161: 203.27 | G161: 199.78 | H161: 210.68 | I161: 214.17 | J161: 216.13 | K161: 212.2 | L161: 206.75 | M161: 39.23307
A162: 153 | B162: PIDILITIND | C162: 1053 | D162: 1052.77 | E162: 1036.53 | F162: 1020.07 | G162: 1003.83 | H162: 1069.23 | I162: 1085.47 | J162: 1101.93 | K162: 1069 | L162: 1036.3 | M162: 4.15489
A163: 154 | B163: PEL | C163: 2522.5 | D163: 2526.25 | E163: 2504.90 | F163: 2487.30 | G163: 2465.95 | H163: 2543.85 | I163: 2565.20 | J163: 2582.80 | K163: 2547.6 | L163: 2508.65 | M163: 2.11463
A164: 155 | B164: PFC | C164: 68.25 | D164: 69.20 | E164: 66.95 | F164: 65.65 | G164: 63.40 | H164: 70.50 | I164: 72.75 | J164: 74.05 | K164: 71.45 | L164: 67.9 | M164: 62.99351
A165: 156 | B165: POWERGRID | C165: 181.35 | D165: 181.48 | E165: 180.47 | F165: 179.58 | G165: 178.57 | H165: 182.37 | I165: 183.38 | J165: 184.27 | K165: 182.5 | L165: 180.6 | M165: 68.57537
A166: 157 | B166: PRESTIGE | C166: 252.6 | D166: 255.43 | E166: 245.17 | F166: 237.73 | G166: 227.47 | H166: 262.87 | I166: 273.13 | J166: 280.57 | K166: 265.7 | L166: 248 | M166: 0.863
A167: 158 | B167: PGHH | C167: 10104.05 | D167: 10108.52 | E167: 10017.03 | F167: 9930.02 | G167: 9838.53 | H167: 10195.53 | I167: 10287.02 | J167: 10374.03 | K167: 10200 | L167: 10021.5 | M167: 0.02721
A168: 159 | B168: PNB | C168: 73.85 | D168: 74.25 | E168: 73.10 | F168: 72.35 | G168: 71.20 | H168: 75.00 | I168: 76.15 | J168: 76.90 | K168: 75.4 | L168: 73.5 | M168: 194.26203
A169: 160 | B169: RBLBANK | C169: 550.2 | D169: 556.98 | E169: 541.72 | F169: 533.23 | G169: 517.97 | H169: 565.47 | I169: 580.73 | J169: 589.22 | K169: 572.25 | L169: 548.5 | M169: 10.39749
A170: 161 | B170: RAJESHEXPO | C170: 566.45 | D170: 569.78 | E170: 561.57 | F170: 556.68 | G170: 548.47 | H170: 574.67 | I170: 582.88 | J170: 587.77 | K170: 578 | L170: 564.9 | M170: 6.61259
A171: 162 | B171: RELCAPITAL | C171: 336.6 | D171: 347.03 | E171: 323.87 | F171: 311.13 | G171: 287.97 | H171: 359.77 | I171: 382.93 | J171: 395.67 | K171: 370.2 | L171: 334.3 | M171: 53.79802
A172: 163 | B172: RCOM | C172: 12.05 | D172: 12.30 | E172: 11.55 | F172: 11.05 | G172: 10.30 | H172: 12.80 | I172: 13.55 | J172: 14.05 | K172: 13.05 | L172: 11.8 | M172: 544.13372
A173: 164 | B173: RELIANCE | C173: 1076.2 | D173: 1086.05 | E173: 1063.20 | F173: 1050.20 | G173: 1027.35 | H173: 1099.05 | I173: 1121.90 | J173: 1134.90 | K173: 1108.9 | L173: 1073.05 | M173: 65.95781
A174: 165 | B174: RELINFRA | C174: 367.85 | D174: 373.25 | E174: 359.25 | F174: 350.65 | G174: 336.65 | H174: 381.85 | I174: 395.85 | J174: 404.45 | K174: 387.25 | L174: 364.65 | M174: 21.04946
A175: 166 | B175: RPOWER | C175: 29.15 | D175: 29.83 | E175: 28.37 | F175: 27.58 | G175: 26.12 | H175: 30.62 | I175: 32.08 | J175: 32.87 | K175: 31.3 | L175: 29.05 | M175: 68.82404
A176: 167 | B176: RECLTD | C176: 93.65 | D176: 94.33 | E176: 92.62 | F176: 91.58 | G176: 89.87 | H176: 95.37 | I176: 97.08 | J176: 98.12 | K176: 96.05 | L176: 93.3 | M176: 36.63568
A177: 168 | B177: SRF | C177: 1584.5 | D177: 1605.65 | E177: 1553.85 | F177: 1523.20 | G177: 1471.40 | H177: 1636.30 | I177: 1688.10 | J177: 1718.75 | K177: 1657.45 | L177: 1575 | M177: 3.27183
A178: 169 | B178: SHREECEM | C178: 16338.7 | D178: 16579.10 | E178: 15961.10 | F178: 15583.50 | G178: 14965.50 | H178: 16956.70 | I178: 17574.70 | J178: 17952.30 | K178: 17197.1 | L178: 16201.5 | M178: 0.23408
A179: 170 | B179: SRTRANSFIN | C179: 1212.25 | D179: 1218.03 | E179: 1157.07 | F179: 1101.88 | G179: 1040.92 | H179: 1273.22 | I179: 1334.18 | J179: 1389.37 | K179: 1279 | L179: 1162.85 | M179: 33.92497
A180: 171 | B180: SIEMENS | C180: 953.25 | D180: 955.15 | E180: 938.25 | F180: 923.25 | G180: 906.35 | H180: 970.15 | I180: 987.05 | J180: 1002.05 | K180: 972.05 | L180: 940.15 | M180: 1.41328
A181: 172 | B181: SBIN | C181: 251.6 | D181: 253.37 | E181: 249.23 | F181: 246.87 | G181: 242.73 | H181: 255.73 | I181: 259.87 | J181: 262.23 | K181: 257.5 | L181: 251 | M181: 89.65623
A182: 173 | B182: SAIL | C182: 70.95 | D182: 72.18 | E182: 69.47 | F182: 67.98 | G182: 65.27 | H182: 73.67 | I182: 76.38 | J182: 77.87 | K182: 74.9 | L182: 70.7 | M182: 93.78133
A183: 174 | B183: SPARC | C183: 358.35 | D183: 363.45 | E183: 351.90 | F183: 345.45 | G183: 333.90 | H183: 369.90 | I183: 381.45 | J183: 387.90 | K183: 375 | L183: 357 | M183: 1.26363
A184: 175 | B184: SUNPHARMA | C184: 533.95 | D184: 541.55 | E184: 523.10 | F184: 512.25 | G184: 493.80 | H184: 552.40 | I184: 570.85 | J184: 581.70 | K184: 560 | L184: 530.7 | M184: 42.6733
A185: 176 | B185: SUNTV | C185: 744 | D185: 756.05 | E185: 724.70 | F185: 705.40 | G185: 674.05 | H185: 775.35 | I185: 806.70 | J185: 826.00 | K185: 787.4 | L185: 736.75 | M185: 14.96471
A186: 177 | B186: SUZLON | C186: 7.05 | D186: 7.15 | E186: 6.85 | F186: 6.65 | G186: 6.35 | H186: 7.35 | I186: 7.65 | J186: 7.85 | K186: 7.45 | L186: 6.95 | M186: 390.1924
A187: 178 | B187: SYNDIBANK | C187: 37.75 | D187: 38.35 | E187: 36.95 | F187: 36.15 | G187: 34.75 | H187: 39.15 | I187: 40.55 | J187: 41.35 | K187: 39.75 | L187: 37.55 | M187: 26.81814
A188: 179 | B188: SYNGENE | C188: 602.25 | D188: 601.68 | E188: 594.57 | F188: 586.88 | G188: 579.77 | H188: 609.37 | I188: 616.48 | J188: 624.17 | K188: 608.8 | L188: 594 | M188: 0.48919
A189: 180 | B189: TV18BRDCST | C189: 44.85 | D189: 44.93 | E189: 43.62 | F189: 42.38 | G189: 41.07 | H189: 46.17 | I189: 47.48 | J189: 48.72 | K189: 46.25 | L189: 43.7 | M189: 84.63199
A190: 181 | B190: TVSMOTOR | C190: 570.2 | D190: 574.08 | E190: 559.12 | F190: 548.03 | G190: 533.07 | H190: 585.17 | I190: 600.13 | J190: 611.22 | K190: 589.05 | L190: 563 | M190: 22.88068
A191: 182 | B191: TATACHEM | C191: 669.45 | D191: 673.65 | E191: 662.80 | F191: 656.15 | G191: 645.30 | H191: 680.30 | I191: 691.15 | J191: 697.80 | K191: 684.5 | L191: 667 | M191: 5.30357
A192: 183 | B192: TATACOMM | C192: 563.6 | D192: 573.88 | E192: 547.77 | F192: 531.93 | G192: 505.82 | H192: 589.72 | I192: 615.83 | J192: 631.67 | K192: 600 | L192: 558.05 | M192: 3.95401
A193: 184 | B193: TCS | C193: 1989.2 | D193: 1987.55 | E193: 1979.10 | F193: 1969.00 | G193: 1960.55 | H193: 1997.65 | I193: 2006.10 | J193: 2016.20 | K193: 1996 | L193: 1977.45 | M193: 25.82159
A194: 185 | B194: TATAGLOBAL | C194: 243.25 | D194: 247.75 | E194: 237.60 | F194: 231.95 | G194: 221.80 | H194: 253.40 | I194: 263.55 | J194: 269.20 | K194: 257.9 | L194: 242.1 | M194: 34.54849
A195: 186 | B195: TATAMTRDVR | C195: 142.75 | D195: 144.73 | E195: 139.72 | F195: 136.68 | G195: 131.67 | H195: 147.77 | I195: 152.78 | J195: 155.82 | K195: 149.75 | L195: 141.7 | M195: 29.62135
A196: 187 | B196: TATAMOTORS | C196: 252.1 | D196: 254.47 | E196: 248.13 | F196: 244.17 | G196: 237.83 | H196: 258.43 | I196: 264.77 | J196: 268.73 | K196: 260.8 | L196: 250.5 | M196: 110.67012
A197: 188 | B197: TATAPOWER | C197: 68.95 | D197: 69.25 | E197: 68.35 | F197: 67.75 | G197: 66.85 | H197: 69.85 | I197: 70.75 | J197: 71.35 | K197: 70.15 | L197: 68.65 | M197: 21.82138
A198: 189 | B198: TATASTEEL | C198: 519.25 | D198: 532.07 | E198: 504.23 | F198: 489.22 | G198: 461.38 | H198: 547.08 | I198: 574.92 | J198: 589.93 | K198: 559.9 | L198: 517.05 | M198: 111.59885
A199: 190 | B199: TECHM | C199: 657.3 | D199: 652.35 | E199: 643.15 | F199: 629.00 | G199: 619.80 | H199: 666.50 | I199: 675.70 | J199: 689.85 | K199: 661.55 | L199: 638.2 | M199: 28.56991
A200: 191 | B200: RAMCOCEM | C200: 638.2 | D200: 642.43 | E200: 624.87 | F200: 611.53 | G200: 593.97 | H200: 655.77 | I200: 673.33 | J200: 686.67 | K200: 660 | L200: 629.1 | M200: 4.14028
A201: 192 | B201: TITAN | C201: 831.2 | D201: 830.47 | E201: 816.83 | F201: 802.47 | G201: 788.83 | H201: 844.83 | I201: 858.47 | J201: 872.83 | K201: 844.1 | L201: 816.1 | M201: 32.56321
A202: 193 | B202: TORNTPHARM | C202: 1434.55 | D202: 1444.18 | E202: 1420.37 | F202: 1406.18 | G202: 1382.37 | H202: 1458.37 | I202: 1482.18 | J202: 1496.37 | K202: 1468 | L202: 1430 | M202: 3.15573
A203: 194 | B203: TORNTPOWER | C203: 219.35 | D203: 221.43 | E203: 216.42 | F203: 213.48 | G203: 208.47 | H203: 224.37 | I203: 229.38 | J203: 232.32 | K203: 226.45 | L203: 218.5 | M203: 3.73031
A204: 195 | B204: UPL | C204: 559.8 | D204: 560.73 | E204: 552.17 | F204: 544.53 | G204: 535.97 | H204: 568.37 | I204: 576.93 | J204: 584.57 | K204: 569.3 | L204: 553.1 | M204: 47.69976
A205: 196 | B205: ULTRACEMCO | C205: 3864 | D205: 3891.92 | E205: 3806.28 | F205: 3748.57 | G205: 3662.93 | H205: 3949.63 | I205: 4035.27 | J205: 4092.98 | K205: 3977.55 | L205: 3834.2 | M205: 2.84241
... 30 more rows

Sheet MidCap Intra
L5: Back To Main Page
A6: FOR INTRA DAY TRADING | K6: =Main!B10 -> 2018-07-17
A9: Sr.no | B9: Scrip | C9: CLOSE RATE | D9: Pivot Point | E9: Supports | H9: Resistances
C10: Point | E10: S1 | F10: S2 | G10: S3 | H10: R1 | I10: R2 | J10: R3 | K10: HIGH | L10: LOW | M10: Total Trade Quanity in Lakhs
A11: 1 | B11: 3MINDIA | C11: 19679.75 | D11: 19741.53 | E11: 19484.37 | F11: 19288.98 | G11: 19031.82 | H11: 19936.92 | I11: 20194.08 | J11: 20389.47 | K11: 19998.7 | L11: 19546.15 | M11: 0.00967
A12: 2 | B12: 8KMILES | C12: 345 | D12: 344.73 | E12: 335.47 | F12: 325.93 | G12: 316.67 | H12: 354.27 | I12: 363.53 | J12: 373.07 | K12: 354 | L12: 335.2 | M12: 3.22457
A13: 3 | B13: AARTIIND | C13: 1218.55 | D13: 1226.10 | E13: 1203.40 | F13: 1188.25 | G13: 1165.55 | H13: 1241.25 | I13: 1263.95 | J13: 1279.10 | K13: 1248.8 | L13: 1210.95 | M13: 0.07879
A14: 4 | B14: ABAN | C14: 106.25 | D14: 107.52 | E14: 103.73 | F14: 101.22 | G14: 97.43 | H14: 110.03 | I14: 113.82 | J14: 116.33 | K14: 111.3 | L14: 105 | M14: 3.60399
A15: 5 | B15: ABB | C15: 1194.6 | D15: 1207.07 | E15: 1179.18 | F15: 1163.77 | G15: 1135.88 | H15: 1222.48 | I15: 1250.37 | J15: 1265.78 | K15: 1234.95 | L15: 1191.65 | M15: 0.35525
A16: 6 | B16: ABCAPITAL | C16: 126.95 | D16: 127.98 | E16: 125.57 | F16: 124.18 | G16: 121.77 | H16: 129.37 | I16: 131.78 | J16: 133.17 | K16: 130.4 | L16: 126.6 | M16: 8.05382
A17: 7 | B17: ABFRL | C17: 136.7 | D17: 136.30 | E17: 134.60 | F17: 132.50 | G17: 130.80 | H17: 138.40 | I17: 140.10 | J17: 142.20 | K17: 138 | L17: 134.2 | M17: 1.43569
A18: 8 | B18: ACC | C18: 1266.85 | D18: 1289.67 | E18: 1237.53 | F18: 1208.22 | G18: 1156.08 | H18: 1318.98 | I18: 1371.12 | J18: 1400.43 | K18: 1341.8 | L18: 1260.35 | M18: 4.74561
A19: 9 | B19: ADANIPORTS | C19: 360.05 | D19: 363.62 | E19: 354.93 | F19: 349.82 | G19: 341.13 | H19: 368.73 | I19: 377.42 | J19: 382.53 | K19: 372.3 | L19: 358.5 | M19: 13.40324
A20: 10 | B20: ADANIPOWER | C20: 19.55 | D20: 19.50 | E20: 18.90 | F20: 18.25 | G20: 17.65 | H20: 20.15 | I20: 20.75 | J20: 21.40 | K20: 20.1 | L20: 18.85 | M20: 225.62838
A21: 11 | B21: ADANITRANS | C21: 153.95 | D21: 155.68 | E21: 150.57 | F21: 147.18 | G21: 142.07 | H21: 159.07 | I21: 164.18 | J21: 167.57 | K21: 160.8 | L21: 152.3 | M21: 3.51796
A22: 12 | B22: ADVENZYMES | C22: 207.1 | D22: 208.60 | E22: 204.00 | F22: 200.90 | G22: 196.30 | H22: 211.70 | I22: 216.30 | J22: 219.40 | K22: 213.2 | L22: 205.5 | M22: 0.89193
A23: 13 | B23: AEGISCHEM | C23: 228.45 | D23: 230.97 | E23: 222.93 | F23: 217.42 | G23: 209.38 | H23: 236.48 | I23: 244.52 | J23: 250.03 | K23: 239 | L23: 225.45 | M23: 0.8744
A24: 14 | B24: AIAENG | C24: 1541.35 | D24: 1565.42 | E24: 1505.03 | F24: 1468.72 | G24: 1408.33 | H24: 1601.73 | I24: 1662.12 | J24: 1698.43 | K24: 1625.8 | L24: 1529.1 | M24: 0.23682
A25: 15 | B25: AJANTPHARM | C25: 969.25 | D25: 985.42 | E25: 940.83 | F25: 912.42 | G25: 867.83 | H25: 1013.83 | I25: 1058.42 | J25: 1086.83 | K25: 1030 | L25: 957 | M25: 4.03103
A26: 16 | B26: AKZOINDIA | C26: 1867.35 | D26: 1873.53 | E26: 1849.07 | F26: 1830.78 | G26: 1806.32 | H26: 1891.82 | I26: 1916.28 | J26: 1934.57 | K26: 1898 | L26: 1855.25 | M26: 0.03751
A27: 17 | B27: ALBK | C27: 39.65 | D27: 39.68 | E27: 38.77 | F27: 37.88 | G27: 36.97 | H27: 40.57 | I27: 41.48 | J27: 42.37 | K27: 40.6 | L27: 38.8 | M27: 50.02978
A28: 18 | B28: ALKEM | C28: 1884.9 | D28: 1886.63 | E28: 1853.27 | F28: 1821.63 | G28: 1788.27 | H28: 1918.27 | I28: 1951.63 | J28: 1983.27 | K28: 1920 | L28: 1855 | M28: 0.11093
A29: 19 | B29: ALLCARGO | C29: 109.85 | D29: 111.58 | E29: 107.27 | F29: 104.68 | G29: 100.37 | H29: 114.17 | I29: 118.48 | J29: 121.07 | K29: 115.9 | L29: 109 | M29: 2.41601
A30: 20 | B30: AMARAJABAT | C30: 778.6 | D30: 785.95 | E30: 767.10 | F30: 755.60 | G30: 736.75 | H30: 797.45 | I30: 816.30 | J30: 827.80 | K30: 804.8 | L30: 774.45 | M30: 3.61342
A31: 21 | B31: AMBUJACEM | C31: 190.55 | D31: 192.68 | E31: 187.42 | F31: 184.28 | G31: 179.02 | H31: 195.82 | I31: 201.08 | J31: 204.22 | K31: 197.95 | L31: 189.55 | M31: 19.94603
A32: 22 | B32: ANDHRABANK | C32: 29.55 | D32: 29.92 | E32: 29.08 | F32: 28.62 | G32: 27.78 | H32: 30.38 | I32: 31.22 | J32: 31.68 | K32: 30.75 | L32: 29.45 | M32: 35.65877
A33: 23 | B33: APLAPOLLO | C33: 1670.8 | D33: 1668.32 | E33: 1642.18 | F33: 1613.57 | G33: 1587.43 | H33: 1696.93 | I33: 1723.07 | J33: 1751.68 | K33: 1694.45 | L33: 1639.7 | M33: 0.06854
A34: 24 | B34: APLLTD | C34: 525.15 | D34: 527.87 | E34: 520.03 | F34: 514.92 | G34: 507.08 | H34: 532.98 | I34: 540.82 | J34: 545.93 | K34: 535.7 | L34: 522.75 | M34: 0.53887
A35: 25 | B35: APOLLOHOSP | C35: 940.7 | D35: 951.15 | E35: 924.55 | F35: 908.40 | G35: 881.80 | H35: 967.30 | I35: 993.90 | J35: 1010.05 | K35: 977.75 | L35: 935 | M35: 6.42308
A36: 26 | B36: APOLLOTYRE | C36: 268.25 | D36: 267.25 | E36: 264.50 | F36: 260.75 | G36: 258.00 | H36: 271.00 | I36: 273.75 | J36: 277.50 | K36: 270 | L36: 263.5 | M36: 16.88534
A37: 27 | B37: ARVIND | C37: 388.7 | D37: 395.95 | E37: 376.90 | F37: 365.10 | G37: 346.05 | H37: 407.75 | I37: 426.80 | J37: 438.60 | K37: 415 | L37: 384.15 | M37: 10.6287
A38: 28 | B38: ASAHIINDIA | C38: 329 | D38: 331.90 | E38: 326.00 | F38: 323.00 | G38: 317.10 | H38: 334.90 | I38: 340.80 | J38: 343.80 | K38: 337.8 | L38: 328.9 | M38: 0.44063
A39: 29 | B39: ASHOKA | C39: 153.2 | D39: 155.30 | E39: 150.80 | F39: 148.40 | G39: 143.90 | H39: 157.70 | I39: 162.20 | J39: 164.60 | K39: 159.8 | L39: 152.9 | M39: 2.18402
A40: 30 | B40: ASHOKLEY | C40: 125.7 | D40: 126.52 | E40: 119.58 | F40: 113.47 | G40: 106.53 | H40: 132.63 | I40: 139.57 | J40: 145.68 | K40: 133.45 | L40: 120.4 | M40: 308.7439
A41: 31 | B41: ASIANPAINT | C41: 1359.55 | D41: 1368.52 | E41: 1342.13 | F41: 1324.72 | G41: 1298.33 | H41: 1385.93 | I41: 1412.32 | J41: 1429.73 | K41: 1394.9 | L41: 1351.1 | M41: 12.34066
A42: 32 | B42: ASTRAL | C42: 1037.25 | D42: 1046.08 | E42: 1023.37 | F42: 1009.48 | G42: 986.77 | H42: 1059.97 | I42: 1082.68 | J42: 1096.57 | K42: 1068.8 | L42: 1032.2 | M42: 0.20752
A43: 33 | B43: ATUL | C43: 2774.3 | D43: 2767.77 | E43: 2741.53 | F43: 2708.77 | G43: 2682.53 | H43: 2800.53 | I43: 2826.77 | J43: 2859.53 | K43: 2794 | L43: 2735 | M43: 0.11892
A44: 34 | B44: AUBANK | C44: 634.95 | D44: 637.02 | E44: 629.13 | F44: 623.32 | G44: 615.43 | H44: 642.83 | I44: 650.72 | J44: 656.53 | K44: 644.9 | L44: 631.2 | M44: 4.48146
A45: 35 | B45: AUROPHARMA | C45: 571.65 | D45: 583.68 | E45: 555.42 | F45: 539.18 | G45: 510.92 | H45: 599.92 | I45: 628.18 | J45: 644.42 | K45: 611.95 | L45: 567.45 | M45: 34.21686
A46: 36 | B46: AVANTIFEED | C46: 419.4 | D46: 426.40 | E46: 408.00 | F46: 396.60 | G46: 378.20 | H46: 437.80 | I46: 456.20 | J46: 467.60 | K46: 444.8 | L46: 415 | M46: 6.94191
A47: 37 | B47: AXISBANK | C47: 522.1 | D47: 523.45 | E47: 517.00 | F47: 511.90 | G47: 505.45 | H47: 528.55 | I47: 535.00 | J47: 540.10 | K47: 529.9 | L47: 518.35 | M47: 50.32325
A48: 38 | B48: BAJAJ-AUTO | C48: 3101.85 | D48: 3119.27 | E48: 3073.53 | F48: 3045.22 | G48: 2999.48 | H48: 3147.58 | I48: 3193.32 | J48: 3221.63 | K48: 3165 | L48: 3090.95 | M48: 3.74574
A49: 39 | B49: BAJAJCORP | C49: 412.65 | D49: 406.40 | E49: 396.80 | F49: 380.95 | G49: 371.35 | H49: 422.25 | I49: 431.85 | J49: 447.70 | K49: 416 | L49: 390.55 | M49: 3.0786
A50: 40 | B50: BAJAJELEC | C50: 524.2 | D50: 530.25 | E50: 508.95 | F50: 493.70 | G50: 472.40 | H50: 545.50 | I50: 566.80 | J50: 582.05 | K50: 551.55 | L50: 515 | M50: 3.30532
A51: 41 | B51: BAJAJFINSV | C51: 6247.85 | D51: 6271.48 | E51: 6192.37 | F51: 6136.88 | G51: 6057.77 | H51: 6326.97 | I51: 6406.08 | J51: 6461.57 | K51: 6350.6 | L51: 6216 | M51: 1.31475
A52: 42 | B52: BAJAJHIND | C52: 6.1 | D52: 6.23 | E52: 5.92 | F52: 5.73 | G52: 5.42 | H52: 6.42 | I52: 6.73 | J52: 6.92 | K52: 6.55 | L52: 6.05 | M52: 14.53044
A53: 43 | B53: BAJAJHLDNG | C53: 2942.2 | D53: 2965.32 | E53: 2906.98 | F53: 2871.77 | G53: 2813.43 | H53: 3000.53 | I53: 3058.87 | J53: 3094.08 | K53: 3023.65 | L53: 2930.1 | M53: 0.10207
A54: 44 | B54: BAJFINANCE | C54: 2472.3 | D54: 2477.23 | E54: 2455.07 | F54: 2437.83 | G54: 2415.67 | H54: 2494.47 | I54: 2516.63 | J54: 2533.87 | K54: 2499.4 | L54: 2460 | M54: 11.72644
A55: 45 | B55: BALKRISIND | C55: 1137.25 | D55: 1149.28 | E55: 1118.67 | F55: 1100.08 | G55: 1069.47 | H55: 1167.87 | I55: 1198.48 | J55: 1217.07 | K55: 1179.9 | L55: 1130.7 | M55: 5.14224
A56: 46 | B56: BALLARPUR | C56: 9.1 | D56: 9.32 | E56: 8.88 | F56: 8.67 | G56: 8.23 | H56: 9.53 | I56: 9.97 | J56: 10.18 | K56: 9.75 | L56: 9.1 | M56: 6.891
A57: 47 | B57: BALMLAWRIE | C57: 208.7 | D57: 209.72 | E57: 207.03 | F57: 205.37 | G57: 202.68 | H57: 211.38 | I57: 214.07 | J57: 215.73 | K57: 212.4 | L57: 208.05 | M57: 0.51986
A58: 48 | B58: BALRAMCHIN | C58: 66.65 | D58: 66.72 | E58: 65.53 | F58: 64.42 | G58: 63.23 | H58: 67.83 | I58: 69.02 | J58: 70.13 | K58: 67.9 | L58: 65.6 | M58: 60.00767
A59: 49 | B59: BANKBARODA | C59: 113.05 | D59: 114.12 | E59: 110.93 | F59: 108.82 | G59: 105.63 | H59: 116.23 | I59: 119.42 | J59: 121.53 | K59: 117.3 | L59: 112 | M59: 86.1059
A60: 50 | B60: BANKINDIA | C60: 77.5 | D60: 78.77 | E60: 75.53 | F60: 73.57 | G60: 70.33 | H60: 80.73 | I60: 83.97 | J60: 85.93 | K60: 82 | L60: 76.8 | M60: 52.72685
A61: 51 | B61: BASF | C61: 1880.5 | D61: 1879.82 | E61: 1853.13 | F61: 1825.77 | G61: 1799.08 | H61: 1907.18 | I61: 1933.87 | J61: 1961.23 | K61: 1906.5 | L61: 1852.45 | M61: 0.05241
A62: 52 | B62: BATAINDIA | C62: 818.7 | D62: 821.22 | E62: 810.58 | F62: 802.47 | G62: 791.83 | H62: 829.33 | I62: 839.97 | J62: 848.08 | K62: 831.85 | L62: 813.1 | M62: 7.88585
A63: 53 | B63: BBTC | C63: 1508.45 | D63: 1519.82 | E63: 1483.63 | F63: 1458.82 | G63: 1422.63 | H63: 1544.63 | I63: 1580.82 | J63: 1605.63 | K63: 1556 | L63: 1495 | M63: 1.59029
A64: 54 | B64: BEL | C64: 101 | D64: 102.20 | E64: 99.30 | F64: 97.60 | G64: 94.70 | H64: 103.90 | I64: 106.80 | J64: 108.50 | K64: 105.1 | L64: 100.5 | M64: 52.98386
A65: 55 | B65: BEML | C65: 771.6 | D65: 777.58 | E65: 755.17 | F65: 738.73 | G65: 716.32 | H65: 794.02 | I65: 816.43 | J65: 832.87 | K65: 800 | L65: 761.15 | M65: 7.55802
A66: 56 | B66: BERGEPAINT | C66: 299.55 | D66: 301.20 | E66: 295.15 | F66: 290.75 | G66: 284.70 | H66: 305.60 | I66: 311.65 | J66: 316.05 | K66: 307.25 | L66: 296.8 | M66: 7.57383
A67: 57 | B67: BFUTILITIE | C67: 289.05 | D67: 294.52 | E67: 281.03 | F67: 273.02 | G67: 259.53 | H67: 302.53 | I67: 316.02 | J67: 324.03 | K67: 308 | L67: 286.5 | M67: 2.25575
A68: 58 | B68: BGRENERGY | C68: 86.2 | D68: 87.52 | E68: 84.43 | F68: 82.67 | G68: 79.58 | H68: 89.28 | I68: 92.37 | J68: 94.13 | K68: 90.6 | L68: 85.75 | M68: 1.15935
A69: 59 | B69: BHARATFIN | C69: 1163.15 | D69: 1169.05 | E69: 1154.10 | F69: 1145.05 | G69: 1130.10 | H69: 1178.10 | I69: 1193.05 | J69: 1202.10 | K69: 1184 | L69: 1160 | M69: 4.06224
A70: 60 | B70: BHARATFORG | C70: 590.9 | D70: 596.20 | E70: 582.70 | F70: 574.50 | G70: 561.00 | H70: 604.40 | I70: 617.90 | J70: 626.10 | K70: 609.7 | L70: 588 | M70: 8.33272
A71: 61 | B71: BHARTIARTL | C71: 347.4 | D71: 350.65 | E71: 341.55 | F71: 335.70 | G71: 326.60 | H71: 356.50 | I71: 365.60 | J71: 371.45 | K71: 359.75 | L71: 344.8 | M71: 32.61119
A72: 62 | B72: BHEL | C72: 65 | D72: 65.62 | E72: 63.98 | F72: 62.97 | G72: 61.33 | H72: 66.63 | I72: 68.27 | J72: 69.28 | K72: 67.25 | L72: 64.6 | M72: 54.98218
A73: 63 | B73: BHUSANSTL | C73: 24.5 | D73: 25.07 | E73: 23.93 | F73: 23.37 | G73: 22.23 | H73: 25.63 | I73: 26.77 | J73: 27.33 | K73: 26.2 | L73: 24.5 | M73: 14.30568
A74: 64 | B74: BIOCON | C74: 582.55 | D74: 587.52 | E74: 573.03 | F74: 563.52 | G74: 549.03 | H74: 597.03 | I74: 611.52 | J74: 621.03 | K74: 602 | L74: 578 | M74: 17.17726
A75: 65 | B75: BIRLACORPN | C75: 693.1 | D75: 690.70 | E75: 673.40 | F75: 653.70 | G75: 636.40 | H75: 710.40 | I75: 727.70 | J75: 747.40 | K75: 708 | L75: 671 | M75: 0.57439
A76: 66 | B76: BLISSGVS | C76: 167.55 | D76: 167.33 | E76: 164.77 | F76: 161.98 | G76: 159.42 | H76: 170.12 | I76: 172.68 | J76: 175.47 | K76: 169.9 | L76: 164.55 | M76: 1.71879
A77: 67 | B77: BLUEDART | C77: 3583.15 | D77: 3575.73 | E77: 3551.47 | F77: 3519.78 | G77: 3495.52 | H77: 3607.42 | I77: 3631.68 | J77: 3663.37 | K77: 3600 | L77: 3544.05 | M77: 0.00857
A78: 68 | B78: BLUESTARCO | C78: 660.7 | D78: 666.42 | E78: 654.23 | F78: 647.77 | G78: 635.58 | H78: 672.88 | I78: 685.07 | J78: 691.53 | K78: 678.6 | L78: 659.95 | M78: 0.30956
A79: 69 | B79: BOMDYEING | C79: 211.35 | D79: 215.38 | E79: 207.32 | F79: 203.28 | G79: 195.22 | H79: 219.42 | I79: 227.48 | J79: 231.52 | K79: 223.45 | L79: 211.35 | M79: 0.74405
A80: 70 | B80: BOSCHLTD | C80: 17368.85 | D80: 17455.45 | E80: 17213.40 | F80: 17057.95 | G80: 16815.90 | H80: 17610.90 | I80: 17852.95 | J80: 18008.40 | K80: 17697.5 | L80: 17300 | M80: 0.1016
A81: 71 | B81: BPCL | C81: 382.2 | D81: 384.70 | E81: 377.40 | F81: 372.60 | G81: 365.30 | H81: 389.50 | I81: 396.80 | J81: 401.60 | K81: 392 | L81: 379.9 | M81: 35.35136
A82: 72 | B82: BRFL | C82: 20.3 | D82: 20.60 | E82: 19.75 | F82: 19.20 | G82: 18.35 | H82: 21.15 | I82: 22.00 | J82: 22.55 | K82: 21.45 | L82: 20.05 | M82: 0.35323
A83: 73 | B83: BRIGADE | C83: 192.2 | D83: 194.13 | E83: 190.07 | F83: 187.93 | G83: 183.87 | H83: 196.27 | I83: 200.33 | J83: 202.47 | K83: 198.2 | L83: 192 | M83: 0.32348
A84: 74 | B84: BRITANNIA | C84: 6532.7 | D84: 6533.22 | E84: 6499.43 | F84: 6466.17 | G84: 6432.38 | H84: 6566.48 | I84: 6600.27 | J84: 6633.53 | K84: 6567 | L84: 6499.95 | M84: 0.86137
A85: 75 | B85: BSE | C85: 821.3 | D85: 826.82 | E85: 808.58 | F85: 795.87 | G85: 777.63 | H85: 839.53 | I85: 857.77 | J85: 870.48 | K85: 845.05 | L85: 814.1 | M85: 0.88724
A86: 77 | B86: CADILAHC | C86: 349.75 | D86: 354.37 | E86: 343.38 | F86: 337.02 | G86: 326.03 | H86: 360.73 | I86: 371.72 | J86: 378.08 | K86: 365.35 | L86: 348 | M86: 11.77909
A87: 78 | B87: CANBK | C87: 222.35 | D87: 223.30 | E87: 215.60 | F87: 208.85 | G87: 201.15 | H87: 230.05 | I87: 237.75 | J87: 244.50 | K87: 231 | L87: 216.55 | M87: 54.29186
A88: 79 | B88: CANFINHOME | C88: 324.2 | D88: 327.40 | E88: 316.80 | F88: 309.40 | G88: 298.80 | H88: 334.80 | I88: 345.40 | J88: 352.80 | K88: 338 | L88: 320 | M88: 9.03578
A89: 80 | B89: CAPF | C89: 481.15 | D89: 487.68 | E89: 471.97 | F89: 462.78 | G89: 447.07 | H89: 496.87 | I89: 512.58 | J89: 521.77 | K89: 503.4 | L89: 478.5 | M89: 5.50111
A90: 81 | B90: CAPLIPOINT | C90: 391.1 | D90: 394.80 | E90: 383.65 | F90: 376.20 | G90: 365.05 | H90: 402.25 | I90: 413.40 | J90: 420.85 | K90: 405.95 | L90: 387.35 | M90: 0.18094
A91: 82 | B91: CARBORUNIV | C91: 325.1 | D91: 331.38 | E91: 318.72 | F91: 312.33 | G91: 299.67 | H91: 337.77 | I91: 350.43 | J91: 356.82 | K91: 344.05 | L91: 325 | M91: 1.40345
A92: 83 | B92: CARERATING | C92: 1245.3 | D92: 1241.20 | E92: 1230.45 | F92: 1215.60 | G92: 1204.85 | H92: 1256.05 | I92: 1266.80 | J92: 1281.65 | K92: 1251.95 | L92: 1226.35 | M92: 0.26693
A93: 84 | B93: CASTROLIND | C93: 155.35 | D93: 156.60 | E93: 152.45 | F93: 149.55 | G93: 145.40 | H93: 159.50 | I93: 163.65 | J93: 166.55 | K93: 160.75 | L93: 153.7 | M93: 8.25117
A94: 85 | B94: CCL | C94: 271.2 | D94: 275.40 | E94: 264.80 | F94: 258.40 | G94: 247.80 | H94: 281.80 | I94: 292.40 | J94: 298.80 | K94: 286 | L94: 269 | M94: 2.77601
A95: 86 | B95: CDSL | C95: 262.15 | D95: 263.83 | E95: 259.37 | F95: 256.58 | G95: 252.12 | H95: 266.62 | I95: 271.08 | J95: 273.87 | K95: 268.3 | L95: 261.05 | M95: 1.7011
A96: 87 | B96: CEATLTD | C96: 1242.8 | D96: 1250.87 | E96: 1227.03 | F96: 1211.27 | G96: 1187.43 | H96: 1266.63 | I96: 1290.47 | J96: 1306.23 | K96: 1274.7 | L96: 1235.1 | M96: 3.66777
A97: 88 | B97: CENTRALBK | C97: 67.85 | D97: 67.35 | E97: 66.70 | F97: 65.55 | G97: 64.90 | H97: 68.50 | I97: 69.15 | J97: 70.30 | K97: 68 | L97: 66.2 | M97: 1.88427
A98: 89 | B98: CENTURYPLY | C98: 233.35 | D98: 236.52 | E98: 226.03 | F98: 218.72 | G98: 208.23 | H98: 243.83 | I98: 254.32 | J98: 261.63 | K98: 247 | L98: 229.2 | M98: 6.6293
A99: 90 | B99: CENTURYTEX | C99: 846.85 | D99: 859.80 | E99: 829.60 | F99: 812.35 | G99: 782.15 | H99: 877.05 | I99: 907.25 | J99: 924.50 | K99: 890 | L99: 842.55 | M99: 6.08292
A100: 91 | B100: CERA | C100: 2690.15 | D100: 2708.02 | E100: 2661.13 | F100: 2632.12 | G100: 2585.23 | H100: 2737.03 | I100: 2783.92 | J100: 2812.93 | K100: 2754.9 | L100: 2679 | M100: 0.19782
A101: 92 | B101: CGPOWER | C101: 54.75 | D101: 55.32 | E101: 53.43 | F101: 52.12 | G101: 50.23 | H101: 56.63 | I101: 58.52 | J101: 59.83 | K101: 57.2 | L101: 54 | M101: 56.23406
A102: 93 | B102: CHAMBLFERT | C102: 137.9 | D102: 139.18 | E102: 133.87 | F102: 129.83 | G102: 124.52 | H102: 143.22 | I102: 148.53 | J102: 152.57 | K102: 144.5 | L102: 135.15 | M102: 6.167
A103: 94 | B103: CHENNPETRO | C103: 270.8 | D103: 275.18 | E103: 262.17 | F103: 253.53 | G103: 240.52 | H103: 283.82 | I103: 296.83 | J103: 305.47 | K103: 288.2 | L103: 266.55 | M103: 5.1327
A104: 95 | B104: CHOLAFIN | C104: 1537.95 | D104: 1543.77 | E104: 1510.58 | F104: 1483.22 | G104: 1450.03 | H104: 1571.13 | I104: 1604.32 | J104: 1631.68 | K104: 1576.95 | L104: 1516.4 | M104: 4.8928
A105: 96 | B105: CIPLA | C105: 620.95 | D105: 622.70 | E105: 609.40 | F105: 597.85 | G105: 584.55 | H105: 634.25 | I105: 647.55 | J105: 659.10 | K105: 636 | L105: 611.15 | M105: 22.112
A106: 97 | B106: COALINDIA | C106: 261.15 | D106: 263.08 | E106: 258.17 | F106: 255.18 | G106: 250.27 | H106: 266.07 | I106: 270.98 | J106: 273.97 | K106: 268 | L106: 260.1 | M106: 15.65561
A107: 98 | B107: COCHINSHIP | C107: 431.7 | D107: 435.57 | E107: 424.63 | F107: 417.57 | G107: 406.63 | H107: 442.63 | I107: 453.57 | J107: 460.63 | K107: 446.5 | L107: 428.5 | M107: 0.98708
A108: 99 | B108: COFFEEDAY | C108: 257.25 | D108: 257.18 | E108: 248.42 | F108: 239.58 | G108: 230.82 | H108: 266.02 | I108: 274.78 | J108: 283.62 | K108: 265.95 | L108: 248.35 | M108: 1.95409
A109: 100 | B109: COLPAL | C109: 1142.6 | D109: 1148.93 | E109: 1125.92 | F109: 1109.23 | G109: 1086.22 | H109: 1165.62 | I109: 1188.63 | J109: 1205.32 | K109: 1171.95 | L109: 1132.25 | M109: 2.59811
A110: 101 | B110: CONCOR | C110: 627.6 | D110: 627.60 | E110: 613.25 | F110: 598.90 | G110: 584.55 | H110: 641.95 | I110: 656.30 | J110: 670.65 | K110: 641.95 | L110: 613.25 | M110: 5.59218
A111: 102 | B111: COROMANDEL | C111: 404 | D111: 405.58 | E111: 391.47 | F111: 378.93 | G111: 364.82 | H111: 418.12 | I111: 432.23 | J111: 444.77 | K111: 419.7 | L111: 393.05 | M111: 0.9294
A112: 103 | B112: COX&KINGS | C112: 218.1 | D112: 217.03 | E112: 214.57 | F112: 211.03 | G112: 208.57 | H112: 220.57 | I112: 223.03 | J112: 226.57 | K112: 219.5 | L112: 213.5 | M112: 0.63056
A113: 104 | B113: CRISIL | C113: 1752.4 | D113: 1764.45 | E113: 1736.95 | F113: 1721.50 | G113: 1694.00 | H113: 1779.90 | I113: 1807.40 | J113: 1822.85 | K113: 1791.95 | L113: 1749 | M113: 0.17154
A114: 105 | B114: CROMPTON | C114: 232.75 | D114: 232.07 | E114: 227.18 | F114: 221.62 | G114: 216.73 | H114: 237.63 | I114: 242.52 | J114: 248.08 | K114: 236.95 | L114: 226.5 | M114: 2.65994
A115: 106 | B115: CUB | C115: 169.6 | D115: 171.58 | E115: 166.42 | F115: 163.23 | G115: 158.07 | H115: 174.77 | I115: 179.93 | J115: 183.12 | K115: 176.75 | L115: 168.4 | M115: 2.16745
A116: 107 | B116: CUMMINSIND | C116: 624.4 | D116: 631.10 | E116: 614.80 | F116: 605.20 | G116: 588.90 | H116: 640.70 | I116: 657.00 | J116: 666.60 | K116: 647.4 | L116: 621.5 | M116: 3.2183
A117: 108 | B117: CYIENT | C117: 706.45 | D117: 704.82 | E117: 696.63 | F117: 686.82 | G117: 678.63 | H117: 714.63 | I117: 722.82 | J117: 732.63 | K117: 713 | L117: 695 | M117: 3.29883
A118: 109 | B118: DABUR | C118: 367.3 | D118: 369.92 | E118: 362.93 | F118: 358.57 | G118: 351.58 | H118: 374.28 | I118: 381.27 | J118: 385.63 | K118: 376.9 | L118: 365.55 | M118: 9.06673
A119: 110 | B119: DBCORP | C119: 275.1 | D119: 277.53 | E119: 271.07 | F119: 267.03 | G119: 260.57 | H119: 281.57 | I119: 288.03 | J119: 292.07 | K119: 284 | L119: 273.5 | M119: 4.90046
A120: 111 | B120: DBL | C120: 745.65 | D120: 758.63 | E120: 732.57 | F120: 719.48 | G120: 693.42 | H120: 771.72 | I120: 797.78 | J120: 810.87 | K120: 784.7 | L120: 745.55 | M120: 1.48767
A121: 112 | B121: DBREALTY | C121: 35.65 | D121: 36.17 | E121: 34.73 | F121: 33.82 | G121: 32.38 | H121: 37.08 | I121: 38.52 | J121: 39.43 | K121: 37.6 | L121: 35.25 | M121: 5.07669
A122: 113 | B122: DCAL | C122: 262.05 | D122: 261.72 | E122: 248.58 | F122: 235.12 | G122: 221.98 | H122: 275.18 | I122: 288.32 | J122: 301.78 | K122: 274.85 | L122: 248.25 | M122: 8.62895
A123: 114 | B123: DCBBANK | C123: 161.75 | D123: 165.67 | E123: 155.33 | F123: 148.92 | G123: 138.58 | H123: 172.08 | I123: 182.42 | J123: 188.83 | K123: 176 | L123: 159.25 | M123: 103.42053
A124: 115 | B124: DCMSHRIRAM | C124: 327.9 | D124: 326.43 | E124: 322.62 | F124: 317.33 | G124: 313.52 | H124: 331.72 | I124: 335.53 | J124: 340.82 | K124: 330.25 | L124: 321.15 | M124: 1.29363
A125: 116 | B125: DEEPAKFERT | C125: 244.35 | D125: 246.48 | E125: 239.17 | F125: 233.98 | G125: 226.67 | H125: 251.67 | I125: 258.98 | J125: 264.17 | K125: 253.8 | L125: 241.3 | M125: 0.74628
A126: 117 | B126: DELTACORP | C126: 214.05 | D126: 216.68 | E126: 210.37 | F126: 206.68 | G126: 200.37 | H126: 220.37 | I126: 226.68 | J126: 230.37 | K126: 223 | L126: 213 | M126: 13.45091
A127: 118 | B127: DEN | C127: 47.75 | D127: 50.50 | E127: 44.30 | F127: 40.85 | G127: 34.65 | H127: 53.95 | I127: 60.15 | J127: 63.60 | K127: 56.7 | L127: 47.05 | M127: 15.97717
A128: 119 | B128: DENABANK | C128: 14 | D128: 14.08 | E128: 13.67 | F128: 13.33 | G128: 12.92 | H128: 14.42 | I128: 14.83 | J128: 15.17 | K128: 14.5 | L128: 13.75 | M128: 10.22268
A129: 120 | B129: DHFL | C129: 588.65 | D129: 591.70 | E129: 578.50 | F129: 568.35 | G129: 555.15 | H129: 601.85 | I129: 615.05 | J129: 625.20 | K129: 604.9 | L129: 581.55 | M129: 36.22078
A130: 121 | B130: DISHTV | C130: 68.7 | D130: 70.43 | E130: 66.22 | F130: 63.73 | G130: 59.52 | H130: 72.92 | I130: 77.13 | J130: 79.62 | K130: 74.65 | L130: 67.95 | M130: 43.17821
A131: 122 | B131: DIVISLAB | C131: 1070.05 | D131: 1080.72 | E131: 1053.38 | F131: 1036.72 | G131: 1009.38 | H131: 1097.38 | I131: 1124.72 | J131: 1141.38 | K131: 1108.05 | L131: 1064.05 | M131: 5.13097
A132: 123 | B132: DIXON | C132: 2865.25 | D132: 2876.02 | E132: 2839.23 | F132: 2813.22 | G132: 2776.43 | H132: 2902.03 | I132: 2938.82 | J132: 2964.83 | K132: 2912.8 | L132: 2850 | M132: 0.03486
A133: 124 | B133: DLF | C133: 178.05 | D133: 181.22 | E133: 173.83 | F133: 169.62 | G133: 162.23 | H133: 185.43 | I133: 192.82 | J133: 197.03 | K133: 188.6 | L133: 177 | M133: 42.66013
A134: 125 | B134: DMART | C134: 1548.05 | D134: 1555.35 | E134: 1534.70 | F134: 1521.35 | G134: 1500.70 | H134: 1568.70 | I134: 1589.35 | J134: 1602.70 | K134: 1576 | L134: 1542 | M134: 2.02405
A135: 126 | B135: DREDGECORP | C135: 494.75 | D135: 505.28 | E135: 481.52 | F135: 468.28 | G135: 444.52 | H135: 518.52 | I135: 542.28 | J135: 555.52 | K135: 529.05 | L135: 492.05 | M135: 2.63124
A136: 127 | B136: DRREDDY | C136: 2093.95 | D136: 2129.00 | E136: 2034.90 | F136: 1975.85 | G136: 1881.75 | H136: 2188.05 | I136: 2282.15 | J136: 2341.20 | K136: 2223.1 | L136: 2069.95 | M136: 37.21516
A137: 128 | B137: ECLERX | C137: 1243.4 | D137: 1256.57 | E137: 1211.83 | F137: 1180.27 | G137: 1135.53 | H137: 1288.13 | I137: 1332.87 | J137: 1364.43 | K137: 1301.3 | L137: 1225 | M137: 0.22625
A138: 129 | B138: EDELWEISS | C138: 284.05 | D138: 288.85 | E138: 275.20 | F138: 266.35 | G138: 252.70 | H138: 297.70 | I138: 311.35 | J138: 320.20 | K138: 302.5 | L138: 280 | M138: 25.05798
A139: 130 | B139: EICHERMOT | C139: 27424.3 | D139: 27406.43 | E139: 27067.87 | F139: 26711.43 | G139: 26372.87 | H139: 27762.87 | I139: 28101.43 | J139: 28457.87 | K139: 27745 | L139: 27050 | M139: 0.19328
A140: 131 | B140: EIDPARRY | C140: 214.85 | D140: 216.58 | E140: 210.32 | F140: 205.78 | G140: 199.52 | H140: 221.12 | I140: 227.38 | J140: 231.92 | K140: 222.85 | L140: 212.05 | M140: 3.41134
A141: 132 | B141: EIHOTEL | C141: 160.85 | D141: 160.38 | E141: 157.97 | F141: 155.08 | G141: 152.67 | H141: 163.27 | I141: 165.68 | J141: 168.57 | K141: 162.8 | L141: 157.5 | M141: 1.00307
A142: 133 | B142: EMAMILTD | C142: 526.65 | D142: 527.55 | E142: 522.10 | F142: 517.55 | G142: 512.10 | H142: 532.10 | I142: 537.55 | J142: 542.10 | K142: 533 | L142: 523 | M142: 1.72393
A143: 134 | B143: ENDURANCE | C143: 1212.3 | D143: 1223.12 | E143: 1193.23 | F143: 1174.17 | G143: 1144.28 | H143: 1242.18 | I143: 1272.07 | J143: 1291.13 | K143: 1253 | L143: 1204.05 | M143: 0.06215
A144: 135 | B144: ENGINERSIN | C144: 121.7 | D144: 122.07 | E144: 119.48 | F144: 117.27 | G144: 114.68 | H144: 124.28 | I144: 126.87 | J144: 129.08 | K144: 124.65 | L144: 119.85 | M144: 14.29295
A145: 136 | B145: EQUITAS | C145: 134.65 | D145: 135.53 | E145: 133.12 | F145: 131.58 | G145: 129.17 | H145: 137.07 | I145: 139.48 | J145: 141.02 | K145: 137.95 | L145: 134 | M145: 12.77512
A146: 137 | B146: ERIS | C146: 736.55 | D146: 738.78 | E146: 724.87 | F146: 713.18 | G146: 699.27 | H146: 750.47 | I146: 764.38 | J146: 776.07 | K146: 752.7 | L146: 727.1 | M146: 0.60633
A147: 138 | B147: EROSMEDIA | C147: 108.3 | D147: 109.85 | E147: 104.70 | F147: 101.10 | G147: 95.95 | H147: 113.45 | I147: 118.60 | J147: 122.20 | K147: 115 | L147: 106.25 | M147: 3.99505
A148: 139 | B148: ESCORTS | C148: 875.4 | D148: 884.37 | E148: 849.73 | F148: 824.07 | G148: 789.43 | H148: 910.03 | I148: 944.67 | J148: 970.33 | K148: 919 | L148: 858.7 | M148: 13.67756
A149: 140 | B149: EVEREADY | C149: 226 | D149: 226.17 | E149: 222.33 | F149: 218.67 | G149: 214.83 | H149: 229.83 | I149: 233.67 | J149: 237.33 | K149: 230 | L149: 222.5 | M149: 0.51947
A150: 141 | B150: EXIDEIND | C150: 262.45 | D150: 262.43 | E150: 257.82 | F150: 253.18 | G150: 248.57 | H150: 267.07 | I150: 271.68 | J150: 276.32 | K150: 267.05 | L150: 257.8 | M150: 19.13507
A151: 142 | B151: FCONSUMER | C151: 42.55 | D151: 43.30 | E151: 40.90 | F151: 39.25 | G151: 36.85 | H151: 44.95 | I151: 47.35 | J151: 49.00 | K151: 45.7 | L151: 41.65 | M151: 83.70336
A152: 143 | B152: FEDERALBNK | C152: 74.15 | D152: 75.53 | E152: 72.42 | F152: 70.68 | G152: 67.57 | H152: 77.27 | I152: 80.38 | J152: 82.12 | K152: 78.65 | L152: 73.8 | M152: 110.37842
A153: 144 | B153: FINCABLES | C153: 595.55 | D153: 596.33 | E153: 589.22 | F153: 582.88 | G153: 575.77 | H153: 602.67 | I153: 609.78 | J153: 616.12 | K153: 603.45 | L153: 590 | M153: 0.15711
A154: 145 | B154: FINPIPE | C154: 551.4 | D154: 555.35 | E154: 544.70 | F154: 538.00 | G154: 527.35 | H154: 562.05 | I154: 572.70 | J154: 579.40 | K154: 566 | L154: 548.65 | M154: 0.13934
A155: 146 | B155: FLFL | C155: 395 | D155: 391.83 | E155: 385.67 | F155: 376.33 | G155: 370.17 | H155: 401.17 | I155: 407.33 | J155: 416.67 | K155: 398 | L155: 382.5 | M155: 0.50306
A156: 147 | B156: FSL | C156: 74.5 | D156: 74.53 | E156: 73.17 | F156: 71.83 | G156: 70.47 | H156: 75.87 | I156: 77.23 | J156: 78.57 | K156: 75.9 | L156: 73.2 | M156: 51.43992
A157: 148 | B157: GAIL | C157: 355.8 | D157: 355.20 | E157: 350.90 | F157: 346.00 | G157: 341.70 | H157: 360.10 | I157: 364.40 | J157: 369.30 | K157: 359.5 | L157: 350.3 | M157: 26.85929
A158: 149 | B158: GATI | C158: 88.3 | D158: 89.95 | E158: 85.45 | F158: 82.60 | G158: 78.10 | H158: 92.80 | I158: 97.30 | J158: 100.15 | K158: 94.45 | L158: 87.1 | M158: 17.65408
A159: 150 | B159: GDL | C159: 162.45 | D159: 162.35 | E159: 160.70 | F159: 158.95 | G159: 157.30 | H159: 164.10 | I159: 165.75 | J159: 167.50 | K159: 164 | L159: 160.6 | M159: 0.37974
A160: 151 | B160: GEPIL | C160: 756.4 | D160: 754.80 | E160: 736.60 | F160: 716.80 | G160: 698.60 | H160: 774.60 | I160: 792.80 | J160: 812.60 | K160: 773 | L160: 735 | M160: 0.12795
A161: 152 | B161: GESHIP | C161: 269.2 | D161: 272.40 | E161: 263.80 | F161: 258.40 | G161: 249.80 | H161: 277.80 | I161: 286.40 | J161: 291.80 | K161: 281 | L161: 267 | M161: 0.49848
A162: 153 | B162: GET&D | C162: 298.8 | D162: 297.97 | E162: 293.73 | F162: 288.67 | G162: 284.43 | H162: 303.03 | I162: 307.27 | J162: 312.33 | K162: 302.2 | L162: 292.9 | M162: 0.3738
A163: 154 | B163: GHCL | C163: 261.5 | D163: 263.85 | E163: 258.65 | F163: 255.80 | G163: 250.60 | H163: 266.70 | I163: 271.90 | J163: 274.75 | K163: 269.05 | L163: 261 | M163: 0.84657
A164: 155 | B164: GICRE | C164: 360.05 | D164: 362.48 | E164: 352.67 | F164: 345.28 | G164: 335.47 | H164: 369.87 | I164: 379.68 | J164: 387.07 | K164: 372.3 | L164: 355.1 | M164: 0.5177
A165: 156 | B165: GILLETTE | C165: 6522.05 | D165: 6471.87 | E165: 6418.68 | F165: 6315.32 | G165: 6262.13 | H165: 6575.23 | I165: 6628.42 | J165: 6731.78 | K165: 6525.05 | L165: 6368.5 | M165: 0.03945
A166: 157 | B166: GLAXO | C166: 2820.6 | D166: 2823.07 | E166: 2802.53 | F166: 2784.47 | G166: 2763.93 | H166: 2841.13 | I166: 2861.67 | J166: 2879.73 | K166: 2843.6 | L166: 2805 | M166: 0.08194
A167: 158 | B167: GLENMARK | C167: 551.95 | D167: 555.22 | E167: 545.13 | F167: 538.32 | G167: 528.23 | H167: 562.03 | I167: 572.12 | J167: 578.93 | K167: 565.3 | L167: 548.4 | M167: 5.95956
A168: 159 | B168: GMDCLTD | C168: 105.8 | D168: 106.43 | E168: 104.42 | F168: 103.03 | G168: 101.02 | H168: 107.82 | I168: 109.83 | J168: 111.22 | K168: 108.45 | L168: 105.05 | M168: 1.08361
A169: 160 | B169: GMRINFRA | C169: 17.55 | D169: 17.68 | E169: 17.27 | F169: 16.98 | G169: 16.57 | H169: 17.97 | I169: 18.38 | J169: 18.67 | K169: 18.1 | L169: 17.4 | M169: 387.74298
A170: 161 | B170: GNFC | C170: 398.3 | D170: 402.30 | E170: 391.60 | F170: 384.90 | G170: 374.20 | H170: 409.00 | I170: 419.70 | J170: 426.40 | K170: 413 | L170: 395.6 | M170: 9.7597
A171: 162 | B171: GODFRYPHLP | C171: 703.3 | D171: 713.00 | E171: 691.30 | F171: 679.30 | G171: 657.60 | H171: 725.00 | I171: 746.70 | J171: 758.70 | K171: 734.7 | L171: 701 | M171: 1.0837
A172: 163 | B172: GODREJAGRO | C172: 606.05 | D172: 606.10 | E172: 602.20 | F172: 598.35 | G172: 594.45 | H172: 609.95 | I172: 613.85 | J172: 617.70 | K172: 610 | L172: 602.25 | M172: 0.66712
A173: 164 | B173: GODREJCP | C173: 1300.85 | D173: 1314.17 | E173: 1279.68 | F173: 1258.52 | G173: 1224.03 | H173: 1335.33 | I173: 1369.82 | J173: 1390.98 | K173: 1348.65 | L173: 1293 | M173: 7.46677
A174: 165 | B174: GODREJIND | C174: 574.85 | D174: 576.80 | E174: 569.10 | F174: 563.35 | G174: 555.65 | H174: 582.55 | I174: 590.25 | J174: 596.00 | K174: 584.5 | L174: 571.05 | M174: 2.07882
A175: 166 | B175: GODREJPROP | C175: 670.8 | D175: 680.53 | E175: 652.57 | F175: 634.33 | G175: 606.37 | H175: 698.77 | I175: 726.73 | J175: 744.97 | K175: 708.5 | L175: 662.3 | M175: 1.19272
A176: 167 | B176: GPPL | C176: 117.9 | D176: 118.07 | E176: 116.33 | F176: 114.77 | G176: 113.03 | H176: 119.63 | I176: 121.37 | J176: 122.93 | K176: 119.8 | L176: 116.5 | M176: 1.01409
A177: 168 | B177: GRANULES | C177: 88.3 | D177: 89.18 | E177: 85.87 | F177: 83.43 | G177: 80.12 | H177: 91.62 | I177: 94.93 | J177: 97.37 | K177: 92.5 | L177: 86.75 | M177: 71.86793
A178: 169 | B178: GRAPHITE | C178: 922.85 | D178: 932.62 | E178: 910.23 | F178: 897.62 | G178: 875.23 | H178: 945.23 | I178: 967.62 | J178: 980.23 | K178: 955 | L178: 920 | M178: 3.94083
A179: 170 | B179: GRASIM | C179: 928.7 | D179: 926.85 | E179: 916.05 | F179: 903.40 | G179: 892.60 | H179: 939.50 | I179: 950.30 | J179: 962.95 | K179: 937.65 | L179: 914.2 | M179: 6.00048
A180: 171 | B180: GREAVESCOT | C180: 141.35 | D180: 141.87 | E180: 140.08 | F180: 138.82 | G180: 137.03 | H180: 143.13 | I180: 144.92 | J180: 146.18 | K180: 143.65 | L180: 140.6 | M180: 2.85624
A181: 172 | B181: GREENPLY | C181: 214.95 | D181: 214.20 | E181: 210.75 | F181: 206.55 | G181: 203.10 | H181: 218.40 | I181: 221.85 | J181: 226.05 | K181: 217.65 | L181: 210 | M181: 0.79085
A182: 173 | B182: GRUH | C182: 311.45 | D182: 318.15 | E182: 302.40 | F182: 293.35 | G182: 277.60 | H182: 327.20 | I182: 342.95 | J182: 352.00 | K182: 333.9 | L182: 309.1 | M182: 5.98421
A183: 174 | B183: GSFC | C183: 103.1 | D183: 104.47 | E183: 101.13 | F183: 99.17 | G183: 95.83 | H183: 106.43 | I183: 109.77 | J183: 111.73 | K183: 107.8 | L183: 102.5 | M183: 9.28413
A184: 175 | B184: GSKCONS | C184: 6280.05 | D184: 6268.02 | E184: 6222.03 | F184: 6164.02 | G184: 6118.03 | H184: 6326.03 | I184: 6372.02 | J184: 6430.03 | K184: 6314 | L184: 6210 | M184: 0.06186
A185: 176 | B185: GSPL | C185: 180.1 | D185: 180.63 | E185: 178.47 | F185: 176.83 | G185: 174.67 | H185: 182.27 | I185: 184.43 | J185: 186.07 | K185: 182.8 | L185: 179 | M185: 1.92437
A186: 177 | B186: GUJALKALI | C186: 495.8 | D186: 501.75 | E186: 487.05 | F186: 478.30 | G186: 463.60 | H186: 510.50 | I186: 525.20 | J186: 533.95 | K186: 516.45 | L186: 493 | M186: 0.31414
A187: 178 | B187: GUJFLUORO | C187: 735 | D187: 734.25 | E187: 721.30 | F187: 707.60 | G187: 694.65 | H187: 747.95 | I187: 760.90 | J187: 774.60 | K187: 747.2 | L187: 720.55 | M187: 0.59168
A188: 179 | B188: GUJGASLTD | C188: 751.1 | D188: 755.08 | E188: 744.17 | F188: 737.23 | G188: 726.32 | H188: 762.02 | I188: 772.93 | J188: 779.87 | K188: 766 | L188: 748.15 | M188: 0.06605
A189: 180 | B189: GULFOILLUB | C189: 861.3 | D189: 856.15 | E189: 847.30 | F189: 833.30 | G189: 824.45 | H189: 870.15 | I189: 879.00 | J189: 893.00 | K189: 865 | L189: 842.15 | M189: 0.05745
A190: 181 | B190: GVKPIL | C190: 11.55 | D190: 11.83 | E190: 11.27 | F190: 10.98 | G190: 10.42 | H190: 12.12 | I190: 12.68 | J190: 12.97 | K190: 12.4 | L190: 11.55 | M190: 36.90187
A191: 182 | B191: HATHWAY | C191: 16.05 | D191: 16.45 | E191: 15.25 | F191: 14.45 | G191: 13.25 | H191: 17.25 | I191: 18.45 | J191: 19.25 | K191: 17.65 | L191: 15.65 | M191: 32.80013
A192: 183 | B192: HATSUN | C192: 622.2 | D192: 622.90 | E192: 606.30 | F192: 590.40 | G192: 573.80 | H192: 638.80 | I192: 655.40 | J192: 671.30 | K192: 639.5 | L192: 607 | M192: 0.1506
A193: 184 | B193: HAVELLS | C193: 560.05 | D193: 560.95 | E193: 552.10 | F193: 544.15 | G193: 535.30 | H193: 568.90 | I193: 577.75 | J193: 585.70 | K193: 569.8 | L193: 553 | M193: 17.00586
A194: 185 | B194: HCC | C194: 10.6 | D194: 10.87 | E194: 10.28 | F194: 9.97 | G194: 9.38 | H194: 11.18 | I194: 11.77 | J194: 12.08 | K194: 11.45 | L194: 10.55 | M194: 91.21636
A195: 186 | B195: HCL-INSYS | C195: 33.35 | D195: 33.73 | E195: 32.72 | F195: 32.08 | G195: 31.07 | H195: 34.37 | I195: 35.38 | J195: 36.02 | K195: 34.75 | L195: 33.1 | M195: 7.4091
A196: 187 | B196: HCLTECH | C196: 972.1 | D196: 977.73 | E196: 964.57 | F196: 957.03 | G196: 943.87 | H196: 985.27 | I196: 998.43 | J196: 1005.97 | K196: 990.9 | L196: 970.2 | M196: 17.02222
A197: 188 | B197: HDFC | C197: 1991.2 | D197: 1987.23 | E197: 1976.97 | F197: 1962.73 | G197: 1952.47 | H197: 2001.47 | I197: 2011.73 | J197: 2025.97 | K197: 1997.5 | L197: 1973 | M197: 36.93133
A198: 189 | B198: HDFCBANK | C198: 2168.85 | D198: 2174.22 | E198: 2158.38 | F198: 2147.92 | G198: 2132.08 | H198: 2184.68 | I198: 2200.52 | J198: 2210.98 | K198: 2190.05 | L198: 2163.75 | M198: 22.54334
A199: 190 | B199: HDIL | C199: 18.45 | D199: 18.48 | E199: 17.52 | F199: 16.58 | G199: 15.62 | H199: 19.42 | I199: 20.38 | J199: 21.32 | K199: 19.45 | L199: 17.55 | M199: 48.4266
A200: 191 | B200: HEG | C200: 3714.2 | D200: 3743.07 | E200: 3661.13 | F200: 3608.07 | G200: 3526.13 | H200: 3796.13 | I200: 3878.07 | J200: 3931.13 | K200: 3825 | L200: 3690 | M200: 0.93056
A201: 192 | B201: HEIDELBERG | C201: 135.5 | D201: 136.83 | E201: 133.67 | F201: 131.83 | G201: 128.67 | H201: 138.67 | I201: 141.83 | J201: 143.67 | K201: 140 | L201: 135 | M201: 1.11161
A202: 193 | B202: HERITGFOOD | C202: 588.35 | D202: 592.72 | E202: 581.28 | F202: 574.22 | G202: 562.78 | H202: 599.78 | I202: 611.22 | J202: 618.28 | K202: 604.15 | L202: 585.65 | M202: 0.09242
A203: 194 | B203: HEROMOTOCO | C203: 3426 | D203: 3436.12 | E203: 3406.23 | F203: 3386.47 | G203: 3356.58 | H203: 3455.88 | I203: 3485.77 | J203: 3505.53 | K203: 3466 | L203: 3416.35 | M203: 1.8306
A204: 195 | B204: HEXAWARE | C204: 500.25 | D204: 500.62 | E204: 494.63 | F204: 489.02 | G204: 483.03 | H204: 506.23 | I204: 512.22 | J204: 517.83 | K204: 506.6 | L204: 495 | M204: 19.1865
A205: 196 | B205: HFCL | C205: 27.35 | D205: 27.92 | E205: 26.73 | F205: 26.12 | G205: 24.93 | H205: 28.53 | I205: 29.72 | J205: 30.33 | K205: 29.1 | L205: 27.3 | M205: 56.55549
A206: 197 | B206: HIMATSEIDE | C206: 273.35 | D206: 276.63 | E206: 267.87 | F206: 262.38 | G206: 253.62 | H206: 282.12 | I206: 290.88 | J206: 296.37 | K206: 285.4 | L206: 271.15 | M206: 0.15754
... 305 more rows

Sheet Bulk Deals
E6: Back To Main Page
A7: Subject : | B7: BULK DEAL | D7: =Main!B10 -> 2018-07-17
A9: Date | B9: Scrip code | C9: Scrip Name | D9: Client Name | E9: Buy / Sell | F9: Quantity Traded | G9: Trade Price / Wt.Avg.trade price | H9: Exchange
A10: 2018-07-16 | B10: 540697 | C10: AMFL | D10: ARYAN FOOD PRODUCTS PVT LTD | E10: BUY | F10: 88,000 | G10: 11.37 | H10: BSE
A11: 2018-07-16 | B11: 540697 | C11: AMFL | D11: SATISHKUMAR RAMANLAL GAJJAR | E11: SELL | F11: 112,000 | G11: 12.24 | H11: BSE
A12: 2018-07-16 | B12: 539131 | C12: CLLIMITED | D12: ADSERVE ADVISORY AND CONSULTANCY SERVICES PRIVATE LIMITED | E12: SELL | F12: 56,500 | G12: 18.8 | H12: BSE
A13: 2018-07-16 | B13: 539131 | C13: CLLIMITED | D13: ADSERVE ADVISORY AND CONSULTANCY SERVICES PRIVATE LIMITED | E13: BUY | F13: 34,528 | G13: 18.75 | H13: BSE
A14: 2018-07-16 | B14: 539009 | C14: GBLIL | D14: PUNJABI MOHAN LAXMANDAS | E14: SELL | F14: 50,000 | G14: 25 | H14: BSE
A15: 2018-07-16 | B15: 520057 | C15: JTEKTINDIA | D15: REL CAP TRUSTEE CO. LTD A/C REL SMALL CAP FUND | E15: BUY | F15: 6,000,000 | G15: 91.1 | H15: BSE
A16: 2018-07-16 | B16: 520057 | C16: JTEKTINDIA | D16: INDIA ACORN FUND LTD | E16: BUY | F16: 1,200,000 | G16: 91.1 | H16: BSE
A17: 2018-07-16 | B17: 520057 | C17: JTEKTINDIA | D17: WHITE OAK INDIA EQUITY FUND | E17: BUY | F17: 1,350,000 | G17: 91.1 | H17: BSE
A18: 2018-07-16 | B18: 520057 | C18: JTEKTINDIA | D18: JTEKT CORPORATION | E18: SELL | F18: 11,435,000 | G18: 91.16 | H18: BSE
A19: 2018-07-16 | B19: 532054 | C19: KDDL | D19: MAVEN INDIA FUND | E19: SELL | F19: 71,007 | G19: 475 | H19: BSE
A20: 2018-07-16 | B20: 532054 | C20: KDDL | D20: RC TRITEC AG | E20: SELL | F20: 60,000 | G20: 470 | H20: BSE
A21: 2018-07-16 | B21: 532054 | C21: KDDL | D21: THE ROYAL BANK OF SCOTLAND PLC AS TRUSTEE OF JUPITER INDIA FUND | E21: BUY | F21: 249,403 | G21: 473.03 | H21: BSE
A22: 2018-07-16 | B22: 539595 | C22: NATECO | D22: RCSPL MULTICOMMODITIES PRIVATE LIMITED | E22: SELL | F22: 16,000 | G22: 82.83 | H22: BSE
A23: 2018-07-16 | B23: 539595 | C23: NATECO | D23: RCSPL MULTICOMMODITIES PRIVATE LIMITED | E23: BUY | F23: 16,000 | G23: 82.69 | H23: BSE
A24: 2018-07-16 | B24: 538874 | C24: NEXUSCOMMO | D24: KASHYAP J PANDYA | E24: BUY | F24: 29,050 | G24: 56.68 | H24: BSE
A25: 2018-07-16 | B25: 538874 | C25: NEXUSCOMMO | D25: SKYNET SOLUTIONS | E25: SELL | F25: 29,050 | G25: 56.68 | H25: BSE
A26: 2018-07-16 | B26: 521062 | C26: OCTAVE | D26: HYPNOS FUND LIMITED | E26: SELL | F26: 1,579,114 | G26: 1.87 | H26: BSE
A27: 2018-07-16 | B27: 521062 | C27: OCTAVE | D27: AEGIS INVESTMENT FUND | E27: BUY | F27: 1,579,114 | G27: 1.87 | H27: BSE
A28: 2018-07-16 | B28: 541601 | C28: RAJNISH | D28: SHASHANK PRAVINCHANDRA DOSHI | E28: SELL | F28: 64,800 | G28: 99.3 | H28: BSE
A29: 2018-07-16 | B29: 541601 | C29: RAJNISH | D29: MITTAL PORTFOLIOS PRIVATE LIMITED | E29: SELL | F29: 103,200 | G29: 98.75 | H29: BSE
A30: 2018-07-16 | B30: 541601 | C30: RAJNISH | D30: SUMIT KUMAR RAMESH GUPTA | E30: BUY | F30: 79,200 | G30: 98.75 | H30: BSE
A31: 2018-07-16 | B31: 541601 | C31: RAJNISH | D31: FESTINO VINCOM LIMITED | E31: BUY | F31: 24,000 | G31: 99.25 | H31: BSE
A32: 2018-07-16 | B32: 541601 | C32: RAJNISH | D32: MACRO DEALCOMM PRIVATE LIMITED | E32: BUY | F32: 40,800 | G32: 99.33 | H32: BSE
A33: 2018-07-16 | B33: 531952 | C33: RIBATEX | D33: KIRAN CHAWLA | E33: BUY | F33: 51,334 | G33: 70.7 | H33: BSE
A34: 2018-07-16 | B34: 531952 | C34: RIBATEX | D34: SITA RAM (HUF) | E34: SELL | F34: 70,420 | G34: 70.24 | H34: BSE
A35: 2018-07-16 | B35: 531952 | C35: RIBATEX | D35: SITA RAM (HUF) | E35: BUY | F35: 316 | G35: 71.48 | H35: BSE
A36: 2018-07-16 | B36: 541151 | C36: RIDINGS | D36: PARTHI JITAL SHAH | E36: SELL | F36: 96,000 | G36: 20.5 | H36: BSE
A37: 2018-07-16 | B37: 539561 | C37: ROXY | D37: ROHIT MITTAL | E37: SELL | F37: 30,900 | G37: 12.62 | H37: BSE
A38: 2018-07-16 | B38: 539561 | C38: ROXY | D38: MUKESHKUMAR MAVJIBHAI PARMAR | E38: BUY | F38: 24,339 | G38: 12.63 | H38: BSE
A39: 2018-07-16 | B39: 541112 | C39: SHREESHAY | D39: ARYAMAN BROKING LIMITED | E39: BUY | F39: 128,000 | G39: 18 | H39: BSE
A40: 2018-07-16 | B40: 541112 | C40: SHREESHAY | D40: GOLDMINE STOCKS PVT LTD | E40: SELL | F40: 176,000 | G40: 18 | H40: BSE
A41: 2018-07-16 | B41: 540108 | C41: TAHL | D41: BP COMTRADE PVT LTD | E41: BUY | F41: 31,966 | G41: 43.25 | H41: BSE
A42: 2018-07-16 | B42: 530697 | C42: ZENLABS | D42: PARUL DAS | E42: BUY | F42: 49,925 | G42: 46.3 | H42: BSE
A43: 2018-07-16 | B43: 530697 | C43: ZENLABS | D43: GUTTIKONDA VARA LAKSHMI | E43: SELL | F43: 65,641 | G43: 46.52 | H43: BSE
A44: 2018-07-16 | B44: AIFL | C44: Ashapura Inti Fashion Ltd | D44: SUNGLOW CAPITAL SERVICES LTD. | E44: BUY | F44: 120,210 | G44: 445.25 | H44: NSE
A45: 2018-07-16 | B45: BHAGYANGR | C45: Bhagyanagar India Limited | D45: GIRDHAR TRANSPORT COMPANY | E45: BUY | F45: 245,603 | G45: 48.88 | H45: NSE
A46: 2018-07-16 | B46: GANGAFORGE | C46: Ganga Forging Limited | D46: AGHERA NISHANT JAYSUKHLAL | E46: BUY | F46: 90,000 | G46: 20.99 | H46: NSE
A47: 2018-07-16 | B47: GANGAFORGE | C47: Ganga Forging Limited | D47: GIRISHCHANDRA TRIVEDI (HUF) | E47: BUY | F47: 66,000 | G47: 21 | H47: NSE
A48: 2018-07-16 | B48: PCJEWELLER | C48: PC Jeweller Ltd | D48: ALPHAGREP SECURITIES PRIVATE LIMITED | E48: BUY | F48: 2,991,431 | G48: 92.79 | H48: NSE
A49: 2018-07-16 | B49: PCJEWELLER | C49: PC Jeweller Ltd | D49: CROSSLAND TRADING CO | E49: BUY | F49: 2,759,536 | G49: 92.22 | H49: NSE
A50: 2018-07-16 | B50: PCJEWELLER | C50: PC Jeweller Ltd | D50: QE SECURITIES | E50: BUY | F50: 2,027,893 | G50: 91.97 | H50: NSE
A51: 2018-07-16 | B51: PCJEWELLER | C51: PC Jeweller Ltd | D51: RAHUL DOSHI | E51: BUY | F51: 2,513,854 | G51: 92.6 | H51: NSE
A52: 2018-07-16 | B52: PVR | C52: PVR Limited | D52: CROSSLAND TRADING CO | E52: BUY | F52: 240,089 | G52: 1186.08 | H52: NSE
A53: 2018-07-16 | B53: PVR | C53: PVR Limited | D53: MFS INTERNATIONAL NEW DISCOVERY FUND | E53: BUY | F53: 295,594 | G53: 1191.75 | H53: NSE
A54: 2018-07-16 | B54: REPL | C54: Rudrabhishek Enterp Ltd | D54: SALASAR TECHNO ENGINEERING LIMITED | E54: BUY | F54: 291,000 | G54: 41.95 | H54: NSE
A55: 2018-07-16 | B55: TIRUPATI | C55: Shree Tirupati Balajee | D55: BEHERA DAYANIDHI | E55: BUY | F55: 57,000 | G55: 46.33 | H55: NSE
A56: 2018-07-16 | B56: AIFL | C56: Ashapura Inti Fashion Ltd | D56: SUNGLOW CAPITAL SERVICES LTD. | E56: SELL | F56: 156,322 | G56: 445.84 | H56: NSE
A57: 2018-07-16 | B57: BHAGYANGR | C57: Bhagyanagar India Limited | D57: GIRDHAR TRANSPORT COMPANY | E57: SELL | F57: 245,603 | G57: 48.99 | H57: NSE
A58: 2018-07-16 | B58: NARMADA | C58: Narmada Agrobase Limited | D58: SHAH SANDIP JAYSHUKHLAL | E58: SELL | F58: 40,000 | G58: 26.82 | H58: NSE
A59: 2018-07-16 | B59: PCJEWELLER | C59: PC Jeweller Ltd | D59: ALPHAGREP SECURITIES PRIVATE LIMITED | E59: SELL | F59: 2,991,431 | G59: 92.84 | H59: NSE
A60: 2018-07-16 | B60: PCJEWELLER | C60: PC Jeweller Ltd | D60: CROSSLAND TRADING CO | E60: SELL | F60: 2,759,536 | G60: 92.31 | H60: NSE
A61: 2018-07-16 | B61: PCJEWELLER | C61: PC Jeweller Ltd | D61: QE SECURITIES | E61: SELL | F61: 2,030,322 | G61: 92.45 | H61: NSE
A62: 2018-07-16 | B62: PCJEWELLER | C62: PC Jeweller Ltd | D62: RAHUL DOSHI | E62: SELL | F62: 2,513,854 | G62: 92.61 | H62: NSE
A63: 2018-07-16 | B63: PVR | C63: PVR Limited | D63: CROSSLAND TRADING CO | E63: SELL | F63: 240,089 | G63: 1186.9 | H63: NSE
A64: 2018-07-16 | B64: REPL | C64: Rudrabhishek Enterp Ltd | D64: MANISH KUMAR | E64: SELL | F64: 123,000 | G64: 42 | H64: NSE

Sheet Call Tracker (Equity & F&O)
M5: Back To Main Page
A6: Retail Research Technical Calls & Fundamental Performance Report for the month of July -2018
M7: =Main!B10 -> 2018-07-17
B8: Positional Call
A9: Sr.no | B9: Date | D9: Company | E9: Rec | F9: Rec Price | G9: Stop Loss*** | H9: Call Closed At | I9: Target | J9: Remark | K9: Profit / Loss per Share | L9: Gain / Loss % | M9: Status | N9: Closed Date | O9: NSE Closed Price
A10: 1 | B10: 2018-06-21 | D10: CENTURYTEX | E10: Buy | F10: 902.5 | G10: 873 | H10: 864.5 | I10: 955-965 | J10: Loss of Rs.38/- | K10: =H10-F10 -> -38.00 | L10: =K10/F10 -> -4.21% | M10: Unsuccessful | N10: 2018-07-02 | R10: R
A11: 2 | B11: 2018-06-27 | D11: RAMCOCEM | E11: Buy | F11: 705 | G11: 675 | H11: 672.5 | I11: 760-770 | J11: Loss of Rs.32.50/- | K11: =H11-F11 -> -32.50 | L11: =K11/F11 -> -4.61% | M11: Unsuccessful | N11: 2018-07-11 | R11: R
A12: 3 | B12: 2018-06-29 | D12: CANBK | E12: Buy | F12: 252.5 | G12: 241 | H12: 240.5 | I12: 270-280 | J12: Loss of Rs.12/- | K12: =H12-F12 -> -12.00 | L12: =K12/F12 -> -4.75% | M12: Unsuccessful | N12: 2018-07-13 | R12: H
A13: 4 | B13: 2018-07-03 | D13: MCDOWELL-N | E13: Buy | F13: 657.5 | G13: 620 | H13: 637.5 | I13: 715-725 | J13: Loss of Rs.20/- | K13: =H13-F13 -> -20.00 | L13: =K13/F13 -> -3.04% | M13: Unsuccessful | N13: 2018-07-05 | R13: R
A14: 5 | B14: 2018-07-03 | D14: NILKAMAL | E14: Buy | F14: 1575 | G14: 1498 | H14: 1665 | I14: 1720-1740 | J14: Profit of Rs.90/- | K14: =H14-F14 -> 90.00 | L14: =K14/F14 -> 5.71% | M14: Successful | N14: 2018-07-06 | R14: R
A15: 6 | B15: 2018-07-03 | D15: ZEEL | E15: Buy<> | F15: 536.1 | G15: 515.1 | H15: 512.5 | I15: 580-590 | J15: Loss of Rs.23.6/- | K15: =H15-F15 -> -23.60 | L15: -4.40% | M15: Unsuccessful | N15: 2018-07-13 | R15: H
A16: 7 | B16: 2018-07-09 | D16: IDFCBANK | E16: Buy | F16: 39.3 | G16: 37.2 | H16: 37.1 | I16: 43-44 | J16: Loss of Rs.2.20/- | K16: =H16-F16 -> -2.20 | L16: =K16/F16 -> -5.60% | M16: Unsuccessful | N16: 2018-07-16 | R16: R
A17: 8 | B17: 2018-07-09 | D17: BEL | E17: Buy{} | F17: 109.5 | G17: 104 | H17: 108.15 | I17: 117-120 | J17: Loss of Rs.1.35/- | K17: =H17-F17 -> -1.35 | L17: =K17/F17 -> -1.23% | M17: Unsuccessful | N17: 2018-07-16 | R17: H
A18: 9 | B18: 2018-07-11 | D18: TATAMOTORS | E18: Buy | F18: 269 | G18: 255 | H18: 253.5 | I18: 290-300 | J18: Loss of Rs.15.50/- | K18: =H18-F18 -> -15.50 | L18: =K18/F18 -> -5.76% | M18: Unsuccessful | N18: 2018-07-16 | R18: R
A22: CLBS = Closing Basis *** | F22: Reinitiated $
A23: Dividend adjusted <> | F23: Revised stoploss #
A24: Part book {}
A25: Master Trade High Risk
A26: Sr.no | B26: Date | D26: Company | E26: Rec | F26: Rec Price | G26: Stop Loss | H26: Call Closed At | I26: Target | J26: Remark | K26: Profit / Loss per share | L26: Gain / Loss per Lot | M26: Lot | N26: Status | O26: Closed Date
A27: 1 | B27: 2018-07-02 | D27: NIFTY JUL FUT | E27: Buy | F27: 10645 | G27: 10545 | H27: 10745 | I27: 10850 | J27: Profit of Rs.100/- | K27: =H27-F27 -> 100 | L27: =M27*K27 -> 7500 | M27: 75 | N27: Successful | O27: 2018-07-04 | R27: R
A28: 2 | B28: 2018-07-03 | D28: BANKNIFTY JUL FUT | E28: Buy | F28: 26270 | G28: 25950 | H28: 26480 | I28: 26900-27000 | J28: Profit of Rs.210/- | K28: =H28-F28 -> 210 | L28: =M28*K28 -> 8400 | M28: 40 | N28: Successful | O28: 2018-07-05 | R28: R
A29: 3 | B29: 2018-07-11 | D29: NIFTY JUL FUT | E29: Sell | F29: 10955 | G29: 11060 | H29: 11060 | I29: 10800-10750 | J29: Loss of Rs.105/- | K29: =F29-H29 -> -105 | L29: =M29*K29 -> -7875 | M29: 75 | N29: Unsuccessful | O29: 2018-07-12 | R29: H
A36: Master Trade Medium Risk
A37: Sr.no | B37: Date | D37: Company | E37: Rec | F37: Rec Price | G37: Stop Loss | H37: Call Closed At | I37: Target | J37: Remark | K37: Profit/ Loss per lot | L37: Gain / Loss per Lot | M37: Lot | N37: Status | O37: Closed Date
A38: 1 | B38: 2018-07-05 | D38: BANKNIFTY 05-Jul 26400 PE | E38: Buy | F38: 32.5 | H38: 0 | I38: 80-100 | J38: Loss of Rs.32.50/- | K38: =H38-F38 -> -32.5 | L38: =M38*K38 -> -1300 | M38: 40 | N38: Unsuccessful | O38: 2018-07-05 | R38: R
A39: 2 | B39: 2018-07-12 | D39: BANKNIFTY 12-Jul 27000 PE | E39: Buy | F39: 40 | H39: 0 | I39: 100 | J39: Loss of Rs.40/- | K39: =H39-F39 -> -40 | L39: =M39*K39 -> -1600 | M39: 40 | N39: Unsuccessful | O39: 2018-07-12 | R39: H
A40: 3 | B40: 2018-07-13 | D40: NIFTY Jul 10900 PE | E40: Buy | F40: 46 | H40: 61.5 | I40: 100 | J40: Profit of Rs.15.50/- | K40: =H40-F40 -> 15.5 | L40: =M40*K40 -> 1162.5 | M40: 75 | N40: Successful | O40: 2018-07-16 | R40: H
B53: Smart Delivery Trade
A54: Sr.no | B54: Date | D54: Company | E54: Rec | F54: Rec Price | G54: Stop Loss*** | H54: Call Closed At | I54: Target | J54: Remark | K54: Profit / Loss per Share | L54: Gain / Loss % | M54: Status | N54: Closed Date | O54: NSE Closed Price
A55: 1 | B55: 2018-06-29 | D55: STAR | E55: Buy | F55: 394 | G55: 378.7 | H55: 408.5 | I55: 415-420 | J55: Profit of Rs.14.50/- | K55: =H55-F55 -> 14.50 | L55: =K55/F55 -> 3.68% | M55: Successful | N55: 2018-07-04 | R55: R
A56: 2 | B56: 2018-06-29 | D56: HCLTECH | E56: Buy | F56: 920.5 | G56: 889.8 | H56: 949.5 | I56: 970-980 | J56: Profit of Rs.29/- | K56: 29.00 | L56: 3.15% | M56: Successful | N56: 2018-07-06 | R56: R
A57: 3 | B57: 2018-06-29 | D57: COLPAL | E57: Buy | F57: 1174 | G57: 1148 | H57: 1145 | I57: 1215-1230 | J57: Loss of Rs.29/- | K57: -29.00 | L57: -2.47% | M57: Unsuccessful | N57: 2018-07-06 | R57: H
A58: 4 | B58: 2018-06-29 | D58: SUNPHARMA | E58: Buy | F58: 564 | G58: 548 | H58: 581.5 | I58: 590-600 | J58: Profit of Rs.17.50/- | K58: =H58-F58 -> 17.50 | L58: =K58/F58 -> 3.10% | M58: Successful | N58: 2018-07-04 | R58: H
A59: 5 | B59: 2018-07-02 | D59: JINDALSTEL | E59: Buy | F59: 219 | G59: 213 | H59: 212 | I59: 230-232 | J59: Loss of Rs.7/- | K59: =H59-F59 -> -7.00 | L59: =K59/F59 -> -3.20% | M59: Unsuccessful | N59: 2018-07-02 | R59: H
A60: 6 | B60: 2018-07-02 | D60: VOLTAS | E60: Buy | F60: 521 | G60: 507 | H60: 534 | I60: 550-555 | J60: Profit of Rs.13/- | K60: 13.00 | L60: 2.50% | M60: Successful | N60: 2018-07-09 | R60: R
A61: 7 | B61: 2018-07-03 | D61: TORNTPHARM | E61: Buy | F61: 1422.5 | G61: 1379 | H61: 1450 | I61: 1500-1510 | J61: Profit of Rs.27.50/- | K61: =H61-F61 -> 27.50 | L61: =K61/F61 -> 1.93% | M61: Successful | N61: 2018-07-03 | R61: R
A62: 8 | B62: 2018-07-04 | D62: JSWSTEEL | E62: Buy | F62: 308 | G62: 298 | H62: 316.95 | I62: 325-330 | J62: Profit of Rs.8.95/- | K62: =H62-F62 -> 8.95 | L62: 2.91% | M62: Successful | N62: 2018-07-11 | R62: H
A63: 9 | B63: 2018-07-04 | D63: L&TFH | E63: Buy | F63: 147 | G63: 142.7 | H63: 151.75 | I63: 155-158 | J63: Profit of Rs.4.75/- | K63: =H63-F63 -> 4.75 | L63: =K63/F63 -> 3.23% | M63: Successful | N63: 2018-07-06 | R63: R
A64: 10 | B64: 2018-07-04 | D64: AMBUJACEM | E64: Buy | F64: 203 | G64: 194 | H64: 209.75 | I64: 215-220 | J64: Profit of Rs.6.75/- | K64: =H64-F64 -> 6.75 | L64: =K64/F64 -> 3.33% | M64: Successful | N64: 2018-07-06 | R64: H
A65: 11 | B65: 2018-07-04 | D65: LICHSGFIN | E65: Buy | F65: 461.5 | G65: 444.4 | H65: 475.75 | I65: 480-490 | J65: Profit of Rs.14.25/- | K65: =H65-F65 -> 14.25 | L65: =K65/F65 -> 3.09% | M65: Successful | N65: 2018-07-05 | R65: R
A66: 12 | B66: 2018-07-06 | D66: DHFL | E66: Buy | F66: 626 | G66: 607 | H66: 602.5 | I66: 650-660 | J66: Loss of Rs.23.50/- | K66: =H66-F66 -> -23.50 | L66: =K66/F66 -> -3.75% | M66: Unsuccessful | N66: 2018-07-16 | R66: R
A67: 13 | B67: 2018-07-06 | D67: INDIANB | E67: Buy | F67: 339.5 | G67: 329 | H67: 349.5 | I67: 355-360 | J67: Profit of Rs.10/- | K67: =H67-F67 -> 10.00 | L67: =K67/F67 -> 2.95% | M67: Successful | N67: 2018-07-09 | R67: H
A68: 14 | B68: 2018-07-06 | D68: NIITTECH | E68: Buy | F68: 1082 | G68: 1048.7 | H68: 1118.5 | I68: 1135-1145 | J68: Profit of Rs.36.50/- | K68: =H68-F68 -> 36.50 | L68: =K68/F68 -> 3.37% | M68: Successful | N68: 2018-07-10 | R68: R
A69: 15 | B69: 2018-07-09 | D69: CEATLTD | E69: Buy<> | F69: 1311 | G69: 1267.5 | H69: 1250 | I69: 1380-1400 | J69: Loss of Rs.61/- | K69: -61.00 | L69: -4.65% | M69: Unsuccessful | N69: 2018-07-16 | R69: R
A70: 16 | B70: 2018-07-09 | D70: LT | E70: Buy | F70: 1277-1282 | G70: 1240 | I70: 1350-1360 | J70: Open | O70: =VLOOKUP(D70,Sheet2!$A$1:M2230,6,0) -> 1283.1 | R70: R
A71: 17 | B71: 2018-07-10 | D71: TECHM | E71: Buy | F71: 650-654 | G71: 631.7 | I71: 685-690 | J71: Open | O71: =VLOOKUP(D71,Sheet2!$A$1:M2231,6,0) -> 657.3 | R71: R
A72: 18 | B72: 2018-07-11 | D72: ACC | E72: Buy | F72: 1360.5 | G72: 1318 | H72: 1305 | I72: 1420-1450 | J72: Loss of Rs.55.50/- | K72: =H72-F72 -> -55.50 | L72: =K72/F72 -> -4.08% | M72: Unsuccessful | N72: 2018-07-16 | R72: H
A73: 19 | B73: 2018-07-16 | D73: TITAN | E73: Buy | F73: 823-828 | G73: 797.7 | I73: 865-875 | J73: Open | O73: =VLOOKUP(D73,Sheet2!$A$1:M2233,6,0) -> 831.2 | R73: R
A74: 20 | B74: 2018-07-16 | D74: GAIL | E74: Buy | F74: 353.50-355.50 | G74: 339.5 | I74: 372-380 | J74: Open | O74: =VLOOKUP(D74,Sheet2!$A$1:M2234,6,0) -> 355.8 | R74: H
A83: CLBS = Closing Basis *** | F83: Reinitiated $
A84: Dividend adjusted <> | F84: Revised stoploss #
B87: Momentum Call
A88: Sr.no | B88: Date | D88: Company | E88: Rec | F88: Rec Price | G88: Stop Loss | H88: Call Closed At | I88: Target | J88: Remark | K88: Profit / Loss per Share/Lot | L88: Gain / Loss % | M88: Gain / Loss per Lot | N88: Lot | O88: Status | P88: Closed Date | Q88: NSE Closed Price
A89: 1 | B89: 2018-07-02 | D89: LT JUL FUT | E89: Buy | F89: 1258.5 | G89: 1240 | H89: 1266 | I89: 1290-1300 | J89: Profit of Rs.7.50/- | K89: =H89-F89 -> 7.5 | M89: =N89*K89 -> 5625 | N89: 750 | O89: Successful | P89: 2018-07-03 | R89: H
A90: 2 | B90: 2018-07-02 | D90: RBLBANK JUL FUT | E90: Buy | F90: 552.5 | G90: 541 | H90: 560.5 | I90: 570 | J90: Profit of Rs.8/- | K90: 8 | M90: 9600 | N90: 1200 | O90: Successful | P90: 2018-07-03 | R90: N
A91: 3 | B91: 2018-07-02 | D91: HINDUNILVR JUL FUT | E91: Buy | F91: 1647.5 | G91: 1628 | H91: 1661 | I91: 1700 | J91: Profit of Rs.13.5/- | K91: =H91-F91 -> 13.5 | M91: =N91*K91 -> 8100 | N91: 600 | O91: Successful | P91: 2018-07-03 | R91: R
A92: 4 | B92: 2018-07-02 | D92: ARVIND JUL FUT | E92: Buy | F92: 387 | G92: 382.5 | H92: 390.5 | I92: 395-398 | J92: Profit of Rs.3.50/- | K92: =H92-F92 -> 3.5 | M92: =N92*K92 -> 7000 | N92: 2000 | O92: Successful | P92: 2018-07-02 | R92: N
A93: 5 | B93: 2018-07-03 | D93: BANKBARODA | E93: Buy | F93: 112.75 | G93: 109.5 | H93: 115.25 | I93: 117-119 | J93: Profit of Rs.2.5/- | K93: 2.5 | L93: =K93/F93 -> 2.22% | O93: Successful | P93: 2018-07-06 | R93: H
A94: 6 | B94: 2018-07-03 | D94: EXIDEIND JUN FUT | E94: Buy | F94: 256.75 | G94: 253.5 | H94: 258.75 | I94: 265 | J94: Profit of Rs.2/- | K94: =H94-F94 -> 2 | M94: =N94*K94 -> 8000 | N94: 4000 | O94: Successful | P94: 2018-07-03 | R94: N
A95: 7 | B95: 2018-07-03 | D95: M&M JUL FUT | E95: Buy | F95: 878 | G95: 867 | H95: 886 | I95: 890-900 | J95: Profit of Rs.8/- | K95: =H95-F95 -> 8 | M95: =N95*K95 -> 8000 | N95: 1000 | O95: Successful | P95: 2018-07-03 | R95: H
A96: 8 | B96: 2018-07-03 | D96: ACC JUL FUT | E96: Buy | F96: 1316.5 | G96: 1290 | H96: 1335.5 | I96: 1350-1360 | J96: Profit of Rs.19/- | K96: =H96-F96 -> 19 | M96: =N96*K96 -> 7600 | N96: 400 | O96: Successful | P96: 2018-07-03 | R96: H
A97: 9 | B97: 2018-07-03 | D97: RELIANCE JULY FUT | E97: Buy | F97: 973 | G97: 959 | H97: 982.5 | I97: 990-995 | J97: Profit of Rs.9.5/- | K97: =H97-F97 -> 9.5 | M97: =N97*K97 -> 9500 | N97: 1000 | O97: Successful | P97: 2018-07-04 | R97: H
A98: 10 | B98: 2018-07-04 | D98: ARVIND JUL FUT | E98: Buy | F98: 389.5 | G98: 383 | H98: 393.75 | I98: 398-400 | J98: Profit of Rs.4.25/- | K98: 4.25 | M98: 8500 | N98: 2000 | O98: Successful | P98: 2018-07-04 | R98: N
A99: 11 | B99: 2018-07-04 | D99: NIITTECH JULY FUT | E99: Buy | F99: 1105.5 | G99: 1088 | H99: 1119 | I99: 1135-1145 | J99: Profit of Rs.13.50/- | K99: =H99-F99 -> 13.5 | M99: =N99*K99 -> 10125 | N99: 750 | O99: Successful | P99: 2018-07-04 | R99: H
A100: 12 | B100: 2018-07-04 | D100: MOTHERSUMI JULY FUT | E100: Sell | F100: 295 | G100: 302 | H100: 290.75 | I100: 285 | J100: Profit of Rs.4.25/- | K100: =F100-H100 -> 4.25 | M100: =N100*K100 -> 6800 | N100: 1600 | O100: Successful | P100: 2018-07-05 | R100: H
A101: 13 | B101: 2018-07-05 | D101: AXISBANK JULY FUT | E101: Sell | F101: 513.5 | G101: 522 | H101: 522 | I101: 495-490 | J101: loss of Rs.8.5/- | K101: =F101-H101 -> -8.5 | M101: -10200 | N101: 1200 | O101: Unsuccessful | P101: 2018-07-09 | R101: H
A102: 14 | B102: 2018-07-05 | D102: TATAELXSI JUL FUT | E102: Buy | F102: 1343 | G102: 1328 | H102: 1354.5 | I102: 1370 | J102: Profit of Rs.11.50/- | K102: =H102-F102 -> 11.5 | M102: =N102*K102 -> 9200 | N102: 800 | O102: Successful | P102: 2018-07-06 | R102: N
A103: 15 | B103: 2018-07-05 | D103: LUPIN JUL FUT | E103: Buy | F103: 930 | G103: 914 | H103: 914 | I103: 954-960 | J103: Loss of Rs.16/- | K103: =H103-F103 -> -16 | M103: =N103*K103 -> -12000 | N103: 750 | O103: Unsuccessful | P103: 2018-07-06 | R103: H
A104: 16 | B104: 2018-07-06 | D104: SUNPHARMA JUL FUT | E104: Buy | F104: 564 | G104: 553 | H104: 572.5 | I104: 585 | J104: Profit of Rs.8.50/- | K104: =H104-F104 -> 8.5 | M104: 9350 | N104: 1100 | O104: Successful | P104: 2018-07-09 | R104: N
A105: 17 | B105: 2018-07-06 | D105: MOTHERSUMI JULY FUT | E105: Sell | F105: 298.5 | G105: 305 | H105: 305 | I105: 290-288 | J105: loss of Rs.6.5/- | K105: =F105-H105 -> -6.5 | M105: =N105*K105 -> -10400 | N105: 1600 | O105: Unsuccessful | P105: 2018-07-06 | R105: H
A106: 18 | B106: 2018-07-06 | D106: JUBLFOOD JUL FUT | E106: Buy | F106: 1381.5 | G106: 1355 | H106: 1405.5 | I106: 1425-1435 | J106: Profit of Rs.24/- | K106: =H106-F106 -> 24.00 | M106: 12000 | N106: 500 | O106: Successful | P106: 2018-07-09 | R106: R
A107: 19 | B107: 2018-07-09 | D107: RBLBANK JUL FUT | E107: Buy | F107: 566.5 | G107: 556.5 | H107: 576.75 | I107: 590 | J107: Profit of Rs.10.25/- | K107: =H107-F107 -> 10.25 | M107: =N107*K107 -> 12300 | N107: 1200 | O107: Successful | P107: 2018-07-09 | R107: N
A108: 20 | B108: 2018-07-09 | D108: ARVIND JUL FUT | E108: Buy | F108: 399 | G108: 393 | H108: 403.5 | I108: 412 | J108: Profit of Rs.4.50/- | K108: =H108-F108 -> 4.5 | M108: =N108*K108 -> 9000 | N108: 2000 | O108: Successful | P108: 2018-07-10 | R108: N
A109: 21 | B109: 2018-07-10 | D109: BALKRISIND JUL FUT | E109: Buy | F109: 1,241 | G109: 1226 | H109: 1226 | I109: 1265 | J109: Loss of Rs.15/- | K109: =H109-F109 -> -15 | M109: -11600 | N109: 800 | O109: Unsuccessful | P109: 2018-07-11 | R109: N
A110: 22 | B110: 2018-07-10 | D110: ICICIBANK | E110: Buy | F110: 274.5 | G110: 268 | H110: 268 | I110: 285 | J110: Loss of Rs.6.5/- | K110: =H110-F110 -> -6.5 | L110: =K110/F110 -> -2.37% | O110: Unsuccessful | P110: 2018-07-13 | R110: H
A111: 23 | B111: 2018-07-10 | D111: HINDALCO JUL FUT | E111: Sell | F111: 229.5 | G111: 233.3 | H111: 224.5 | I111: 222 | J111: Profit of Rs.5/- | K111: =F111-H111 -> 5 | M111: =N111*K111 -> 17500 | N111: 3500 | O111: Successful | P111: 2018-07-11 | R111: R
A112: 24 | B112: 2018-07-11 | D112: HINDUNILVR JUL FUT | E112: Sell | F112: 1,698 | G112: 1721.3 | H112: 1721.3 | I112: 1660 | J112: Loss of Rs.23.80/- | K112: =F112-H112 -> -23.80 | M112: =N112*K112 -> -14280 | N112: 600 | O112: Unsuccessful | P112: 2018-07-12 | R112: R
A113: 25 | B113: 2018-07-12 | D113: RAYMOND JUL FUT | E113: Buy | F113: 908 | G113: 895 | H113: 919.5 | I113: 930 | J113: Profit of Rs.11.50/- | K113: =H113-F113 -> 11.5 | M113: 9200 | N113: 800 | O113: Successful | P113: 2018-07-12 | R113: N
A114: 26 | B114: 2018-07-12 | D114: EXIDEIND JUL FUT | E114: Buy | F114: 268 | G114: 264.5 | H114: 264.5 | I114: 273-275 | J114: Loss of Rs.3/- | K114: =H114-F114 -> -3 | M114: -12000 | N114: 4000 | O114: Unsuccessful | P114: 2018-07-13 | R114: N
A115: 27 | B115: 2018-07-16 | D115: SUNPHARMA JUL FUT | E115: Buy | F115: 557 | G115: 546 | H115: 546 | I115: 575 | J115: Loss of Rs.10.5/- | K115: =H115-F115 -> -10.50 | M115: =N115*K115 -> -11550 | N115: 1100 | O115: Unsuccessful | P115: 2018-07-16 | R115: N
A116: 28 | B116: 2018-07-16 | D116: KPIT | E116: Buy | F116: 295-297 | G116: 288 | I116: 305-310 | J116: Open | R116: H
A117: 29 | B117: 2018-07-16 | D117: VEDL | E117: Buy | F117: 212 | G117: 206.6 | H117: 206.6 | I117: 220 | J117: Loss of Rs.4.90/- | K117: =H117-F117 -> -4.9 | M117: =N117*K117 -> -8575 | N117: 1750 | O117: Unsuccessful | P117: 2018-07-16 | R117: R
A126: CLBS = Closing Basis *** | F126: Reinitiated $
A127: Dividend adjusted <> | F127: Revised stoploss #
B129: Quick Pick Intraday
A130: Sr.no | B130: Date | D130: Company | E130: Rec | F130: Rec Price | G130: Stop Loss*** | H130: Call Closed At | I130: Target | J130: Remark | K130: Profit / Loss per Share | L130: Status | M130: Closed Date
A131: 1 | B131: 2018-07-04 | D131: JUBLFOOD | E131: Buy | F131: 1432.5 | G131: 1418 | H131: 1432.5 | I131: 1480 | J131: No profit no loss | K131: =H131-F131 -> 0 | L131: Neutral | M131: 2018-07-04 | R131: R
A144: Techno -Funda (positional)
A145: Sr.no | B145: Date | D145: Company | E145: Rec | F145: Rec Price | G145: Stop Loss*** | H145: Call Closed At | I145: Target | J145: Remark | K145: Profit / Loss per Share | L145: Gain / Loss % | M145: Status | N145: Closed Date | O145: NSE Closed Price
A146: 1 | B146: 2018-06-04 | D146: BAJAJ-AUTO | E146: Buy <> | F146: 2825 | G146: 2730 | H146: 3031.25 | I146: 3110-3140 | J146: Profit of Rs.206.25/- | K146: =H146-F146 -> 206.25 | L146: =K146/F146 -> 7.30% | M146: Successful | N146: 2018-07-10 | R146: H
A148: CLBS = Closing Basis *** | F148: Reinitiated $
A149: Dividend adjusted <> | F149: Revised stoploss #
B154: Investment Idea
A155: Sr.no | B155: Date | D155: Company | E155: Rec | F155: Rec Price | G155: Point of Review | H155: Close Rate | I155: Target | J155: Remark | K155: Profit / Loss per Share | L155: Gain / Loss % | M155: Status | N155: Closed Date
A156: 1 | B156: 2013-11-01 | D156: L&T Finance Holding | E156: Accu | F156: 82.00 | G156: - | H156: 100 | I156: 100.00 | J156: Target Achieved | K156: =H156-F156 -> 18.00 | L156: =K156/F156 -> 21.95% | M156: Successful | N156: 2016-10-14
A157: 2 | B157: 2014-06-04 | D157: Finolex Inds | E157: Buy | F157: 257.00 | G157: - | H157: 300 | I157: 300.00 | J157: Target Achieved | K157: =H157-F157 -> 43.00 | L157: 16.73% | M157: Successful | N157: 2014-07-02
A158: =1+A157 -> 3 | B158: 2014-07-08 | D158: JK Cement | E158: Buy | F158: 393.00 | G158: - | H158: 468 | I158: 468.00 | J158: Target Achieved | K158: =H158-F158 -> 75.00 | L158: 19.08% | M158: Successful | N158: 2014-08-12
A159: 4 | B159: 2014-08-06 | D159: Finolex Cables | E159: Buy | F159: 205.00 | G159: - | H159: 275 | I159: 250.00 | J159: Target Achieved | K159: 70.00 | L159: 34.15% | M159: Successful | N159: 2014-11-19
A160: 5 | B160: 2014-09-04 | D160: Exide Inds | E160: Buy | F160: 162.00 | G160: - | H160: 190 | I160: 190.00 | J160: Target Achieved | K160: 28.00 | L160: 17.28% | M160: Successful | N160: 2015-01-02
A161: 6 | B161: 2014-09-04 | D161: Deepak Nitrite | E161: Buy | F161: 75.00 | G161: - | H161: 91.5 | I161: 95-100 | J161: Profit of Rs.16.50/- | K161: 16.50 | L161: 22.00% | M161: Successful | N161: 2014-11-11
A162: 7 | B162: 2014-10-01 | D162: Mercks | E162: Buy | F162: 850.00 | G162: - | H162: 982.5 | I162: 1050.00 | J162: Profit of Rs.132.50/- | K162: 132.50 | L162: 15.59% | M162: Successful | N162: 2015-02-04
A163: 8 | B163: 2014-10-01 | D163: Grindwell Norton | E163: Buy | F163: 475.00 | G163: - | H163: 515 | I163: 600.00 | J163: Profit of Rs.40/- | K163: 40.00 | L163: 8.42% | M163: Successful | N163: 2014-10-27
A164: 9 | B164: 2014-10-01 | D164: Snowman Logistics | E164: Buy | F164: 86.00 | G164: - | H164: 99 | I164: 140.00 | J164: Profit of Rs.13.00/- | K164: 13.00 | L164: 15.12% | M164: Successful | N164: 2014-10-27
A165: 10 | B165: 2014-10-14 | D165: Birla Corp | E165: Buy | F165: 496.60 | G165: - | H165: 621 | I165: 580.00 | J165: Target Achieved | K165: 124.40 | L165: 25.05% | M165: Successful | N165: 2016-08-23
A166: 11 | B166: 2014-10-14 | D166: Ultratech Cem | E166: Buy | F166: 2481.90 | G166: - | H166: 2840 | I166: 2870.00 | J166: Profit of Rs.358.10/- | K166: 358.10 | L166: 14.43% | M166: Successful | N166: 2015-01-13
A167: =1+A164 -> 10 | B167: 2014-10-16 | D167: Sintex Inds | E167: Buy | F167: 84.50 | G167: - | H167: 93 | I167: 110.00 | J167: Profit of Rs.8.50/- | K167: 8.50 | L167: 10.06% | M167: Successful | N167: 2014-10-27
A168: =1+A167 -> 11 | B168: 2014-10-16 | D168: HSIL | E168: Buy | F168: 401.00 | G168: - | H168: 428 | I168: 450.00 | J168: Profit of Rs.27.00/- | K168: 27.00 | L168: 6.73% | M168: Successful | N168: 2015-01-16
A169: 12 | B169: 2014-10-16 | D169: Eveready Inds | E169: Buy | F169: 101.00 | G169: - | H169: 112 | I169: 120.00 | J169: Profit of Rs.11.00/- | K169: 11.00 | L169: 10.89% | M169: Successful | N169: 2014-10-27
A170: 13 | B170: 2014-11-11 | D170: Pennar Inds | E170: Buy | F170: 59.00 | G170: - | H170: 76 | I170: 76.00 | J170: Target Achieved | K170: 17.00 | L170: 28.81% | M170: Successful | N170: 2017-10-24
A171: 14 | B171: 2014-11-11 | D171: Snowman Logistics | E171: Buy | F171: 99.00 | G171: - | H171: 120 | I171: 120.00 | J171: Profit of Rs.21/- | K171: 21.00 | L171: 21.21% | M171: Successful | N171: 2014-11-17
A172: 15 | B172: 2014-11-13 | D172: Dharamsi Morarji Chem | E172: Buy | F172: 22.00 | G172: - | H172: 33.55 | I172: 32.00 | J172: Profit of Rs 11.55/- | K172: 11.55 | L172: 52.50% | M172: Successful | N172: 2015-07-03
A173: 16 | B173: 2014-12-03 | D173: Tatachem | E173: Buy | F173: 440.00 | G173: - | H173: 520 | I173: 520.00 | J173: Profit of Rs 80.00/- | K173: 80.00 | L173: 18.18% | M173: Successful | N173: 2015-07-23
A174: 17 | B174: 2014-12-03 | D174: Advanta | E174: Buy | F174: 360.00 | G174: - | H174: 427 | I174: 425.00 | J174: Profit of Rs.67.00/- | K174: 67.00 | L174: 18.61% | M174: Successful | N174: 2015-02-23
A175: 18 | B175: 2015-01-08 | D175: GDL | E175: Buy | F175: 360.00 | G175: - | H175: 455 | I175: 420.00 | J175: Profit of Rs.95.00/- | K175: 95.00 | L175: 26.39% | M175: Successful | N175: 2015-01-20
A176: 19 | B176: 2015-01-08 | D176: NRB Bearing | E176: Buy | F176: 130.00 | H176: 175.5 | I176: 165.00 | J176: Profit of Rs 45.50/- | K176: 45.50 | L176: 35.00% | M176: Successful | N176: 2017-12-19
A177: 20 | B177: 2015-02-05 | D177: GSFC | E177: Accu | F177: 98.00 | H177: 120 | I177: 120.00 | J177: Target Achieved | K177: 22.00 | L177: 22.45% | M177: Successful | N177: 2017-01-18
A178: 21 | B178: 2015-02-05 | D178: Sundrmfast | E178: Accu | F178: 196.00 | H178: 262 | I178: 255.00 | J178: Target Achieved | K178: 66.00 | L178: 33.67% | M178: Successful | N178: 2016-08-17
A179: 22 | B179: 2015-03-04 | D179: GPPL | E179: Accu | F179: 230-240 | I179: 280-285 | J179: Open
A180: 23 | B180: 2015-03-04 | D180: ORIENTCEM | E180: Accu | F180: 185.00 | H180: 224 | I180: 220-225 | J180: Target Achieved | K180: 39.00 | L180: =K180/F180 -> 21.08% | M180: Successful | N180: 2016-10-04
A181: 24 | B181: 2015-03-27 | D181: PFS | E181: Accu | F181: 49-50 | I181: 67.00 | J181: Open
A182: 25 | B182: 2015-03-30 | D182: Walchandnagar Ind Ltd | E182: Accu | F182: 183.50 | H182: 219 | I182: 218.00 | J182: Profit of Rs.35.50/- | K182: 35.50 | L182: =K182/F182 -> 19.35% | M182: Successful | N182: 2015-04-09
A183: 26 | B183: 2015-04-20 | D183: Kalpataru Power Transmission Ltd | E183: Accu | F183: =(227+237)/2 -> 232.00 | H183: 298 | I183: 298.00 | J183: Target Achieved | K183: 66.00 | L183: 28.45% | M183: Successful | N183: 2017-03-29
A184: 27 | B184: 2015-05-04 | D184: Mastek Ltd | E184: Buy | F184: 385.00 | H184: =212.5+331 -> 543.5 | I184: 510.00 | J184: Profit of Rs 158.50/- | K184: 158.50 | L184: 41.17% | M184: Successful | N184: 2015-08-19
A185: 28 | B185: 2015-05-04 | D185: Suprajit Eng | E185: Buy | F185: 115.50 | H185: 146 | I185: 142.00 | J185: Profit of Rs 30.50/- | K185: 30.50 | L185: 26.41% | M185: Successful | N185: 2015-07-17
A186: 29 | B186: 2015-05-27 | D186: TCI | E186: Buy | F186: 237.50 | H186: 279.5 | I186: 278.00 | J186: Target Achieved | K186: 42.00 | L186: 17.68% | M186: Successful | N186: 2015-08-06
A187: 30 | B187: 2015-06-19 | D187: HSIL | E187: Accu | F187: 340.00 | H187: 448 | I187: 448.00 | J187: Target Achieved | K187: 108.00 | L187: 31.76% | M187: Successful | N187: 2017-10-10
A188: 31 | B188: 2015-07-06 | D188: Capital First | E188: Accu | F188: 390.00 | H188: 460 | I188: 460.00 | J188: Target Achieved | K188: 70.00 | L188: 17.95% | M188: Successful | N188: 2016-04-18
A189: 32 | B189: 2015-07-10 | D189: Dolphin OffShore | E189: Accu | F189: 118-127 | I189: 172.00 | J189: Open
A190: 33 | B190: 2015-08-03 | D190: Allcargo logistics | E190: Accu | F190: 297.50 | H190: 350 | I190: 360.00 | J190: Profit of Rs 52.50/- | K190: 52.50 | L190: =K190/F190 -> 17.65% | M190: Successful | N190: 2015-08-16
A191: 34 | B191: 2015-08-03 | D191: Camline Fine | E191: Accu | F191: 115.50 | H191: 149 | I191: 140.00 | J191: Profit of Rs 33.50/- | K191: 33.50 | L191: 29.00% | M191: Successful | N191: 2017-01-05
A192: 35 | B192: 2015-09-04 | D192: TCI | E192: Accu | F192: 226.00 | H192: 292 | I192: 292.00 | J192: Target Achieved | K192: 66.00 | L192: 29.20% | M192: Successful | N192: 2015-10-09
A193: 36 | B193: 2015-09-07 | D193: Kalpataru Power Transmission Ltd | E193: Accu | F193: 232.50 | H193: 312.5 | I193: 310.00 | J193: Target Achieved | K193: 80.00 | L193: 34.41% | M193: Successful | N193: 2017-03-29
A194: 37 | B194: 2015-09-21 | D194: LLOYD ELECTRIC & ENG LTD | E194: Accu | F194: 196.50 | H194: 238 | I194: 238.00 | J194: Target Achieved | K194: 41.50 | L194: 21.12% | M194: Successful | N194: 2015-10-14
A195: 38 | B195: 2015-09-24 | D195: L&T Finance Holding | E195: Accu | F195: 65.00 | H195: 82 | I195: 82.00 | J195: Target Achieved | K195: 17.00 | L195: 26.15% | M195: Successful | N195: 2016-07-27
A196: 39 | B196: 2015-10-14 | D196: KEC International ltd | E196: Accu | F196: 144.00 | H196: 182.5 | I196: 181.00 | J196: Target Achieved | K196: 38.50 | L196: 26.74% | M196: Successful | N196: 2017-03-23
A197: 40 | B197: 2015-10-14 | D197: Gruh Finance | E197: Accu | F197: 264.00 | H197: 311 | I197: 311.00 | J197: Target Achieved | K197: 47.00 | L197: 17.80% | M197: Successful | N197: 2016-08-22
A198: 41 | B198: 2015-11-10 | D198: Pidilitind | E198: Buy | F198: 549.50 | H198: 630 | I198: 630.00 | J198: Target Achieved | K198: 80.50 | L198: 14.65% | M198: Successful | N198: 2016-02-19
A199: 42 | B199: 2015-12-04 | D199: Zensar Technology | E199: Accu | F199: 1027.50 | H199: 1315 | I199: 1250.00 | J199: Target Achieved | K199: =H199-F199 -> 287.50 | L199: 27.98% | M199: Successful | N199: 2018-05-24
A200: 43 | B200: 2015-12-29 | D200: Vinati Organics Ltd | E200: Accu | F200: 465.00 | H200: 540 | I200: 540.00 | J200: Target Achieved | K200: 75.00 | L200: =K200/F200 -> 16.13% | M200: Successful | N200: 2016-06-09
A201: 44 | B201: 2016-01-11 | D201: GSFC | E201: Buy | F201: 81.00 | H201: 110 | I201: 110.00 | J201: Target Achieved | K201: 29.00 | L201: 35.80% | M201: Successful | N201: 2017-01-10
A202: 45 | B202: 2016-01-13 | D202: SSWL | E202: Buy | F202: 417.50 | H202: 547 | I202: 535.00 | J202: Target Achieved | K202: 129.50 | L202: 31.02% | M202: Successful | N202: 2016-07-27
A203: 46 | B203: 2016-02-08 | D203: Persistent System Ltd | E203: Accu | F203: 650.00 | H203: 800 | I203: 800.00 | J203: Target Achieved | K203: 150.00 | L203: 23.08% | M203: Successful | N203: 2018-02-23
A204: 47 | B204: 2016-03-04 | D204: UPL | E204: Accu | F204: 437.50 | H204: 504.5 | I204: 522.00 | J204: Profit of Rs.67/- | K204: 67.00 | L204: 15.31% | M204: Successful | N204: 2016-04-20
A205: 48 | B205: 2016-03-09 | D205: Ashoka Buildcon Ltd | E205: Accu | F205: 189.50 | H205: 218 | I205: 218.00 | J205: Target Achieved | K205: 28.50 | L205: 15.04% | M205: Successful | N205: 2017-10-26
A206: 49 | B206: 2016-04-11 | D206: PTC INDIA FIN SERV LTD | E206: Accu | F206: 36-37 | I206: 60.00 | J206: Open
A207: 50 | B207: 2016-04-12 | D207: CAMLINFINE $ | E207: Accu | F207: 93.00 | H207: 149 | I207: 140.00 | J207: Profit of Rs 56/- | K207: 56.00 | L207: =K207/F207 -> 60.22% | M207: Successful | N207: 2017-01-05
A208: 51 | B208: 2016-04-12 | D208: Greaves Cotton Ltd. | E208: Accu | F208: 130.00 | H208: 150 | I208: 150-155 | J208: Target Achieved | K208: 20.00 | L208: 15.38% | M208: Successful | N208: 2016-07-13
A209: 52 | B209: 2016-04-13 | D209: DHFL | E209: Accu | F209: 196.00 | H209: 299 | I209: 299.00 | J209: Target Achieved | K209: 103.00 | L209: 52.55% | M209: Successful | N209: 2016-09-07
A210: 53 | B210: 2016-04-13 | D210: Magma | E210: Accu | F210: 88.00 | H210: 103 | I210: 103.00 | J210: Target Achieved | K210: 15.00 | L210: 17.05% | M210: Successful | N210: 2016-06-09
A211: 54 | B211: 2016-05-02 | D211: KEC International ltd $ | E211: Accu | F211: 127.50 | H211: 148 | I211: 148-150 | J211: Target Achieved | K211: 20.50 | L211: 16.08% | M211: Successful | N211: 2016-07-13
A212: 55 | B212: 2016-05-03 | D212: Mindtree | E212: Accu | F212: 675.00 | H212: 815 | I212: 790-800 | J212: Target Achieved | K212: 140.00 | L212: 20.74% | M212: Successful | N212: 2018-02-23
A213: 56 | B213: 2016-06-01 | D213: Atulauto | E213: Accu | F213: 495-505 | I213: 565-570 | J213: Open
A214: 57 | B214: 2016-06-06 | D214: TRITURBINE | E214: Accu | F214: 110.00 | H214: 126.5 | I214: 125.00 | J214: Profit of Rs.16.50/- | K214: 16.50 | L214: =K214/F214 -> 15.00% | M214: Successful | N214: 2016-07-01
A215: 58 | B215: 2016-06-17 | D215: Pennar Industries Ltd | E215: Accu | F215: 44.00 | H215: 69.5 | I215: 69.50 | J215: Profit of Rs.25.50/- | K215: 25.50 | L215: =K215/F215 -> 57.95% | M215: Successful | N215: 2017-08-30
A216: 59 | B216: 2016-06-28 | D216: EVEREADY INDS. IND. LTD. | E216: Accu | F216: 262.50 | H216: 340 | I216: 333.00 | J216: Profit of Rs.77.50/- | K216: 77.50 | L216: =K216/F216 -> 29.52% | M216: Successful | N216: 2017-10-09
A217: 60 | B217: 2016-06-28 | D217: FIEM INDUSTRIES LIMITED | E217: Accu | F217: 840.00 | H217: 1230 | I217: 1230.00 | J217: Target Achieved | K217: 390.00 | L217: =K217/F217 -> 46.43% | M217: Successful | N217: 2016-10-06
A218: 61 | B218: 2016-07-05 | D218: Bajaj Corp Ltd | E218: Accu | F218: 395 | H218: 468.50 | I218: 510.00 | J218: Part profit of Rs.73.50/- | K218: 73.50 | L218: =K218/F218 -> 19% | M218: Successful | N218: 2017-08-30
A219: 62 | B219: 2016-08-02 | D219: GPPL $ | E219: Buy | F219: 167-172 | I219: 198-200 | J219: Open
A220: 63 | B220: 2016-08-04 | D220: WONDERLA HOLIDAYS LTD | E220: Accu | F220: 395-405 | I220: 475.00 | J220: Open
A221: 64 | B221: 2016-08-11 | D221: CAMLINFINE | E221: Accu | F221: 86.50 | H221: 130 | I221: 130.00 | J221: Profit of Rs.43.50/- | K221: =H221-F221 -> 43.50 | L221: =K221/F221 -> 50.29% | M221: Successful | N221: 2017-12-22
A222: 65 | B222: 2016-08-18 | D222: GRANULES | E222: Accu | F222: 133.5 | H222: 126.50 | I222: 178.00 | J222: Exit | K222: -7.00 | L222: -5.24% | M222: Unsuccessful | N222: 2016-09-02
A223: 66 | B223: 2016-08-31 | D223: VA TECH WABAG | E223: Accu | F223: 560.00 | H223: 725 | I223: 725.00 | J223: Target Achieved | K223: 165.00 | L223: 29.46% | M223: Successful | N223: 2016-03-27
A224: 67 | B224: 2016-09-01 | D224: SKIPPER LIMITED | E224: Accu | F224: 160.50 | H224: 210 | I224: 210.00 | J224: Target Achieved | K224: 49.50 | L224: 30.84% | M224: Successful | N224: 2017-05-16
A225: 68 | B225: 2016-10-03 | D225: IFB Industries | E225: Accu | F225: 430.00 | H225: 596 | I225: 575.00 | J225: Profit of Rs.166/- | K225: 166.00 | L225: 38.60% | M225: Successful | N225: 2017-02-03
A226: 69 | B226: 2016-10-14 | D226: ASIANTILES | E226: Accu | F226: 280.00 | H226: 345 | I226: 345.00 | J226: Target Achieved | K226: 65.00 | L226: 23.21% | M226: Successful | N226: 2017-03-20
A227: 70 | B227: 2016-10-14 | D227: DEEPIND | E227: Accu | F227: 245.00 | H227: 325.5 | I227: 330.00 | J227: Profit of Rs.80.5/- | K227: 80.50 | L227: 32.86% | M227: Successful | N227: 2017-02-03
A228: 71 | B228: 2016-10-17 | D228: DCBBANK | E228: Accu | F228: 125.00 | H228: 160 | I228: 160.00 | J228: Target Achieved | K228: 35.00 | L228: 28.00% | M228: Successful | N228: 2017-03-09
A229: 72 | B229: 2016-10-17 | D229: ORIENTREF | E229: Accu | F229: 114.00 | H229: 145 | I229: 145.00 | J229: Target Achieved | K229: 31.00 | L229: =K229/F229 -> 27.19% | M229: Successful | N229: 2017-05-04
A230: 73 | B230: 2016-10-17 | D230: GANECOS | E230: Accu | F230: 212.00 | H230: 280 | I230: 276.00 | J230: Profit of Rs.68/- | K230: 68.00 | L230: =K230/F230 -> 32.08% | M230: Successful | N230: 2017-05-03
A231: 74 | B231: 2016-11-04 | D231: NBCC | E231: Accu | F231: 155.00 | H231: 210 | I231: 210.00 | J231: Profit of Rs.55/- | K231: 55.00 | L231: =K231/F231 -> 35.48% | M231: Successful | N231: 2017-07-28
A232: 75 | B232: 2016-12-06 | D232: PRECAM | E232: Accu | F232: 148-153 | I232: 174.00 | J232: Open
A233: 76 | B233: 2016-12-08 | D233: INFRATEL | E233: Accu | F233: 380.00 | H233: 478 | I233: 468.00 | J233: Target Achieved | K233: 98.00 | L233: =K233/F233 -> 25.79% | M233: Successful | N233: 2017-10-17
A234: 77 | B234: 2016-12-30 | D234: GODREJPROP | E234: Accu | F234: 305.00 | H234: 375 | I234: 375.00 | J234: Target Achieved | K234: 70.00 | L234: 22.95% | M234: Successful | N234: 2017-02-02
A235: 78 | B235: 2017-01-04 | D235: DEEPAKNTR | E235: Accu | F235: 99.50 | H235: 158 | I235: 158.00 | J235: Target Achieved | K235: 58.50 | L235: 58.79% | M235: Successful | N235: 2017-06-12
A236: 79 | B236: 2017-02-20 | D236: SUBROS | E236: Accu | F236: 202.50 | H236: 234 | I236: 234.00 | J236: Target Achieved | K236: 31.50 | L236: 15.56% | M236: Successful | N236: 2017-04-11
A237: 80 | B237: 2017-02-20 | D237: RECLTD | E237: Accu | F237: 140.50 | H237: 220 | I237: 220.00 | J237: Target Achieved | K237: 79.50 | L237: 56.58% | M237: Successful | N237: 2017-05-09
A238: 81 | B238: 2017-03-24 | D238: VRLLOG | E238: Accu | F238: 300.50 | H238: 417.5 | I238: 420.00 | J238: Profit of Rs.117/- | K238: 117.00 | L238: 38.94% | M238: Successful | N238: 2017-12-01
A239: 82 | B239: 2017-03-24 | D239: FIEMIND | E239: Accu | F239: 850.00 | H239: 1042.5 | I239: 1023.00 | J239: Profit of Rs 192.50/- | K239: 192.50 | L239: 22.65% | M239: Successful | N239: 2017-04-05
A240: 83 | B240: 2017-04-05 | D240: RATNAMANI | E240: Accu | F240: 785.00 | H240: 930 | I240: 920.00 | J240: Profit of Rs.145/- | K240: 145.00 | L240: 18.47% | M240: Successful | N240: 2017-08-29
A241: 84 | B241: 2017-04-06 | D241: ZEEMEDIA | E241: Accu | F241: 39-41 | I241: 60.00 | J241: Open
A242: 85 | B242: 2017-04-12 | D242: DABUR | E242: Accu | F242: 289.50 | H242: 354 | I242: 360.00 | J242: Profit of Rs.64.5/- | K242: 64.50 | L242: =K242/F242 -> 22.28% | M242: Successful | N242: 2017-11-01
A243: 86 | B243: 2017-04-20 | D243: KPRMILL | E243: Accu | F243: 700.00 | H243: 840 | I243: 840.00 | J243: Profit of Rs.140/- | K243: 140.00 | L243: =K243/F243 -> 20.00% | M243: Successful | N243: 2017-06-07
A244: 87 | B244: 2017-05-22 | D244: GREAVESCOT | E244: Accu | F244: 153-158 | I244: 190.00 | J244: Open
A245: 88 | B245: 2017-06-01 | D245: ESSELPACK | E245: Accu | F245: 260 | H245: 311.00 | I245: 340.00 | J245: Part profit of Rs.51/- | K245: =H245-F245 -> 51.00 | L245: =K245/F245 -> 20% | M245: Successful | N245: 2017-11-17
A246: 89 | B246: 2017-06-15 | D246: KEI | E246: Accu | F246: 214.50 | H246: 262 | I246: 262.00 | J246: Profit of Rs.47.5/- | K246: =H246-F246 -> 47.50 | L246: 22.14% | M246: Successful | N246: 2017-08-30
A247: 90 | B247: 2017-07-17 | D247: MAYURUNIQ | E247: Accu | F247: 370.00 | H247: 447.5 | I247: 450.00 | J247: Target Achieved | K247: 77.50 | L247: 20.95% | M247: Successful | N247: 2017-10-27
A248: 91 | B248: 2017-07-27 | D248: RAMCOCEM | E248: Accu | F248: 657.50 | H248: 825 | I248: 820.00 | J248: Target Achieved | K248: 167.50 | L248: 25.48% | M248: Successful | N248: 2017-12-21
A249: 92 | B249: 2017-08-17 | D249: FINPIPE | E249: Accu | F249: 605.00 | H249: 750 | I249: 750.00 | J249: Profit of Rs.145/- | K249: 145.00 | L249: 23.97% | M249: Successful | N249: 2017-10-19
A250: 93 | B250: 2017-09-01 | D250: SHK | E250: Accu | F250: 255 | H250: 307.50 | I250: 320.00 | J250: Part profit of Rs.52.5/- | K250: 52.50 | L250: 21% | M250: Successful | N250: 2017-12-29
A251: 94 | B251: 2017-09-19 | D251: SKIPPER | E251: Accu | F251: 215.00 | H251: 258 | I251: 258.00 | J251: Target Achieved | K251: 43.00 | L251: 20.00% | M251: Successful | N251: 2017-11-01
A252: 95 | B252: 2017-09-20 | D252: CAMLINFINE | E252: Accu | F252: 75.00 | H252: 90 | I252: 90.00 | J252: Profit of Rs.15.00/- | K252: 15.00 | L252: 20.00% | M252: Successful | N252: 2017-10-11
A253: 96 | B253: 2017-10-03 | D253: GNA | E253: Accu | F253: 315.00 | H253: 392 | I253: 384.00 | J253: Profit of Rs.77/- | K253: 77.00 | L253: 24.44% | M253: Successful | N253: 2017-10-09
A254: 97 | B254: 2017-10-05 | D254: NOCIL | E254: Accu | F254: 145.00 | H254: 179 | I254: 180.00 | J254: Profit of Rs.34/- | K254: 34.00 | L254: 23.45% | M254: Successful | N254: 2017-10-17
A255: 98 | B255: 2017-10-06 | D255: CENTURYPLY | E255: Accu | F255: 256.00 | H255: 323 | I255: 320.00 | J255: Target Achieved | K255: 67.00 | L255: 26.17% | M255: Successful | N255: 2017-11-28
A256: 99 | B256: 2017-10-09 | D256: RECLTD | E256: Accu | F256: 152.5 | H256: 183.50 | I256: 210.00 | J256: Part Profit of Rs.31/- | K256: 31.00 | L256: 20% | M256: Successful | N256: 2017-11-03
A257: 100 | B257: 2017-10-09 | D257: EIHOTEL | E257: Accu | F257: 137.50 | H257: 184 | I257: 183.00 | J257: Profit of Rs.46.5/- | K257: 46.50 | L257: 33.82% | M257: Successful | N257: 2018-01-08
A258: 101 | B258: 2017-10-10 | D258: BOROSIL | E258: Accu | F258: 895.00 | H258: 1122.5 | I258: 1078.00 | J258: Profit of Rs.227.5/- | K258: 227.50 | L258: 25.42% | M258: Successful | N258: 2018-01-17
A259: 102 | B259: 2017-10-10 | D259: NRBBEARING | E259: Accu | F259: 125.50 | H259: 158 | I259: 155.00 | J259: Profit of Rs.32.5/- | K259: 32.50 | L259: 25.90% | M259: Successful | N259: 2017-11-28
A260: 103 | B260: 2017-10-12 | D260: CYIENT | E260: Accu | F260: 525.00 | H260: 629 | I260: 629.00 | J260: Target Achieved | K260: 104.00 | L260: 19.81% | M260: Successful | N260: 2018-01-19
A261: 104 | B261: 2017-11-07 | D261: HATSUN | E261: Accu | F261: 740.00 | H261: 892.5 | I261: 900.00 | J261: Profit of Rs.152.5/- | K261: 152.50 | L261: 20.61% | M261: Successful | N261: 2017-11-13
... 27 more rows

Sheet Call Tracker (Currency) (hidden)
A1: Master Trade High Risk
A2: Sr.no | B2: Date | C2: Company | D2: Rec | E2: Rec Price | F2: Stop Loss | G2: Call Closed At | H2: Target | I2: Remark | K2: Profit / Loss per share | L2: Gain / Loss per Lot | M2: Lot | N2: Status | O2: Closed Date
A3: 1 | B3: 2017-05-08 | C3: USDINR MAY FUT | D3: Buy | E3: 64.3935 | F3: 64.29 | G3: 64.66 | H3: 64.59 | I3: Profit of Rs.0.27/- | K3: 0.27 | L3: 266.5 | M3: 1000 | N3: Successful | O3: 2017-05-09 | R3: P
A4: 2 | B4: 2017-05-08 | C4: USDINR JUN FUT | D4: Buy | E4: 64.6535 | F4: 64.45 | G4: 64.965 | H4: 65.05 | I4: Profit of Rs 0.31/- | K4: 0.31 | L4: 311.5 | M4: 1000 | N4: Successful | O4: 2017-05-09 | R4: P
A5: 3 | B5: 2017-05-09 | C5: EUROINR MAY FUT | D5: Sell | E5: 70.65 | F5: 70.8 | G5: 70.07 | H5: 70.4 | I5: Profit of Rs 0.58/- | K5: 0.58 | L5: 580 | M5: 1000 | N5: Successful | O5: 2017-05-12 | R5: P
A6: 4 | B6: 2017-05-09 | C6: GBPINR MAY FUT | D6: Buy | E6: 83.774 | F6: 83.37 | G6: 83.37 | H6: 84.77 | I6: Loss of Rs 0.40/- | K6: -0.40 | L6: -404 | M6: 1000 | N6: Unsuccessful | O6: 2017-05-11 | R6: P
A7: 5 | B7: 2017-05-11 | C7: USDINR MAY FUT | D7: Buy | E7: 64.6555 | F7: 64.55 | G7: 64.55 | H7: 64.86 | I7: Loss of Rs.0.1055/- | K7: -0.1055 | L7: =K7*M7 -> -105.50 | M7: 1000 | N7: Unsuccessful | O7: 2017-05-11 | R7: P
A8: 6 | B8: 2017-05-15 | C8: USDINR MAY FUT | D8: Buy | E8: 64.2275 | F8: 64.08 | G8: 64.46 | H8: 64.48 | I8: Profit of Rs 0.23/- | K8: 0.23 | L8: 232.5 | M8: 1000 | N8: Successful | O8: 2017-05-18 | R8: P
A9: 7 | B9: 2017-05-19 | C9: USDINR MAY FUT | D9: Sell | E9: 64.83 | F9: 65 | G9: 65 | H9: 64.5 | I9: Loss of Rs.0.17/- | K9: -0.17 | L9: -170 | M9: 1000 | N9: Unsuccessful | O9: 2017-05-19 | R9: P
A10: 8 | B10: 2017-05-23 | C10: USDINR MAY FUT | D10: Buy | E10: 64.83 | F10: 64.62 | G10: 64.95 | H10: 65.2 | I10: Profit of Rs 0.12/- | K10: 0.12 | L10: 120 | M10: 1000 | N10: Successful | O10: 2017-05-24 | R10: P
A11: 9 | B11: 2017-05-25 | C11: USDINR MAY FUT | D11: Buy | E11: 64.57 | F11: 64.25 | G11: 64.56 | H11: 65 | I11: Loss of Rs.0.01/- | K11: -0.01 | L11: -10 | M11: 1000 | N11: Neutral | O11: 2017-05-29 | R11: P
A12: 10 | B12: 2017-05-30 | C12: USDINR JUN FUT | D12: Buy | E12: 64.9125 | F12: 64.71 | G12: 64.71 | H12: 65.31 | I12: Loss of Rs.0.20/- | K12: -0.20 | L12: -202.5 | M12: 1000 | N12: Unsuccessful | O12: 2017-05-31 | R12: P
A13: 11 | B13: 2017-06-01 | C13: USDINR JUN FUT | D13: Buy | E13: 64.655 | F13: 64.45 | G13: 64.45 | H13: 65.05 | I13: Loss of Rs.0.20/- | K13: =G13-E13 -> -0.20 | L13: =K13*M13 -> -205 | M13: 1000.00 | N13: Unsuccessful | O13: 2017-06-08 | R13: P
A14: 12 | B14: 2017-06-12 | C14: USDINR JUN FUT | D14: Buy | E14: 64.45 | F14: 64 | G14: 64.7625 | H14: 65.2 | I14: Profit of Rs 0.31/- | K14: 0.31 | L14: 312.5 | M14: 1000 | N14: Successful | O14: 2017-06-16
A15: 13 | B15: 2017-06-16 | C15: USDINR JUN FUT | D15: Buy | E15: 64.51 | F15: 64.2 | G15: 64.7 | H15: 65.11 | I15: Profit of Rs 0.19/- | K15: 0.19 | L15: 190 | M15: 1000 | N15: Successful | O15: 2017-06-21
A16: 14 | B16: 2017-06-22 | C16: USDINR JUN FUT | D16: Buy | E16: 64.56 | F16: 64.2 | G16: 64.2 | H16: 65.1 | I16: Loss of Rs.0.36/- | K16: -0.36 | L16: -360 | M16: 1000.00 | N16: Unsuccessful | O16: 2017-06-30
A17: 15 | B17: 2017-07-10 | C17: USDINR JUL FUT | D17: Buy | E17: 64.67 | F17: 64.4 | G17: 64.4 | H17: 65.15 | I17: Loss of Rs.0.27/- | K17: -0.27 | L17: -270 | M17: 1000.00 | N17: Unsuccessful | O17: 2017-07-31
A18: 16 | B18: 2017-08-02 | C18: USDINR AUG FUT | D18: Buy | E18: 64.235 | F18: 63.98 | G18: 63.98 | H18: 64.75 | I18: Loss of Rs.0.26/- | K18: -0.26 | L18: -255 | M18: 1000.00 | N18: Unsuccessful | O18: 2017-08-02
A19: 17 | B19: 2017-08-08 | C19: USDINR AUG FUT | D19: Buy | E19: 63.9425 | F19: 63.6 | G19: 64.15 | H19: 64.5 | I19: Profit of Rs 0.21/- | K19: 0.21 | L19: 207.5 | M19: 1000 | N19: Successful | O19: 2017-08-10
A20: 18 | B20: 2017-08-22 | C20: USDINR AUG FUT | D20: Buy | E20: 64.1175 | F20: 63.9 | G20: 64.01 | H20: 64.5 | I20: Loss of Rs.0.11/- | K20: =G20-E20 -> -0.11 | L20: =K20*M20 -> -107.5 | M20: 1000.00 | N20: Unsuccessful | O20: 2017-08-29
A21: 19 | B21: 2017-09-01 | C21: USDINR SEP FUT | D21: Buy | E21: 64.1 | F21: 63.8 | G21: 64.205 | H21: 64.7 | I21: Profit of Rs 0.11/- | K21: 0.11 | L21: 105 | M21: 1000 | N21: Successful | O21: 2017-09-01
A22: 20 | B22: 2017-09-04 | C22: USDINR SEP FUT | D22: Buy | E22: 64.095 | F22: 63.8 | G22: 64.195 | H22: 64.7 | I22: Profit of Rs 0.10/- | K22: 0.10 | L22: =K22*M22 -> 100 | M22: 1000 | N22: Successful | O22: 2017-09-04
A23: 21 | B23: 2017-09-05 | C23: USDINR SEP FUT | D23: Buy | E23: 64.25 | F23: 64 | G23: 64.355 | H23: 64.75 | I23: Profit of Rs 0.11/- | K23: =G23-E23 -> 0.11 | L23: =K23*M23 -> 105 | M23: 1000 | N23: Successful | O23: 2017-09-06
A24: 22 | B24: 2017-09-06 | C24: USDINR SEP FUT | D24: Sell | E24: 64.365 | F24: 64.5 | G24: 64.265 | H24: 64 | I24: Profit of Rs 0.10/- | K24: =E24-G24 -> 0.10 | L24: 100 | M24: 1000 | N24: Successful | O24: 2017-09-06
A25: 23 | B25: 2017-09-07 | C25: USDINR SEP FUT | D25: Buy | E25: 64.145 | F25: 63.9 | G25: 64.2565 | H25: 64.65 | I25: Profit of Rs 0.11/- | K25: =G25-E25 -> 0.11 | L25: =K25*M25 -> 111.5 | M25: 1000 | N25: Successful | O25: 2017-09-14
A26: 24 | B26: 2017-09-11 | C26: JPYINR SEP FUT | D26: Sell | E26: 59.0285 | F26: 59.25 | G26: 58.645 | H26: 58.5 | I26: Profit of Rs 0.38/- | K26: =E26-G26 -> 0.38 | L26: 383.5 | M26: 1000 | N26: Successful | O26: 2017-09-12
A27: 25 | B27: 2017-09-14 | C27: USDINR SEP FUT | D27: Buy | E27: 64.145 | F27: 63.95 | G27: 64.26 | H27: 64.5 | I27: Profit of Rs 0.12/- | K27: =G27-E27 -> 0.12 | L27: 115 | M27: 1000 | N27: Successful | O27: 2017-09-19
A28: 26 | B28: 2017-09-20 | C28: USDINR SEP FUT | D28: Buy | E28: 64.3515 | F28: 64.15 | G28: 64.57 | H28: 64.75 | I28: Profit of Rs 0.22/- | K28: =G28-E28 -> 0.22 | L28: =K28*M28 -> 218.5 | M28: 1000 | N28: Successful | O28: 2017-09-21
A29: 27 | B29: 2017-09-21 | C29: USDINR SEP FUT | D29: Sell | E29: 64.795 | F29: 65.05 | G29: 65.05 | H29: 64.4 | I29: Loss of Rs.0.17/- | K29: -0.17 | L29: -170 | M29: 1000.00 | N29: Unsuccessful | O29: 2017-09-22
A30: 28 | B30: 2017-09-25 | C30: USDINR SEP FUT | D30: Buy | E30: 64.77 | F30: 64.4 | G30: 64.92 | H30: 65.1 | I30: Profit of Rs 0.15/- | K30: =G30-E30 -> 0.15 | L30: =K30*M30 -> 150 | M30: 1000 | N30: Successful | O30: 2017-09-25
A31: 29 | B31: 2017-09-25 | C31: USDINR SEP FUT | D31: Sell | E31: 65.1077 | F31: 65.3 | G31: 65.3 | H31: 64.5 | I31: Loss of Rs.0.19/- | K31: -0.19 | L31: -190 | M31: 1000.00 | N31: Unsuccessful | O31: 2017-09-26
A32: 30 | B32: 2017-09-27 | C32: USDINR SEP FUT | D32: Sell | E32: 65.7225 | F32: 65.83 | G32: 65.7 | H32: 65.52 | I32: Profit of Rs 0.02/- | K32: =E32-G32 -> 0.02 | L32: =K32*M32 -> 22.5 | M32: 1000 | N32: Neutral | O32: 2017-09-27
A33: 31 | B33: 2017-09-27 | C33: USDINR OCT FUT | D33: Sell | E33: 66 | F33: 66.5 | G33: 65.895 | H33: 65 | I33: Profit of Rs 0.11/- | K33: =E33-G33 -> 0.11 | L33: 105 | M33: 1000 | N33: Successful | O33: 2017-09-27
A34: 32 | B34: 2017-09-28 | C34: USDINR OCT FUT | D34: Sell | E34: 66.075 | F34: 66.3 | G34: 65.96 | H34: 65.4 | I34: Profit of Rs 0.12/- | K34: =E34-G34 -> 0.12 | L34: =K34*M34 -> 115 | M34: 1000 | N34: Successful | O34: 2017-09-28
A35: 33 | B35: 2017-09-29 | C35: GBPINR OCT fut | D35: Buy | E35: 87.745 | F35: 87.5 | G35: 87.84 | H35: 88.25 | I35: Profit of Rs 0.09/- | K35: =G35-E35 -> 0.09 | L35: 95 | M35: 1000 | N35: Successful | O35: 2017-09-29
A36: 34 | B36: 2017-09-29 | C36: USDINR OCT FUT | D36: Buy | E36: 65.514 | F36: 65.25 | G36: 65.85 | H36: 66 | I36: Profit of Rs 0.34/- | K36: 0.34 | L36: =K36*M36 -> 336 | M36: 1000 | N36: Successful | O36: 2017-10-03
A37: 35 | B37: 2017-10-09 | C37: USDINR OCT FUT | D37: Buy | E37: 65.48 | F37: 65.23 | G37: 65.5775 | H37: 65.95 | I37: Profit of Rs 0.10/- | K37: =G37-E37 -> 0.10 | L37: =K37*M37 -> 97.5 | M37: 1000 | N37: Successful | O37: 2017-10-09
A38: 36 | B38: 2017-10-10 | C38: USDINR OCT FUT | D38: Buy | E38: 65.41 | F38: 65.15 | G38: 65.5075 | H38: 66 | I38: Profit of Rs 0.10/- | K38: 0.10 | L38: 97.5 | M38: 1000 | N38: Successful | O38: 2017-10-10
A39: 37 | B39: 2017-10-11 | C39: USDINR OCT FUT | D39: Buy | E39: 65.38 | F39: 65.13 | G39: 65.13 | H39: 65.88 | I39: Loss of Rs.0.25/- | K39: -0.25 | L39: -250 | M39: 1000.00 | N39: Unsuccessful | O39: 2017-10-13
A40: 38 | B40: 2017-10-16 | C40: USDINR OCT FUT | D40: Buy | E40: 64.7925 | F40: 64.54 | G40: 64.905 | H40: 65.3 | I40: Profit of Rs 0.11/- | K40: =G40-E40 -> 0.11 | L40: =K40*M40 -> 112.5 | M40: 1000 | N40: Successful | O40: 2017-10-17
A41: 39 | B41: 2017-10-23 | C41: USDINR OCT FUT | D41: Buy | E41: 65.115 | F41: 64.85 | G41: 65.21 | H41: 65.5 | I41: Profit of Rs 0.09/- | K41: =G41-E41 -> 0.09 | L41: =K41*M41 -> 95 | M41: 1000 | N41: Successful | O41: 2017-10-25
A42: 40 | B42: 2017-10-23 | C42: JPYINR OCT FUT | D42: Buy | E42: 57.285 | F42: 57.03 | G42: 57.38 | H42: 58.4 | I42: Profit of Rs 0.10/- | K42: =G42-E42 -> 0.10 | L42: =K42*M42 -> 95 | M42: 1000 | N42: Successful | O42: 2017-10-23
A43: 41 | B43: 2017-10-26 | C43: USDINR OCT FUT | D43: Buy | E43: 64.755 | F43: 64.5 | G43: 64.87 | H43: 65.25 | I43: Profit of Rs 0.12/- | K43: 0.12 | L43: 115 | M43: 1000 | N43: Successful | O43: 2017-10-25
A44: 42 | B44: 2017-10-30 | C44: USDINR NOV FUT | D44: Buy | E44: 65.035 | F44: 64.79 | G44: 64.79 | H44: 65.5 | I44: Loss of Rs.0.24/- | K44: -0.24 | L44: -245 | M44: 1000.00 | N44: Unsuccessful | O44: 2017-11-01
A45: 43 | B45: 2017-11-01 | C45: JPYINR NOV FUT | D45: Buy | E45: 56.9875 | F45: 56.73 | G45: 57.0959 | H45: 57.5 | I45: Profit of Rs 0.11/- | K45: =G45-E45 -> 0.11 | L45: =K45*M45 -> 108.4 | M45: 1000 | N45: Successful | O45: 2017-11-07
A46: 44 | B46: 2017-11-02 | C46: USDINR NOV FUT | D46: Buy | E46: 64.7838 | F46: 64.5 | G46: 64.89 | H46: 65.25 | I46: Profit of Rs 0.11/- | K46: =G46-E46 -> 0.11 | L46: =K46*M46 -> 106.2 | M46: 1000 | N46: Successful | O46: 2017-11-06
A47: 45 | B47: 2017-11-08 | C47: USDINR NOV FUT | D47: Buy | E47: 65.1363 | F47: 64.8375 | G47: 65.235 | H47: 65.73 | I47: Profit of Rs 0.10/- | K47: =G47-E47 -> 0.10 | L47: =K47*M47 -> 98.7 | M47: 1000 | N47: Successful | O47: 2017-11-10
A48: 46 | B48: 2017-11-08 | C48: GBPINR NOV FUT | D48: Buy | E48: 85.4983 | F48: 85.25 | G48: 85.6 | H48: 86 | I48: Profit of Rs 0.10/- | K48: =G48-E48 -> 0.10 | L48: =K48*M48 -> 101.7 | M48: 1000 | N48: Successful | O48: 2017-11-09
A49: 47 | B49: 2017-11-16 | C49: EURINR NOV FUT | D49: Buy | E49: 76.8975 | F49: 76.3975 | G49: 76.3975 | H49: 77.8975 | I49: Loss of Rs.0.50/- | K49: =G49-E49 -> -0.50 | L49: -500 | M49: 1000.00 | N49: Unsuccessful | O49: 2017-11-01
A50: 48 | B50: 2017-11-16 | C50: JPYINR NOV FUT | D50: Buy | E50: 57.6625 | F50: 57.2675 | G50: 57.8075 | H50: 58.6675 | I50: Profit of Rs 0.14/- | K50: =G50-E50 -> 0.14 | L50: =K50*M50 -> 145 | M50: 1000 | N50: Successful | O50: 2017-11-17
A51: 49 | B51: 2017-11-22 | C51: EURINR NOV FUT | D51: Buy | E51: 76.175 | F51: 75.95 | G51: 76.335 | H51: 76.6 | I51: Profit of Rs 0.16/- | K51: 0.16 | L51: =K51*M51 -> 160 | M51: 1000 | N51: Successful | O51: 2017-11-22
A52: 50 | B52: 2017-11-22 | C52: USDINR NOV FUT | D52: Buy | E52: 64.87 | F52: 64.5 | G52: 64.5 | H52: 65.5 | I52: Loss of Rs.0.37/- | K52: -0.37 | L52: -370 | M52: 1000.00 | N52: Unsuccessful | O52: 2017-11-27
A53: 51 | B53: 2017-11-28 | C53: GBPINR DEC FUT | D53: Buy | E53: 86.17 | F53: 85.85 | G53: 86.46 | H53: 87 | I53: Profit of Rs 0.29/- | K53: 0.29 | L53: =K53*M53 -> 290 | M53: 1000 | N53: Successful | O53: 2017-11-29
A54: 52 | B54: 2017-11-28 | C54: JPYINR DEC FUT | D54: Buy | E54: 58.16 | F54: 57.85 | G54: 57.85 | H54: 58.6 | I54: Loss of Rs.0.31/- | K54: -0.31 | L54: -310 | M54: 1000.00 | N54: Unsuccessful | O54: 2017-11-29
A55: 53 | B55: 2017-11-28 | C55: USDINR DEC FUT | D55: Buy | E55: 64.63 | F55: 64.13 | G55: 64.13 | H55: 65.63 | I55: Loss of Rs.0.50/- | K55: -0.50 | L55: =K55*M55 -> -500 | M55: 1000.00 | N55: Unsuccessful | O55: 2017-12-15
A56: 54 | B56: 2017-11-28 | C56: EURINR DEC FUT | D56: Buy | E56: 76.93 | F56: 76.43 | G56: 76.43 | H56: 77.93 | I56: Loss of Rs.0.50/- | K56: =G56-E56 -> -0.50 | L56: =K56*M56 -> -500 | M56: 1000.00 | N56: Unsuccessful | O56: 2017-11-29
A57: 55 | B57: 2017-12-12 | C57: EURINR DEC FUT | D57: Buy | E57: 76.105 | F57: 75.7 | G57: 76.27 | H57: 76.8 | I57: Profit of Rs 0.16/- | K57: =G57-E57 -> 0.16 | L57: 165 | M57: 1000 | N57: Successful | O57: 2017-12-14
A58: 56 | B58: 2017-12-12 | C58: JPYINR DEC FUT | D58: Buy | E58: 56.975 | F58: 56.7 | G58: 57.21 | H58: 57.6 | I58: Profit of Rs 0.23/- | K58: =G58-E58 -> 0.23 | L58: =K58*M58 -> 235 | M58: 1000 | N58: Successful | O58: 2017-12-14

Sheet Sheet2 (hidden)
A1: SYMBOL | B1: SERIES | C1: OPEN | D1: HIGH | E1: LOW | F1: CLOSE | G1: LAST | H1: PREVCLOSE | I1: TOTTRDQTY | J1: TOTTRDVAL | K1: TIMESTAMP | L1: TOTALTRADES | M1: ISIN | N1: ISIN
A2: 20MICRONS | B2: EQ | C2: 36.5 | D2: 36.5 | E2: 34.65 | F2: 35.1 | G2: 35 | H2: 35.75 | I2: 29910 | J2: 1055612.95 | K2: 2018-07-16 | L2: 333 | M2: INE144J01027
A3: 21STCENMGM | B3: EQ | C3: 33.5 | D3: 34.65 | E3: 33.5 | F3: 34.65 | G3: 34.65 | H3: 34 | I3: 1483 | J3: 50835 | K3: 2018-07-16 | L3: 15 | M3: INE253B01015
A4: 3IINFOTECH | B4: EQ | C4: 3.75 | D4: 3.75 | E4: 3.45 | F4: 3.5 | G4: 3.55 | H4: 3.75 | I4: 11311140 | J4: 40791368.25 | K4: 2018-07-16 | L4: 3127 | M4: INE748C01020
A5: 3MINDIA | B5: EQ | C5: 19862 | D5: 19998.7 | E5: 19546.15 | F5: 19679.75 | G5: 19604 | H5: 19944.95 | I5: 967 | J5: 19165036.2 | K5: 2018-07-16 | L5: 295 | M5: INE470A01017
A6: 3PLAND | B6: EQ | C6: 15 | D6: 15.1 | E6: 13.55 | F6: 14.7 | G6: 14.7 | H6: 13.55 | I6: 1115 | J6: 15986.75 | K6: 2018-07-16 | L6: 13 | M6: INE105C01023
A7: 5PAISA | B7: EQ | C7: 328 | D7: 341.95 | E7: 327.6 | F7: 329.3 | G7: 328.5 | H7: 337.3 | I7: 11115 | J7: 3719153.55 | K7: 2018-07-16 | L7: 411 | M7: INE618L01018
A8: 63MOONS | B8: EQ | C8: 74.2 | D8: 74.8 | E8: 70.25 | F8: 70.75 | G8: 70.25 | H8: 74.2 | I8: 106214 | J8: 7647201.95 | K8: 2018-07-16 | L8: 1772 | M8: INE111B01023
A9: 8KMILES | B9: EQ | C9: 348.9 | D9: 354 | E9: 335.2 | F9: 345 | G9: 341.5 | H9: 347.05 | I9: 322457 | J9: 110773454.2 | K9: 2018-07-16 | L9: 10747 | M9: INE650K01021
A10: A2ZINFRA | B10: EQ | C10: 22.45 | D10: 22.8 | E10: 20.5 | F10: 20.7 | G10: 20.5 | H10: 22.35 | I10: 330665 | J10: 6984400.55 | K10: 2018-07-16 | L10: 1383 | M10: INE619I01012
A11: AARTIDRUGS | B11: EQ | C11: 532 | D11: 538 | E11: 521.2 | F11: 527.8 | G11: 524 | H11: 520.65 | I11: 21998 | J11: 11630643.05 | K11: 2018-07-16 | L11: 1636 | M11: INE767A01016
A12: AARTIIND | B12: EQ | C12: 1248.8 | D12: 1248.8 | E12: 1210.95 | F12: 1218.55 | G12: 1218 | H12: 1239.35 | I12: 7879 | J12: 9608736.7 | K12: 2018-07-16 | L12: 989 | M12: INE769A01020
A13: AARVEEDEN | B13: EQ | C13: 32.5 | D13: 32.5 | E13: 29.9 | F13: 30.1 | G13: 30.3 | H13: 31.3 | I13: 5571 | J13: 170446.35 | K13: 2018-07-16 | L13: 54 | M13: INE273D01019
A14: ABAN | B14: EQ | C14: 111 | D14: 111.3 | E14: 105 | F14: 106.25 | G14: 105.5 | H14: 111.5 | I14: 360399 | J14: 38811887.7 | K14: 2018-07-16 | L14: 4848 | M14: INE421A01028
A15: ABB | B15: EQ | C15: 1228.4 | D15: 1234.95 | E15: 1191.65 | F15: 1194.6 | G15: 1194.4 | H15: 1218.6 | I15: 35525 | J15: 42969830.05 | K15: 2018-07-16 | L15: 2886 | M15: INE117A01022
A16: ABBOTINDIA | B16: EQ | C16: 7153.8 | D16: 7154.2 | E16: 7030.05 | F16: 7101.05 | G16: 7100 | H16: 7100.3 | I16: 2572 | J16: 18232413.9 | K16: 2018-07-16 | L16: 584 | M16: INE358A01014
A17: ABCAPITAL | B17: EQ | C17: 130.4 | D17: 130.4 | E17: 126.6 | F17: 126.95 | G17: 126.85 | H17: 130.2 | I17: 805382 | J17: 103393592.2 | K17: 2018-07-16 | L17: 8528 | M17: INE674K01013
A18: ABFRL | B18: EQ | C18: 137 | D18: 138 | E18: 134.2 | F18: 136.7 | G18: 136.55 | H18: 136.7 | I18: 143569 | J18: 19512439.95 | K18: 2018-07-16 | L18: 2592 | M18: INE647O01011
A19: ABMINTLTD | B19: BE | C19: 19.05 | D19: 19.05 | E19: 19.05 | F19: 19.05 | G19: 19.05 | H19: 19.05 | I19: 10 | J19: 190.5 | K19: 2018-07-16 | L19: 1 | M19: INE251C01017
A20: ACC | B20: EQ | C20: 1341.8 | D20: 1341.8 | E20: 1260.35 | F20: 1266.85 | G20: 1270.05 | H20: 1337.65 | I20: 474561 | J20: 611830733.8 | K20: 2018-07-16 | L20: 16082 | M20: INE012A01025
A21: ACCELYA | B21: EQ | C21: 1112.4 | D21: 1112.4 | E21: 1092.05 | F21: 1099.25 | G21: 1099.9 | H21: 1114.75 | I21: 7725 | J21: 8501151.9 | K21: 2018-07-16 | L21: 383 | M21: INE793A01012
A22: ACE | B22: EQ | C22: 140.5 | D22: 143 | E22: 136.2 | F22: 136.2 | G22: 136.2 | H22: 143.35 | I22: 181824 | J22: 24997369.05 | K22: 2018-07-16 | L22: 2736 | M22: INE731H01025
A23: ADANIENT | B23: EQ | C23: 131 | D23: 134.85 | E23: 129.2 | F23: 133.6 | G23: 133.6 | H23: 131.65 | I23: 18221825 | J23: 2418700623 | K23: 2018-07-16 | L23: 70331 | M23: INE423A01024
A24: ADANIGREEN | B24: EQ | C24: 32.4 | D24: 32.4 | E24: 30.85 | F24: 31.1 | G24: 31.25 | H24: 31.45 | I24: 696778 | J24: 22008967.65 | K24: 2018-07-16 | L24: 7373 | M24: INE364U01010
A25: ADANIPORTS | B25: EQ | C25: 370.5 | D25: 372.3 | E25: 358.5 | F25: 360.05 | G25: 360.2 | H25: 370.4 | I25: 1340324 | J25: 488034875.9 | K25: 2018-07-16 | L25: 28913 | M25: INE742F01042
A26: ADANIPOWER | B26: EQ | C26: 19.6 | D26: 20.1 | E26: 18.85 | F26: 19.55 | G26: 19.65 | H26: 19.8 | I26: 22562838 | J26: 438166158.8 | K26: 2018-07-16 | L26: 21966 | M26: INE814H01011
A27: ADANITRANS | B27: EQ | C27: 159.9 | D27: 160.8 | E27: 152.3 | F27: 153.95 | G27: 154 | H27: 160.85 | I27: 351796 | J27: 54907901.8 | K27: 2018-07-16 | L27: 3309 | M27: INE931S01010
A28: ADFFOODS | B28: EQ | C28: 240.05 | D28: 241.65 | E28: 229.5 | F28: 231.75 | G28: 232.5 | H28: 240.8 | I28: 47526 | J28: 11125574 | K28: 2018-07-16 | L28: 1176 | M28: INE982B01019
A29: ADHUNIK | B29: EQ | C29: 3.9 | D29: 3.9 | E29: 3.8 | F29: 3.8 | G29: 3.8 | H29: 3.95 | I29: 24872 | J29: 94799.85 | K29: 2018-07-16 | L29: 37 | M29: INE400H01019
A30: ADHUNIKIND | B30: EQ | C30: 77 | D30: 77 | E30: 70.3 | F30: 70.9 | G30: 70.3 | H30: 78.05 | I30: 5243 | J30: 381602.45 | K30: 2018-07-16 | L30: 91 | M30: INE452L01012
A31: ADLABS | B31: EQ | C31: 37.45 | D31: 37.45 | E31: 34.6 | F31: 35.2 | G31: 35.05 | H31: 37.05 | I31: 35717 | J31: 1263635.65 | K31: 2018-07-16 | L31: 450 | M31: INE172N01012
A32: ADORWELD | B32: EQ | C32: 293 | D32: 294.5 | E32: 280.05 | F32: 281.35 | G32: 281.05 | H32: 292.1 | I32: 5221 | J32: 1486061.6 | K32: 2018-07-16 | L32: 218 | M32: INE045A01017
A33: ADROITINFO | B33: EQ | C33: 34.5 | D33: 37 | E33: 32.2 | F33: 35.8 | G33: 35.5 | H33: 34 | I33: 82434 | J33: 2871412.4 | K33: 2018-07-16 | L33: 534 | M33: INE737B01033
A34: ADSL | B34: EQ | C34: 16 | D34: 16.4 | E34: 15.25 | F34: 15.45 | G34: 15.6 | H34: 16.05 | I34: 33456 | J34: 521957.05 | K34: 2018-07-16 | L34: 159 | M34: INE102I01027
A35: ADVANIHOTR | B35: EQ | C35: 49.95 | D35: 50.75 | E35: 47 | F35: 47.5 | G35: 48 | H35: 51.1 | I35: 8735 | J35: 423982.45 | K35: 2018-07-16 | L35: 123 | M35: INE199C01026
A36: ADVENZYMES | B36: EQ | C36: 212 | D36: 213.2 | E36: 205.5 | F36: 207.1 | G36: 207 | H36: 212.35 | I36: 89193 | J36: 18554128.1 | K36: 2018-07-16 | L36: 1727 | M36: INE837H01020
A37: AEGISCHEM | B37: EQ | C37: 238.3 | D37: 239 | E37: 225.45 | F37: 228.45 | G37: 228.4 | H37: 238.55 | I37: 87440 | J37: 20100383.75 | K37: 2018-07-16 | L37: 3735 | M37: INE208C01025
A38: AFL | B38: EQ | C38: 53.1 | D38: 53.95 | E38: 52 | F38: 52.9 | G38: 52 | H38: 54.4 | I38: 2277 | J38: 122099.8 | K38: 2018-07-16 | L38: 35 | M38: INE020G01017
A39: AGARIND | B39: EQ | C39: 294 | D39: 307.95 | E39: 292.9 | F39: 300.35 | G39: 300.2 | H39: 293.95 | I39: 6112 | J39: 1832680.25 | K39: 2018-07-16 | L39: 158 | M39: INE204E01012
A40: AGCNET | B40: EQ | C40: 105 | D40: 105.2 | E40: 102 | F40: 102.75 | G40: 102 | H40: 107.7 | I40: 1762 | J40: 182202.4 | K40: 2018-07-16 | L40: 41 | M40: INE676A01019
A41: AGLSL | B41: EQ | C41: 87.5 | D41: 92 | E41: 82.5 | F41: 83.05 | G41: 84.9 | H41: 84.65 | I41: 20196 | J41: 1754687.15 | K41: 2018-07-16 | L41: 180 | M41: INE517U01013
A42: AGRITECH | B42: EQ | C42: 101 | D42: 102.9 | E42: 99.45 | F42: 99.8 | G42: 99.45 | H42: 102.25 | I42: 14995 | J42: 1509164.5 | K42: 2018-07-16 | L42: 358 | M42: INE449G01018
A43: AHLEAST | B43: EQ | C43: 256.95 | D43: 262 | E43: 256 | F43: 261.75 | G43: 260 | H43: 258.95 | I43: 1927 | J43: 499600.95 | K43: 2018-07-16 | L43: 52 | M43: INE926K01017
A44: AHLUCONT | B44: EQ | C44: 333.1 | D44: 338.95 | E44: 307.15 | F44: 319.05 | G44: 321.95 | H44: 335.45 | I44: 32898 | J44: 10349239.45 | K44: 2018-07-16 | L44: 1303 | M44: INE758C01029
A45: AHLWEST | B45: BE | C45: 300 | D45: 300 | E45: 286 | F45: 299.9 | G45: 299.9 | H45: 300 | I45: 834 | J45: 246274 | K45: 2018-07-16 | L45: 20 | M45: INE915K01010
A46: AIAENG | B46: EQ | C46: 1619.05 | D46: 1625.8 | E46: 1529.1 | F46: 1541.35 | G46: 1529.1 | H46: 1606.2 | I46: 23682 | J46: 37373206.6 | K46: 2018-07-16 | L46: 1530 | M46: INE212H01026
A47: AICHAMP | B47: BE | C47: 20.3 | D47: 22.2 | E47: 20.3 | F47: 22.2 | G47: 22.2 | H47: 21.2 | I47: 2 | J47: 42.5 | K47: 2018-07-16 | L47: 2 | M47: INE768E01024
A48: AIFL | B48: EQ | C48: 446.2 | D48: 447.9 | E48: 442.25 | F48: 446.3 | G48: 445 | H48: 446.15 | I48: 507616 | J48: 226312796.8 | K48: 2018-07-16 | L48: 2577 | M48: INE428O01016
A49: AJANTPHARM | B49: EQ | C49: 1025.35 | D49: 1030 | E49: 957 | F49: 969.25 | G49: 966 | H49: 1027.1 | I49: 403103 | J49: 397275870.6 | K49: 2018-07-16 | L49: 12778 | M49: INE031B01049
A50: AJMERA | B50: EQ | C50: 212.1 | D50: 215.5 | E50: 204 | F50: 204.55 | G50: 205.5 | H50: 215.45 | I50: 23054 | J50: 4789553.9 | K50: 2018-07-16 | L50: 884 | M50: INE298G01027
A51: AKSHARCHEM | B51: EQ | C51: 530 | D51: 532.85 | E51: 500.85 | F51: 501.9 | G51: 501.3 | H51: 528.85 | I51: 46814 | J51: 24262970.2 | K51: 2018-07-16 | L51: 465 | M51: INE542B01011
A52: AKSHOPTFBR | B52: EQ | C52: 28.15 | D52: 28.4 | E52: 27.05 | F52: 27.2 | G52: 27.15 | H52: 28.35 | I52: 348917 | J52: 9547632.2 | K52: 2018-07-16 | L52: 1440 | M52: INE523B01011
A53: AKZOINDIA | B53: EQ | C53: 1865.25 | D53: 1898 | E53: 1855.25 | F53: 1867.35 | G53: 1861 | H53: 1882.8 | I53: 3751 | J53: 7020259 | K53: 2018-07-16 | L53: 415 | M53: INE133A01011
A54: ALANKIT | B54: EQ | C54: 25.9 | D54: 25.9 | E54: 23.6 | F54: 23.85 | G54: 24.5 | H54: 25.25 | I54: 1050663 | J54: 25765961.65 | K54: 2018-07-16 | L54: 2529 | M54: INE914E01040
A55: ALBERTDAVD | B55: EQ | C55: 421.05 | D55: 421.05 | E55: 384 | F55: 391.85 | G55: 388 | H55: 420.7 | I55: 3759 | J55: 1497141.8 | K55: 2018-07-16 | L55: 170 | M55: INE155C01010
A56: ALBK | B56: EQ | C56: 40.6 | D56: 40.6 | E56: 38.8 | F56: 39.65 | G56: 39.45 | H56: 40.6 | I56: 5002978 | J56: 197217300.9 | K56: 2018-07-16 | L56: 10182 | M56: INE428A01015
A57: ALCHEM | B57: BE | C57: 6.8 | D57: 6.8 | E57: 6.5 | F57: 6.5 | G57: 6.5 | H57: 6.8 | I57: 154 | J57: 1004.55 | K57: 2018-07-16 | L57: 8 | M57: INE964B01033
A58: ALEMBICLTD | B58: EQ | C58: 39.15 | D58: 39.15 | E58: 38 | F58: 38.1 | G58: 38.35 | H58: 38.95 | I58: 254703 | J58: 9759667.55 | K58: 2018-07-16 | L58: 1472 | M58: INE426A01027
A59: ALICON | B59: EQ | C59: 604.05 | D59: 610 | E59: 573.5 | F59: 584.15 | G59: 589.85 | H59: 610.75 | I59: 3361 | J59: 1973261.1 | K59: 2018-07-16 | L59: 318 | M59: INE062D01024
A60: ALKALI | B60: EQ | C60: 64 | D60: 67.75 | E60: 63.1 | F60: 63.35 | G60: 63.2 | H60: 65.1 | I60: 2535 | J60: 166193.55 | K60: 2018-07-16 | L60: 128 | M60: INE773I01017
A61: ALKEM | B61: EQ | C61: 1893.05 | D61: 1920 | E61: 1855 | F61: 1884.9 | G61: 1879.15 | H61: 1901.4 | I61: 11093 | J61: 20963932.65 | K61: 2018-07-16 | L61: 3791 | M61: INE540L01014
A62: ALKYLAMINE | B62: EQ | C62: 640 | D62: 647 | E62: 633.3 | F62: 634.05 | G62: 634.05 | H62: 656.55 | I62: 1357 | J62: 865667.3 | K62: 2018-07-16 | L62: 62 | M62: INE150B01021
A63: ALLCARGO | B63: EQ | C63: 115.9 | D63: 115.9 | E63: 109 | F63: 109.85 | G63: 109.35 | H63: 114.1 | I63: 241601 | J63: 27040356.8 | K63: 2018-07-16 | L63: 3534 | M63: INE418H01029
A64: ALLSEC | B64: EQ | C64: 256.35 | D64: 257.8 | E64: 245.1 | F64: 250.1 | G64: 247.15 | H64: 257.8 | I64: 6287 | J64: 1586505.8 | K64: 2018-07-16 | L64: 270 | M64: INE835G01018
A65: ALMONDZ | B65: BE | C65: 30 | D65: 31 | E65: 30 | F65: 31 | G65: 31 | H65: 31 | I65: 206 | J65: 6181 | K65: 2018-07-16 | L65: 3 | M65: INE326B01027
A66: ALOKTEXT | B66: BE | C66: 3.85 | D66: 4.05 | E66: 3.85 | F66: 3.85 | G66: 3.85 | H66: 4.05 | I66: 12132097 | J66: 47166276.95 | K66: 2018-07-16 | L66: 4015 | M66: INE270A01011
A67: ALPA | B67: EQ | C67: 26.55 | D67: 26.95 | E67: 25.55 | F67: 26.4 | G67: 26.5 | H67: 26.5 | I67: 8378 | J67: 221447 | K67: 2018-07-16 | L67: 53 | M67: INE385I01010
A68: ALPHAGEO | B68: EQ | C68: 651 | D68: 654.6 | E68: 640 | F68: 645 | G68: 640.4 | H68: 657.4 | I68: 3982 | J68: 2564465.4 | K68: 2018-07-16 | L68: 461 | M68: INE137C01018
A69: ALPSINDUS | B69: BE | C69: 2 | D69: 2 | E69: 1.9 | F69: 2 | G69: 2 | H69: 1.95 | I69: 8621 | J69: 17131.9 | K69: 2018-07-16 | L69: 22 | M69: INE093B01015
A70: AMARAJABAT | B70: EQ | C70: 796 | D70: 804.8 | E70: 774.45 | F70: 778.6 | G70: 778 | H70: 805.05 | I70: 361342 | J70: 282906483.6 | K70: 2018-07-16 | L70: 7759 | M70: INE885A01032
A71: AMBER | B71: EQ | C71: 983 | D71: 991.9 | E71: 945.3 | F71: 961.8 | G71: 950 | H71: 982.15 | I71: 10628 | J71: 10260404.5 | K71: 2018-07-16 | L71: 813 | M71: INE371P01015
A72: AMBIKCO | B72: EQ | C72: 1312 | D72: 1312 | E72: 1265.55 | F72: 1273 | G72: 1276 | H72: 1288.2 | I72: 1065 | J72: 1356126.7 | K72: 2018-07-16 | L72: 143 | M72: INE540G01014
A73: AMBUJACEM | B73: EQ | C73: 196.55 | D73: 197.95 | E73: 189.55 | F73: 190.55 | G73: 190.8 | H73: 196.9 | I73: 1994603 | J73: 385210040.9 | K73: 2018-07-16 | L73: 36534 | M73: INE079A01024
A74: AMDIND | B74: EQ | C74: 21.1 | D74: 21.1 | E74: 20.1 | F74: 20.1 | G74: 20.1 | H74: 20.65 | I74: 1389 | J74: 28220.75 | K74: 2018-07-16 | L74: 23 | M74: INE005I01014
A75: AMJLAND | B75: EQ | C75: 26.2 | D75: 26.2 | E75: 24.6 | F75: 25.05 | G75: 24.8 | H75: 25.9 | I75: 45557 | J75: 1166926.25 | K75: 2018-07-16 | L75: 272 | M75: INE606A01024
A76: AMRUTANJAN | B76: EQ | C76: 285 | D76: 285 | E76: 279 | F76: 279.55 | G76: 280 | H76: 285 | I76: 16224 | J76: 4543419.2 | K76: 2018-07-16 | L76: 233 | M76: INE098F01031
A77: ANANTRAJ | B77: EQ | C77: 38.85 | D77: 38.85 | E77: 37.55 | F77: 38.15 | G77: 38.2 | H77: 38.5 | I77: 353506 | J77: 13492089.2 | K77: 2018-07-16 | L77: 1928 | M77: INE242C01024
A78: ANDHRABANK | B78: EQ | C78: 30.65 | D78: 30.75 | E78: 29.45 | F78: 29.55 | G78: 29.55 | H78: 30.65 | I78: 3565877 | J78: 106545125 | K78: 2018-07-16 | L78: 6410 | M78: INE434A01013
A79: ANDHRACEMT | B79: EQ | C79: 8.95 | D79: 9 | E79: 8.4 | F79: 8.6 | G79: 8.65 | H79: 8.7 | I79: 73073 | J79: 632988.1 | K79: 2018-07-16 | L79: 164 | M79: INE666E01012
A80: ANDHRSUGAR | B80: EQ | C80: 333 | D80: 333 | E80: 313 | F80: 319.45 | G80: 316.7 | H80: 333.85 | I80: 22745 | J80: 7351537.3 | K80: 2018-07-16 | L80: 669 | M80: INE715B01013
A81: ANGIND | B81: BE | C81: 2.6 | D81: 2.65 | E81: 2.45 | F81: 2.5 | G81: 2.5 | H81: 2.55 | I81: 4615 | J81: 11671.25 | K81: 2018-07-16 | L81: 18 | M81: INE017D01010
A82: ANIKINDS | B82: BE | C82: 29.25 | D82: 29.25 | E82: 27.4 | F82: 28 | G82: 28.75 | H82: 28.8 | I82: 1082 | J82: 30565.25 | K82: 2018-07-16 | L82: 21 | M82: INE087B01017
A83: ANKITMETAL | B83: BE | C83: 0.8 | D83: 0.8 | E83: 0.8 | F83: 0.8 | G83: 0.8 | H83: 0.8 | I83: 101 | J83: 80.8 | K83: 2018-07-16 | L83: 2 | M83: INE106I01010
A84: ANSALAPI | B84: EQ | C84: 15.55 | D84: 15.55 | E84: 14.6 | F84: 14.85 | G84: 14.75 | H84: 15.75 | I84: 407266 | J84: 6100587.4 | K84: 2018-07-16 | L84: 574 | M84: INE436A01026
A85: ANSALHSG | B85: EQ | C85: 14.7 | D85: 14.7 | E85: 14.1 | F85: 14.15 | G85: 14.2 | H85: 14.7 | I85: 16144 | J85: 230696.85 | K85: 2018-07-16 | L85: 97 | M85: INE880B01015
A86: ANTGRAPHIC | B86: BE | C86: 0.5 | D86: 0.55 | E86: 0.5 | F86: 0.55 | G86: 0.55 | H86: 0.55 | I86: 63092 | J86: 31797.2 | K86: 2018-07-16 | L86: 31 | M86: INE414B01021
A87: APARINDS | B87: EQ | C87: 651 | D87: 651 | E87: 620 | F87: 627.1 | G87: 629 | H87: 648 | I87: 12826 | J87: 8060788.05 | K87: 2018-07-16 | L87: 849 | M87: INE372A01015
A88: APCL | B88: EQ | C88: 161.1 | D88: 161.7 | E88: 150 | F88: 150 | G88: 150 | H88: 154.9 | I88: 208 | J88: 31793.8 | K88: 2018-07-16 | L88: 25 | M88: INE071F01012
A89: APCOTEXIND | B89: EQ | C89: 522 | D89: 539 | E89: 522 | F89: 530.25 | G89: 533 | H89: 532.65 | I89: 6326 | J89: 3367146.75 | K89: 2018-07-16 | L89: 330 | M89: INE116A01024
A90: APEX | B90: EQ | C90: 387 | D90: 387.95 | E90: 367.05 | F90: 367.75 | G90: 368.9 | H90: 386.35 | I90: 43211 | J90: 16228046.15 | K90: 2018-07-16 | L90: 1708 | M90: INE346W01013
A91: APLAPOLLO | B91: EQ | C91: 1670 | D91: 1694.45 | E91: 1639.7 | F91: 1670.8 | G91: 1660.1 | H91: 1703.4 | I91: 6854 | J91: 11413312.2 | K91: 2018-07-16 | L91: 787 | M91: INE702C01019
A92: APLLTD | B92: EQ | C92: 532 | D92: 535.7 | E92: 522.75 | F92: 525.15 | G92: 524.4 | H92: 532.4 | I92: 53887 | J92: 28370075.15 | K92: 2018-07-16 | L92: 1981 | M92: INE901L01018
A93: APOLLO | B93: EQ | C93: 147.3 | D93: 150.95 | E93: 145 | F93: 145.5 | G93: 145 | H93: 151.05 | I93: 17051 | J93: 2519708.1 | K93: 2018-07-16 | L93: 609 | M93: INE713T01010
A94: APOLLOHOSP | B94: EQ | C94: 977 | D94: 977.75 | E94: 935 | F94: 940.7 | G94: 937.25 | H94: 974.85 | I94: 642308 | J94: 608400660 | K94: 2018-07-16 | L94: 23311 | M94: INE437A01024
A95: APOLLOTYRE | B95: EQ | C95: 268 | D95: 270 | E95: 263.5 | F95: 268.25 | G95: 270 | H95: 269 | I95: 1688534 | J95: 450224260.4 | K95: 2018-07-16 | L95: 20035 | M95: INE438A01022
A96: APOLSINHOT | B96: EQ | C96: 1326 | D96: 1421 | E96: 1299.4 | F96: 1311.75 | G96: 1300 | H96: 1369.2 | I96: 382 | J96: 506895.6 | K96: 2018-07-16 | L96: 72 | M96: INE451F01016
A97: APTECHT | B97: EQ | C97: 246.05 | D97: 247.1 | E97: 238.15 | F97: 245.45 | G97: 245 | H97: 246.65 | I97: 158488 | J97: 38466348.45 | K97: 2018-07-16 | L97: 4129 | M97: INE266F01018
A98: ARCHIDPLY | B98: EQ | C98: 55.45 | D98: 55.45 | E98: 52.5 | F98: 53.95 | G98: 54.5 | H98: 55.75 | I98: 17478 | J98: 936363.85 | K98: 2018-07-16 | L98: 395 | M98: INE877I01016
A99: ARCHIES | B99: BE | C99: 29 | D99: 29.15 | E99: 28.05 | F99: 28.15 | G99: 28.1 | H99: 29.4 | I99: 17794 | J99: 504332.8 | K99: 2018-07-16 | L99: 96 | M99: INE731A01020
A100: ARCOTECH | B100: EQ | C100: 13.6 | D100: 13.95 | E100: 13.3 | F100: 13.5 | G100: 13.4 | H100: 14 | I100: 261154 | J100: 3534326.05 | K100: 2018-07-16 | L100: 975 | M100: INE574I01035
A101: ARIES | B101: EQ | C101: 115 | D101: 115.8 | E101: 109 | F101: 111.05 | G101: 111.7 | H101: 116.35 | I101: 27555 | J101: 3090118.35 | K101: 2018-07-16 | L101: 546 | M101: INE298I01015
A102: ARIHANT | B102: EQ | C102: 37.85 | D102: 37.85 | E102: 36.05 | F102: 36.05 | G102: 36.05 | H102: 37.85 | I102: 590 | J102: 21377.5 | K102: 2018-07-16 | L102: 6 | M102: INE413D01011
A103: ARIHANTSUP | B103: EQ | C103: 72.65 | D103: 76.7 | E103: 67.75 | F103: 68.7 | G103: 68.6 | H103: 69.75 | I103: 518730 | J103: 38798521.25 | K103: 2018-07-16 | L103: 24511 | M103: INE643K01018
A104: ARMANFIN | B104: BE | C104: 361.9 | D104: 361.9 | E104: 340 | F104: 350 | G104: 350 | H104: 345 | I104: 889 | J104: 308825 | K104: 2018-07-16 | L104: 28 | M104: INE109C01017
A105: AROGRANITE | B105: EQ | C105: 57.25 | D105: 57.4 | E105: 54 | F105: 54.1 | G105: 54 | H105: 56.4 | I105: 22196 | J105: 1217071.2 | K105: 2018-07-16 | L105: 157 | M105: INE210C01013
A106: ARROWGREEN | B106: EQ | C106: 113.15 | D106: 113.15 | E106: 103.05 | F106: 113.15 | G106: 113.15 | H106: 107.8 | I106: 241500 | J106: 27004377.8 | K106: 2018-07-16 | L106: 1056 | M106: INE570D01018
A107: ARROWTEX | B107: EQ | C107: 28.6 | D107: 31.7 | E107: 28.4 | F107: 28.8 | G107: 28.55 | H107: 28.1 | I107: 30379 | J107: 905932.7 | K107: 2018-07-16 | L107: 237 | M107: INE933J01015
A108: ARSHIYA | B108: EQ | C108: 56.65 | D108: 58.6 | E108: 51.1 | F108: 51.8 | G108: 52 | H108: 56.35 | I108: 69705 | J108: 3672044 | K108: 2018-07-16 | L108: 520 | M108: INE968D01022
A109: ARSSINFRA | B109: BE | C109: 22 | D109: 23.4 | E109: 21.2 | F109: 21.2 | G109: 21.2 | H109: 22.3 | I109: 7256 | J109: 156740.1 | K109: 2018-07-16 | L109: 57 | M109: INE267I01010
A110: ARVIND | B110: EQ | C110: 413.5 | D110: 415 | E110: 384.15 | F110: 388.7 | G110: 389.95 | H110: 411.2 | I110: 1062870 | J110: 422980901.9 | K110: 2018-07-16 | L110: 17419 | M110: INE034A01011
A111: ARVSMART | B111: EQ | C111: 159.7 | D111: 162.7 | E111: 156.65 | F111: 161.6 | G111: 162 | H111: 159.75 | I111: 41029 | J111: 6533109.9 | K111: 2018-07-16 | L111: 674 | M111: INE034S01021
A112: ASAHIINDIA | B112: EQ | C112: 337.8 | D112: 337.8 | E112: 328.9 | F112: 329 | G112: 329 | H112: 337.4 | I112: 44063 | J112: 14546596.95 | K112: 2018-07-16 | L112: 423 | M112: INE439A01020
A113: ASAHISONG | B113: EQ | C113: 272 | D113: 272 | E113: 255.05 | F113: 258.95 | G113: 260 | H113: 267.15 | I113: 885 | J113: 229597.55 | K113: 2018-07-16 | L113: 168 | M113: INE228I01012
A114: ASAL | B114: EQ | C114: 52.5 | D114: 54.45 | E114: 52 | F114: 52.4 | G114: 53 | H114: 54.6 | I114: 14196 | J114: 749865.8 | K114: 2018-07-16 | L114: 178 | M114: INE900C01027
A115: ASHAPURMIN | B115: EQ | C115: 45.05 | D115: 45.3 | E115: 43.5 | F115: 43.65 | G115: 43.5 | H115: 45.85 | I115: 41975 | J115: 1858733.1 | K115: 2018-07-16 | L115: 500 | M115: INE348A01023
A116: ASHIANA | B116: EQ | C116: 128.95 | D116: 132.9 | E116: 124 | F116: 130.4 | G116: 128.05 | H116: 126.95 | I116: 50468 | J116: 6463394.4 | K116: 2018-07-16 | L116: 968 | M116: INE365D01021
A117: ASHIMASYN | B117: EQ | C117: 25.8 | D117: 26.15 | E117: 24.1 | F117: 24.45 | G117: 24.25 | H117: 25.55 | I117: 274853 | J117: 6820923.8 | K117: 2018-07-16 | L117: 453 | M117: INE440A01010
A118: ASHOKA | B118: EQ | C118: 159.8 | D118: 159.8 | E118: 152.9 | F118: 153.2 | G118: 153.4 | H118: 160 | I118: 218402 | J118: 33722023 | K118: 2018-07-16 | L118: 3470 | M118: INE442H01029
A119: ASHOKLEY | B119: EQ | C119: 133.05 | D119: 133.45 | E119: 120.4 | F119: 125.7 | G119: 125.35 | H119: 132.5 | I119: 30874390 | J119: 3911393451 | K119: 2018-07-16 | L119: 129758 | M119: INE208A01029
A120: ASIANHOTNR | B120: EQ | C120: 226.1 | D120: 232 | E120: 226.1 | F120: 230 | G120: 230 | H120: 231 | I120: 1003 | J120: 230520.45 | K120: 2018-07-16 | L120: 25 | M120: INE363A01022
A121: ASIANPAINT | B121: EQ | C121: 1370 | D121: 1394.9 | E121: 1351.1 | F121: 1359.55 | G121: 1357 | H121: 1367.8 | I121: 1234066 | J121: 1702075135 | K121: 2018-07-16 | L121: 47270 | M121: INE021A01026
A122: ASIANTILES | B122: EQ | C122: 301.45 | D122: 301.45 | E122: 289.15 | F122: 290.3 | G122: 290.1 | H122: 302.4 | I122: 57981 | J122: 16903092.7 | K122: 2018-07-16 | L122: 7239 | M122: INE022I01019
A123: ASPINWALL | B123: EQ | C123: 252 | D123: 261.95 | E123: 251 | F123: 255.05 | G123: 255.05 | H123: 254.95 | I123: 513 | J123: 130869.25 | K123: 2018-07-16 | L123: 28 | M123: INE991I01015
A124: ASSAMCO | B124: EQ | C124: 3.7 | D124: 3.7 | E124: 3.35 | F124: 3.35 | G124: 3.35 | H124: 3.7 | I124: 642627 | J124: 2178998.15 | K124: 2018-07-16 | L124: 298 | M124: INE442A01024
A125: ASTEC | B125: EQ | C125: 660 | D125: 660 | E125: 636.7 | F125: 640.7 | G125: 640.05 | H125: 649.8 | I125: 13697 | J125: 8822384.45 | K125: 2018-07-16 | L125: 1071 | M125: INE563J01010
A126: ASTERDM | B126: EQ | C126: 166.15 | D126: 166.25 | E126: 161.2 | F126: 163.65 | G126: 164.7 | H126: 166.45 | I126: 61671 | J126: 10067080.8 | K126: 2018-07-16 | L126: 1799 | M126: INE914M01019
A127: ASTRAL | B127: EQ | C127: 1049 | D127: 1068.8 | E127: 1032.2 | F127: 1037.25 | G127: 1041.85 | H127: 1049.45 | I127: 20752 | J127: 21692122.7 | K127: 2018-07-16 | L127: 2186 | M127: INE006I01046
A128: ASTRAMICRO | B128: EQ | C128: 98.6 | D128: 100 | E128: 97 | F128: 97.55 | G128: 97.85 | H128: 100.15 | I128: 97021 | J128: 9554627.55 | K128: 2018-07-16 | L128: 969 | M128: INE386C01029
A129: ASTRAZEN | B129: EQ | C129: 1410 | D129: 1418.85 | E129: 1402 | F129: 1410.1 | G129: 1410 | H129: 1408.3 | I129: 19668 | J129: 27734847.55 | K129: 2018-07-16 | L129: 861 | M129: INE203A01020
A130: ASTRON | B130: EQ | C130: 112.25 | D130: 113.15 | E130: 107.55 | F130: 108.4 | G130: 108.6 | H130: 113.1 | I130: 34986 | J130: 3841157.7 | K130: 2018-07-16 | L130: 563 | M130: INE646X01014
A131: ATFL | B131: EQ | C131: 660 | D131: 663.95 | E131: 650 | F131: 653.75 | G131: 659.8 | H131: 661.05 | I131: 3735 | J131: 2448779.4 | K131: 2018-07-16 | L131: 326 | M131: INE209A01019
A132: ATLANTA | B132: EQ | C132: 40 | D132: 40 | E132: 36.5 | F132: 37.05 | G132: 37 | H132: 38.45 | I132: 273636 | J132: 10229484.95 | K132: 2018-07-16 | L132: 937 | M132: INE285H01022
A133: ATLASCYCLE | B133: BE | C133: 120.6 | D133: 125.8 | E133: 117.6 | F133: 121.65 | G133: 121.65 | H133: 123.2 | I133: 10915 | J133: 1332434.4 | K133: 2018-07-16 | L133: 123 | M133: INE446A01025
A134: ATUL | B134: EQ | C134: 2757 | D134: 2794 | E134: 2735 | F134: 2774.3 | G134: 2765 | H134: 2756.15 | I134: 11892 | J134: 32907144.3 | K134: 2018-07-16 | L134: 577 | M134: INE100A01010
A135: ATULAUTO | B135: EQ | C135: 409.9 | D135: 409.9 | E135: 403 | F135: 403.1 | G135: 403 | H135: 409.65 | I135: 4226 | J135: 1709090.7 | K135: 2018-07-16 | L135: 227 | M135: INE951D01028
A136: AUBANK | B136: EQ | C136: 637.05 | D136: 644.9 | E136: 631.2 | F136: 634.95 | G136: 635 | H136: 636.25 | I136: 448146 | J136: 284689399.9 | K136: 2018-07-16 | L136: 8396 | M136: INE949L01017
A137: AURIONPRO | B137: EQ | C137: 200.25 | D137: 204.25 | E137: 194 | F137: 194.65 | G137: 194 | H137: 200.25 | I137: 14065 | J137: 2753472.55 | K137: 2018-07-16 | L137: 252 | M137: INE132H01018
A138: AUROPHARMA | B138: EQ | C138: 611.95 | D138: 611.95 | E138: 567.45 | F138: 571.65 | G138: 574.95 | H138: 602.15 | I138: 3421686 | J138: 2001550172 | K138: 2018-07-16 | L138: 62317 | M138: INE406A01037
A139: AUSOMENT | B139: EQ | C139: 74.05 | D139: 79.8 | E139: 74 | F139: 75.3 | G139: 75 | H139: 76.5 | I139: 18298 | J139: 1378331.4 | K139: 2018-07-16 | L139: 176 | M139: INE218C01016
A140: AUTOAXLES | B140: EQ | C140: 1273 | D140: 1280.95 | E140: 1205 | F140: 1214.45 | G140: 1220 | H140: 1269.95 | I140: 13326 | J140: 16389332 | K140: 2018-07-16 | L140: 1190 | M140: INE449A01011
A141: AUTOIND | B141: EQ | C141: 66 | D141: 66.4 | E141: 63.8 | F141: 65.05 | G141: 65.35 | H141: 67.35 | I141: 5023 | J141: 327688.15 | K141: 2018-07-16 | L141: 116 | M141: INE718H01014
A142: AUTOLITIND | B142: EQ | C142: 58.85 | D142: 59.95 | E142: 55.4 | F142: 55.95 | G142: 56.5 | H142: 58.8 | I142: 8461 | J142: 484376.4 | K142: 2018-07-16 | L142: 204 | M142: INE448A01013
A143: AVADHSUGAR | B143: EQ | C143: 326 | D143: 333.55 | E143: 300.5 | F143: 307.4 | G143: 305 | H143: 329.35 | I143: 15974 | J143: 5060165.6 | K143: 2018-07-16 | L143: 694 | M143: INE349W01017
A144: AVANTIFEED | B144: EQ | C144: 442.2 | D144: 444.8 | E144: 415 | F144: 419.4 | G144: 415.2 | H144: 445.3 | I144: 694191 | J144: 296352046.1 | K144: 2018-07-16 | L144: 27359 | M144: INE871C01038
A145: AVTNPL | B145: EQ | C145: 32.3 | D145: 32.55 | E145: 31.45 | F145: 31.55 | G145: 31.5 | H145: 32.2 | I145: 30078 | J145: 960035.25 | K145: 2018-07-16 | L145: 241 | M145: INE488D01021
A146: AXISBANK | B146: EQ | C146: 523 | D146: 529.9 | E146: 518.35 | F146: 522.1 | G146: 519 | H146: 523 | I146: 5032325 | J146: 2634568771 | K146: 2018-07-16 | L146: 56084 | M146: INE238A01034
A147: AXISCADES | B147: EQ | C147: 119 | D147: 120.5 | E147: 113.2 | F147: 116.8 | G147: 118.8 | H147: 118.95 | I147: 71716 | J147: 8374566.55 | K147: 2018-07-16 | L147: 1447 | M147: INE555B01013
A148: AXISGOLD | B148: EQ | C148: 2677 | D148: 2690 | E148: 2673.3 | F148: 2675.45 | G148: 2690 | H148: 2678 | I148: 38 | J148: 101886.4 | K148: 2018-07-16 | L148: 22 | M148: INF846K01347
A149: AXISNIFTY | B149: EQ | C149: 1117.69 | D149: 1120 | E149: 1110 | F149: 1110.04 | G149: 1110 | H149: 1110.42 | I149: 357 | J149: 396399.96 | K149: 2018-07-16 | L149: 11 | M149: INF846K01ZL0
A150: AYMSYNTEX | B150: EQ | C150: 48.5 | D150: 48.5 | E150: 46.2 | F150: 46.3 | G150: 46.2 | H150: 47.85 | I150: 11075 | J150: 517797.45 | K150: 2018-07-16 | L150: 52 | M150: INE193B01039
A151: BAFNAPHARM | B151: EQ | C151: 22.85 | D151: 23 | E151: 21.55 | F151: 22.65 | G151: 22.8 | H151: 22.35 | I151: 15443 | J151: 346856.65 | K151: 2018-07-16 | L151: 108 | M151: INE878I01014
A152: BAGFILMS | B152: EQ | C152: 4.3 | D152: 4.4 | E152: 4.2 | F152: 4.25 | G152: 4.2 | H152: 4.4 | I152: 53692 | J152: 228641.6 | K152: 2018-07-16 | L152: 71 | M152: INE116D01028
A153: BAJAJ-AUTO | B153: EQ | C153: 3137 | D153: 3165 | E153: 3090.95 | F153: 3101.85 | G153: 3107.1 | H153: 3138.65 | I153: 374574 | J153: 1170773950 | K153: 2018-07-16 | L153: 34540 | M153: INE917I01010
A154: BAJAJCORP | B154: EQ | C154: 405 | D154: 416 | E154: 390.55 | F154: 412.65 | G154: 412.1 | H154: 410.15 | I154: 307860 | J154: 124930444.6 | K154: 2018-07-16 | L154: 8002 | M154: INE933K01021
A155: BAJAJELEC | B155: EQ | C155: 550.35 | D155: 551.55 | E155: 515 | F155: 524.2 | G155: 526 | H155: 550.35 | I155: 330532 | J155: 174998516 | K155: 2018-07-16 | L155: 10282 | M155: INE193E01025
A156: BAJAJFINSV | B156: EQ | C156: 6330 | D156: 6350.6 | E156: 6216 | F156: 6247.85 | G156: 6256 | H156: 6324.45 | I156: 131475 | J156: 822347260.6 | K156: 2018-07-16 | L156: 17123 | M156: INE918I01018
A157: BAJAJHIND | B157: EQ | C157: 6.5 | D157: 6.55 | E157: 6.05 | F157: 6.1 | G157: 6.1 | H157: 6.5 | I157: 1453044 | J157: 9042265.4 | K157: 2018-07-16 | L157: 3787 | M157: INE306A01021
A158: BAJAJHLDNG | B158: EQ | C158: 3000 | D158: 3023.65 | E158: 2930.1 | F158: 2942.2 | G158: 2935.1 | H158: 2998.75 | I158: 10207 | J158: 30426507.95 | K158: 2018-07-16 | L158: 1729 | M158: INE118A01012
A159: BAJFINANCE | B159: EQ | C159: 2475 | D159: 2499.4 | E159: 2460 | F159: 2472.3 | G159: 2471 | H159: 2468.6 | I159: 1172644 | J159: 2909633439 | K159: 2018-07-16 | L159: 50502 | M159: INE296A01024
A160: BALAJITELE | B160: EQ | C160: 113.7 | D160: 115 | E160: 110.05 | F160: 111.95 | G160: 114 | H160: 113.25 | I160: 39419 | J160: 4395674.05 | K160: 2018-07-16 | L160: 540 | M160: INE794B01026
A161: BALAMINES | B161: EQ | C161: 530 | D161: 530.65 | E161: 497.8 | F161: 503.2 | G161: 509.3 | H161: 533.7 | I161: 24144 | J161: 12331684.15 | K161: 2018-07-16 | L161: 1199 | M161: INE050E01027
A162: BALKRISHNA | B162: EQ | C162: 69 | D162: 69.95 | E162: 66.15 | F162: 66.5 | G162: 66.15 | H162: 69.4 | I162: 5862 | J162: 394062.85 | K162: 2018-07-16 | L162: 87 | M162: INE875R01011
A163: BALKRISIND | B163: EQ | C163: 1179.9 | D163: 1179.9 | E163: 1130.7 | F163: 1137.25 | G163: 1140 | H163: 1181.15 | I163: 514224 | J163: 594684130 | K163: 2018-07-16 | L163: 15957 | M163: INE787D01026
A164: BALLARPUR | B164: EQ | C164: 9.75 | D164: 9.75 | E164: 9.1 | F164: 9.1 | G164: 9.2 | H164: 9.75 | I164: 689100 | J164: 6404749.25 | K164: 2018-07-16 | L164: 1223 | M164: INE294A01037
A165: BALMLAWRIE | B165: EQ | C165: 211 | D165: 212.4 | E165: 208.05 | F165: 208.7 | G165: 209 | H165: 211.2 | I165: 51986 | J165: 10915111.3 | K165: 2018-07-16 | L165: 982 | M165: INE164A01016
A166: BALPHARMA | B166: EQ | C166: 75.6 | D166: 79.9 | E166: 73.65 | F166: 77 | G166: 76.95 | H166: 76.05 | I166: 16311 | J166: 1234090.35 | K166: 2018-07-16 | L166: 368 | M166: INE083D01012
A167: BALRAMCHIN | B167: EQ | C167: 66.6 | D167: 67.9 | E167: 65.6 | F167: 66.65 | G167: 67 | H167: 67.5 | I167: 6000767 | J167: 401495266.6 | K167: 2018-07-16 | L167: 15852 | M167: INE119A01028
A168: BANARBEADS | B168: EQ | C168: 57.1 | D168: 57.5 | E168: 52.7 | F168: 54 | G168: 53.95 | H168: 57.35 | I168: 14767 | J168: 801885.2 | K168: 2018-07-16 | L168: 288 | M168: INE655B01011
A169: BANARISUG | B169: EQ | C169: 1545.05 | D169: 1599.9 | E169: 1478 | F169: 1497.95 | G169: 1478 | H169: 1532.25 | I169: 2716 | J169: 4240707.8 | K169: 2018-07-16 | L169: 194 | M169: INE459A01010
A170: BANCOINDIA | B170: EQ | C170: 206.5 | D170: 208.05 | E170: 201 | F170: 201.75 | G170: 201 | H170: 205.9 | I170: 14998 | J170: 3045863.3 | K170: 2018-07-16 | L170: 533 | M170: INE213C01025
A171: BANDHANBNK | B171: EQ | C171: 558.25 | D171: 564.8 | E171: 544.55 | F171: 557.35 | G171: 557.5 | H171: 568.95 | I171: 433679 | J171: 240106716.3 | K171: 2018-07-16 | L171: 12608 | M171: INE545U01014
A172: BANG | B172: EQ | C172: 54.05 | D172: 54.85 | E172: 51 | F172: 53.1 | G172: 52.6 | H172: 54 | I172: 44273 | J172: 2357040 | K172: 2018-07-16 | L172: 227 | M172: INE863I01016
A173: BANKBARODA | B173: EQ | C173: 116.75 | D173: 117.3 | E173: 112 | F173: 113.05 | G173: 112.45 | H173: 117.4 | I173: 8610590 | J173: 986867182.2 | K173: 2018-07-16 | L173: 28329 | M173: INE028A01039
A174: BANKBEES | B174: EQ | C174: 2740.7 | D174: 2740.7 | E174: 2717 | F174: 2720.15 | G174: 2717 | H174: 2744.97 | I174: 18852 | J174: 51414271.17 | K174: 2018-07-16 | L174: 396 | M174: INF732E01078
A175: BANKINDIA | B175: EQ | C175: 82 | D175: 82 | E175: 76.8 | F175: 77.5 | G175: 76.9 | H175: 81.7 | I175: 5272685 | J175: 417038904.3 | K175: 2018-07-16 | L175: 17790 | M175: INE084A01016
A176: BANSWRAS | B176: EQ | C176: 85 | D176: 85.9 | E176: 81.65 | F176: 85 | G176: 85 | H176: 85.8 | I176: 2015 | J176: 169871.4 | K176: 2018-07-16 | L176: 58 | M176: INE629D01012
A177: BARTRONICS | B177: BE | C177: 9.75 | D177: 9.75 | E177: 9.4 | F177: 9.5 | G177: 9.5 | H177: 9.75 | I177: 28398 | J177: 272983.5 | K177: 2018-07-16 | L177: 79 | M177: INE855F01034
A178: BASF | B178: EQ | C178: 1906.5 | D178: 1906.5 | E178: 1852.45 | F178: 1880.5 | G178: 1870 | H178: 1878.45 | I178: 5241 | J178: 9769538.2 | K178: 2018-07-16 | L178: 886 | M178: INE373A01013
A179: BASML | B179: EQ | C179: 238.5 | D179: 238.5 | E179: 226.05 | F179: 226.25 | G179: 226.05 | H179: 232 | I179: 589 | J179: 133578.1 | K179: 2018-07-16 | L179: 30 | M179: INE186H01014
A180: BATAINDIA | B180: EQ | C180: 822.7 | D180: 831.85 | E180: 813.1 | F180: 818.7 | G180: 818.95 | H180: 819.65 | I180: 788585 | J180: 647735652.5 | K180: 2018-07-16 | L180: 18079 | M180: INE176A01028
A181: BAYERCROP | B181: EQ | C181: 4500.05 | D181: 4514.1 | E181: 4441.35 | F181: 4486.9 | G181: 4495 | H181: 4506.75 | I181: 6758 | J181: 30272648.1 | K181: 2018-07-16 | L181: 1397 | M181: INE462A01022
A182: BBL | B182: EQ | C182: 1172.3 | D182: 1180.1 | E182: 1139.6 | F182: 1141.65 | G182: 1148 | H182: 1168.25 | I182: 2277 | J182: 2628641.15 | K182: 2018-07-16 | L182: 319 | M182: INE464A01028
A183: BBTC | B183: EQ | C183: 1511.1 | D183: 1556 | E183: 1495 | F183: 1508.45 | G183: 1506 | H183: 1521.45 | I183: 159029 | J183: 243249656.8 | K183: 2018-07-16 | L183: 5950 | M183: INE050A01025
A184: BDL | B184: EQ | C184: 365 | D184: 368.45 | E184: 360.5 | F184: 361.45 | G184: 360.5 | H184: 368.75 | I184: 26155 | J184: 9474935.2 | K184: 2018-07-16 | L184: 1343 | M184: INE171Z01018
A185: BEARDSELL | B185: EQ | C185: 38.6 | D185: 39.55 | E185: 35.5 | F185: 36.1 | G185: 35.5 | H185: 39.3 | I185: 4023 | J185: 147915.85 | K185: 2018-07-16 | L185: 77 | M185: INE520H01022
A186: BEDMUTHA | B186: BE | C186: 18.1 | D186: 19.85 | E186: 18.05 | F186: 19.1 | G186: 18.1 | H186: 19 | I186: 14650 | J186: 270561.25 | K186: 2018-07-16 | L186: 32 | M186: INE844K01012
A187: BEL | B187: EQ | C187: 104.15 | D187: 105.1 | E187: 100.5 | F187: 101 | G187: 100.85 | H187: 103.8 | I187: 5298386 | J187: 540980576.5 | K187: 2018-07-16 | L187: 31514 | M187: INE263A01024
A188: BEML | B188: EQ | C188: 800 | D188: 800 | E188: 761.15 | F188: 771.6 | G188: 771 | H188: 802.25 | I188: 755802 | J188: 588460470.9 | K188: 2018-07-16 | L188: 20181 | M188: INE258A01016
A189: BEPL | B189: EQ | C189: 128.2 | D189: 128.2 | E189: 128.2 | F189: 128.2 | G189: 128.2 | H189: 134.9 | I189: 42810 | J189: 5488242 | K189: 2018-07-16 | L189: 519 | M189: INE922A01025
A190: BERGEPAINT | B190: EQ | C190: 302 | D190: 307.25 | E190: 296.8 | F190: 299.55 | G190: 298.8 | H190: 299.8 | I190: 757383 | J190: 229023808.2 | K190: 2018-07-16 | L190: 11988 | M190: INE463A01038
A191: BFINVEST | B191: EQ | C191: 228.55 | D191: 229 | E191: 217.2 | F191: 218 | G191: 218.5 | H191: 230.35 | I191: 49182 | J191: 10899602.15 | K191: 2018-07-16 | L191: 1624 | M191: INE878K01010
A192: BFUTILITIE | B192: EQ | C192: 307.7 | D192: 308 | E192: 286.5 | F192: 289.05 | G192: 287.25 | H192: 308.8 | I192: 225575 | J192: 66722208.7 | K192: 2018-07-16 | L192: 5603 | M192: INE243D01012
A193: BGLOBAL | B193: BE | C193: 2.85 | D193: 2.85 | E193: 2.75 | F193: 2.75 | G193: 2.75 | H193: 2.85 | I193: 36900 | J193: 101615 | K193: 2018-07-16 | L193: 14 | M193: INE224M01013
A194: BGRENERGY | B194: EQ | C194: 90.6 | D194: 90.6 | E194: 85.75 | F194: 86.2 | G194: 86.65 | H194: 90.3 | I194: 115935 | J194: 10175533.95 | K194: 2018-07-16 | L194: 1560 | M194: INE661I01014
A195: BHAGERIA | B195: EQ | C195: 296.65 | D195: 307.95 | E195: 295.2 | F195: 297.35 | G195: 296.2 | H195: 304.55 | I195: 19177 | J195: 5745112.45 | K195: 2018-07-16 | L195: 579 | M195: INE354C01027
A196: BHAGYANGR | B196: EQ | C196: 49.2 | D196: 53.45 | E196: 39.65 | F196: 40.95 | G196: 41.75 | H196: 49.2 | I196: 1634678 | J196: 78580458 | K196: 2018-07-16 | L196: 10838 | M196: INE458B01036
A197: BHAGYAPROP | B197: BE | C197: 20.7 | D197: 20.7 | E197: 20.7 | F197: 20.7 | G197: 20.7 | H197: 21 | I197: 405 | J197: 8383.5 | K197: 2018-07-16 | L197: 3 | M197: INE363W01018
A198: BHANDARI | B198: EQ | C198: 2.4 | D198: 2.4 | E198: 2.2 | F198: 2.3 | G198: 2.3 | H198: 2.35 | I198: 167737 | J198: 381452.3 | K198: 2018-07-16 | L198: 94 | M198: INE474E01029
A199: BHARATFIN | B199: EQ | C199: 1170.1 | D199: 1184 | E199: 1160 | F199: 1163.15 | G199: 1163 | H199: 1175.45 | I199: 406224 | J199: 477998615.7 | K199: 2018-07-16 | L199: 6717 | M199: INE180K01011
A200: BHARATFORG | B200: EQ | C200: 606.9 | D200: 609.7 | E200: 588 | F200: 590.9 | G200: 590.75 | H200: 605.8 | I200: 833272 | J200: 497589663.1 | K200: 2018-07-16 | L200: 16766 | M200: INE465A01025
... 1452 more rows

Sheet Sheet1 (hidden)

Sheet Sheet3 (hidden)
